Workbook

Sheet カルビー決算補足資料
A1: カルビー株式会社 2022年３月期 第３四半期 決算補足資料
A2: Calbee, Inc. FY2022/3 Q3 Supplementary Information
B3: FY2022/3およびFY'22/3は2022年3月期を指しており、他の事業年度も同様に表記しております。
B4: The fiscal year ending March 31, 2022 is refered to throughout this sheet as "FY2022/3" and "FY'22/3" and the previous fiscal year is refered to in a corresponding manner.
A6: 主な連結財務指標Ⅰ Financial performanceⅠ (consolidated) | G6: FY’21/３ Q3 | J6: FY’22/３ Q3
B8: 自己資本利益率 ROE (%) | G8: =ROUND(StravisData取り込み!V6,1) -> 0 | J8: =ROUND(StravisData取り込み!X6,1) -> 0
B9: 1株当たり当期純利益 EPS (円 Yen) | G9: =ROUNDDOWN(StravisData取り込み!Z7,2) -> 105.11 | J9: =ROUNDDOWN(StravisData取り込み!AG7,2) -> 110.23
B10: 1株当たり純資産額 Net assets per share (円 Yen) | G10: =ROUNDDOWN(StravisData取り込み!V8,2) -> 0 | J10: =ROUNDDOWN(StravisData取り込み!V8/1000000,0) -> 0
B11: 営業活動によるキャッシュフロー Operating CF (百万円 Million yen) | G11: =ROUNDDOWN(StravisData取り込み!Z9/1000000,0) -> 3388 | J11: =ROUNDDOWN(StravisData取り込み!AG9/1000000,0) -> -4106
B12: 投資活動によるキャッシュフロー Investing CF (百万円 Million yen) | G12: =ROUNDDOWN(StravisData取り込み!Z10/1000000,0) -> -14509 | J12: =ROUNDDOWN(StravisData取り込み!AG10/1000000,0) -> -2250
B13: 財務活動によるキャッシュフロー Financial CF (百万円 Million yen) | G13: =ROUNDDOWN(StravisData取り込み!Z11/1000000,0) -> -2512 | J13: =ROUNDDOWN(StravisData取り込み!AG11/1000000,0) -> -11888
B14: 現金及び現金同等物期末残高 Cash and cash equivalents at end of period (百万円 Million yen) | G14: =ROUNDDOWN(StravisData取り込み!Z12/1000000,0) -> 42249 | J14: =ROUNDDOWN(StravisData取り込み!AG12/1000000,0) -> 29649
A16: 主な連結財務指標Ⅱ Financial performanceⅡ (consolidated) | G16: As of March 31, 2021 | J16: As of Dec. 31, 2021
B18: 総資産 Total assets (百万円 Million yen) | G18: =ROUNDDOWN(StravisData取り込み!AB13/1000000,0) -> 238978 | J18: =ROUNDDOWN(StravisData取り込み!AG13/1000000,0) -> 237154
B19: 純資産 Net assets (百万円 Million yen) | G19: =ROUNDDOWN(StravisData取り込み!AB14/1000000,0) -> 182740 | J19: =ROUNDDOWN(StravisData取り込み!AG14/1000000,0) -> 183141
B20: 自己資本比率 Equity ratio (%) | G20: =ROUND(StravisData取り込み!AB15,1) -> 73.4 | J20: =ROUND(StravisData取り込み!AG15,1) -> 73.9
A22: 連結損益計算書 Consolidated statements of income (百万円 Million yen) | G22: =G6 -> FY’21/３ Q3 | H22: 構成比(％) Percent of Gross sales | I22: 伸び率(%) Change in % | J22: =J6 -> FY’22/３ Q3 | K22: 構成比(％) Percent of Gross sales | L22: 伸び率(%) Change in % | O22: FY’21/３ | S22: FY’22/３
O23: Q1 | P23: Q2 | Q23: Q3 | R23: Q4 | S23: Q1 | T23: Q2 | U23: Q3 | V23: Q4
B24: 総売上高* Gross sales* | G24: =ROUNDDOWN(StravisData取り込み!Z19/1000000,0) -> 201203 | H24: =ROUND(StravisData取り込み!Z19/StravisData取り込み!Z$19*100,1) -> 100 | I24: =ROUND((StravisData取り込み!Z19/StravisData取り込み!S19-1)*100,1) -> 4.7 | J24: =ROUNDDOWN(StravisData取り込み!AG19/1000000,0) -> 209823 | K24: =ROUND(StravisData取り込み!AG19/StravisData取り込み!AG$19*100,1) -> 100 | L24: =ROUND((StravisData取り込み!AG19/StravisData取り込み!Z19-1)*100,1) -> 4.3 | O24: =ROUNDDOWN(StravisData取り込み!V19/1000000,0) -> 64385 | P24: =ROUNDDOWN(StravisData取り込み!W19/1000000,0) -> 66562 | Q24: =ROUNDDOWN(StravisData取り込み!Y19/1000000,0) -> 70256 | R24: =ROUNDDOWN(StravisData取り込み!AA19/1000000,0) -> 65542 | S24: =ROUNDDOWN(StravisData取り込み!AC19/1000000,0) -> 67353 | T24: =ROUNDDOWN(StravisData取り込み!AD19/1000000,0) -> 68839 | U24: =ROUNDDOWN(StravisData取り込み!AF19/1000000,0) -> 73630
B25: リベート等控除* Rebates, etc. deduction* | G25: － | H25: － | I25: － | J25: =ROUNDDOWN(StravisData取り込み!AG20/1000000,0) -> 24352 | K25: =ROUND(StravisData取り込み!AG20/StravisData取り込み!AG$19*100,1) -> 11.6 | L25: － | S25: =ROUNDDOWN(StravisData取り込み!AC20/1000000,0) -> 7457 | T25: =ROUNDDOWN(StravisData取り込み!AD20/1000000,0) -> 8294 | U25: =ROUNDDOWN(StravisData取り込み!AF20/1000000,0) -> 8600
B26: 純売上高* Net sales* | G26: － | H26: － | I26: － | J26: =ROUNDDOWN(StravisData取り込み!AG21/1000000,0) -> 185470 | K26: =ROUND(StravisData取り込み!AG21/StravisData取り込み!AG$19*100,1) -> 88.4 | L26: － | S26: =ROUNDDOWN(StravisData取り込み!AC21/1000000,0) -> 59896 | T26: =ROUNDDOWN(StravisData取り込み!AD21/1000000,0) -> 60544 | U26: =ROUNDDOWN(StravisData取り込み!AF21/1000000,0) -> 65029
B27: 売上原価 Cost of sales | G27: =ROUNDDOWN(StravisData取り込み!Z22/1000000,0) -> 111815 | H27: =ROUND(StravisData取り込み!Z22/StravisData取り込み!Z$19*100,1) -> 55.6 | I27: =ROUND((StravisData取り込み!Z22/StravisData取り込み!S22-1)*100,1) -> 6.1 | J27: =ROUNDDOWN(StravisData取り込み!AG22/1000000,0) -> 120670 | K27: =ROUND(StravisData取り込み!AG22/StravisData取り込み!AG$19*100,1) -> 57.5 | L27: =ROUND((StravisData取り込み!AG22/StravisData取り込み!Z22-1)*100,1) -> 7.9 | O27: =ROUNDDOWN(StravisData取り込み!V22/1000000,0) -> 36125 | P27: =ROUNDDOWN(StravisData取り込み!W22/1000000,0) -> 37607 | Q27: =ROUNDDOWN(StravisData取り込み!Y22/1000000,0) -> 38082 | R27: =ROUNDDOWN(StravisData取り込み!AA22/1000000,0) -> 37119 | S27: =ROUNDDOWN(StravisData取り込み!AC22/1000000,0) -> 38687 | T27: =ROUNDDOWN(StravisData取り込み!AD22/1000000,0) -> 39663 | U27: =ROUNDDOWN(StravisData取り込み!AF22/1000000,0) -> 42319
B28: 売上総利益* Gross profit* | G28: =ROUNDDOWN(StravisData取り込み!Z23/1000000,0) -> 89388 | H28: =ROUND(StravisData取り込み!Z23/StravisData取り込み!Z$19*100,1) -> 44.4 | I28: =ROUND((StravisData取り込み!Z23/StravisData取り込み!S23-1)*100,1) -> 3.1 | J28: =ROUNDDOWN(StravisData取り込み!AG23/1000000,0) -> 64800 | K28: =ROUND(StravisData取り込み!AG23/StravisData取り込み!AG$19*100,1) -> 30.9 | L28: － | O28: =ROUNDDOWN(StravisData取り込み!V23/1000000,0) -> 28260 | P28: =ROUNDDOWN(StravisData取り込み!W23/1000000,0) -> 28954 | Q28: =ROUNDDOWN(StravisData取り込み!Y23/1000000,0) -> 32173 | R28: =ROUNDDOWN(StravisData取り込み!AA23/1000000,0) -> 28422 | S28: =ROUNDDOWN(StravisData取り込み!AC23/1000000,0) -> 21208 | T28: =ROUNDDOWN(StravisData取り込み!AD23/1000000,0) -> 20881 | U28: =ROUNDDOWN(StravisData取り込み!AF23/1000000,0) -> 22710
B29: 販売管理費* SG&A* | G29: =ROUNDDOWN(StravisData取り込み!Z24/1000000,0) -> 67546 | H29: =ROUND(StravisData取り込み!Z24/StravisData取り込み!Z$19*100,1) -> 33.6 | I29: =ROUND((StravisData取り込み!Z24/StravisData取り込み!S24-1)*100,1) -> 4.2 | J29: =ROUNDDOWN(StravisData取り込み!AG24/1000000,0) -> 43914 | K29: =ROUND(StravisData取り込み!AG24/StravisData取り込み!AG$19*100,1) -> 20.9 | L29: － | O29: =ROUNDDOWN(StravisData取り込み!V24/1000000,0) -> 21707 | P29: =ROUNDDOWN(StravisData取り込み!W24/1000000,0) -> 22493 | Q29: =ROUNDDOWN(StravisData取り込み!Y24/1000000,0) -> 23345 | R29: =ROUNDDOWN(StravisData取り込み!AA24/1000000,0) -> 23199 | S29: =ROUNDDOWN(StravisData取り込み!AC24/1000000,0) -> 14269 | T29: =ROUNDDOWN(StravisData取り込み!AD24/1000000,0) -> 14517 | U29: =ROUNDDOWN(StravisData取り込み!AF24/1000000,0) -> 15127
C30: 販売費* Selling* | G30: =ROUNDDOWN(StravisData取り込み!Z25/1000000,0) -> 30650 | H30: =ROUND(StravisData取り込み!Z25/StravisData取り込み!Z$19*100,1) -> 15.2 | I30: =ROUND((StravisData取り込み!Z25/StravisData取り込み!S25-1)*100,1) -> 2.2 | J30: =ROUNDDOWN(StravisData取り込み!AG25/1000000,0) -> 6244 | K30: =ROUND(StravisData取り込み!AG25/StravisData取り込み!AG$19*100,1) -> 3 | L30: － | O30: =ROUNDDOWN(StravisData取り込み!V25/1000000,0) -> 9582 | P30: =ROUNDDOWN(StravisData取り込み!W25/1000000,0) -> 10257 | Q30: =ROUNDDOWN(StravisData取り込み!Y25/1000000,0) -> 10810 | R30: =ROUNDDOWN(StravisData取り込み!AA25/1000000,0) -> 10916 | S30: =ROUNDDOWN(StravisData取り込み!AC25/1000000,0) -> 2008 | T30: =ROUNDDOWN(StravisData取り込み!AD25/1000000,0) -> 1967 | U30: =ROUNDDOWN(StravisData取り込み!AF25/1000000,0) -> 2269
C31: 物流費 Distribution | G31: =ROUNDDOWN(StravisData取り込み!Z26/1000000,0) -> 14557 | H31: =ROUND(StravisData取り込み!Z26/StravisData取り込み!Z$19*100,1) -> 7.2 | I31: =ROUND((StravisData取り込み!Z26/StravisData取り込み!S26-1)*100,1) -> 5.7 | J31: =ROUNDDOWN(StravisData取り込み!AG26/1000000,0) -> 14920 | K31: =ROUND(StravisData取り込み!AG26/StravisData取り込み!AG$19*100,1) -> 7.1 | L31: =ROUND((StravisData取り込み!AG26/StravisData取り込み!Z26-1)*100,1) -> 2.5 | O31: =ROUNDDOWN(StravisData取り込み!V26/1000000,0) -> 4876 | P31: =ROUNDDOWN(StravisData取り込み!W26/1000000,0) -> 4749 | Q31: =ROUNDDOWN(StravisData取り込み!Y26/1000000,0) -> 4931 | R31: =ROUNDDOWN(StravisData取り込み!AA26/1000000,0) -> 4690 | S31: =ROUNDDOWN(StravisData取り込み!AC26/1000000,0) -> 4751 | T31: =ROUNDDOWN(StravisData取り込み!AD26/1000000,0) -> 4913 | U31: =ROUNDDOWN(StravisData取り込み!AF26/1000000,0) -> 5255
C32: 人件費 Labor | G32: =ROUNDDOWN(StravisData取り込み!Z27/1000000,0) -> 14397 | H32: =ROUND(StravisData取り込み!Z27/StravisData取り込み!Z$19*100,1) -> 7.2 | I32: =ROUND((StravisData取り込み!Z27/StravisData取り込み!S27-1)*100,1) -> 6.5 | J32: =ROUNDDOWN(StravisData取り込み!AG27/1000000,0) -> 14557 | K32: =ROUND(StravisData取り込み!AG27/StravisData取り込み!AG$19*100,1) -> 6.9 | L32: =ROUND((StravisData取り込み!AG27/StravisData取り込み!Z27-1)*100,1) -> 1.1 | O32: =ROUNDDOWN(StravisData取り込み!V27/1000000,0) -> 4551 | P32: =ROUNDDOWN(StravisData取り込み!W27/1000000,0) -> 4920 | Q32: =ROUNDDOWN(StravisData取り込み!Y27/1000000,0) -> 4925 | R32: =ROUNDDOWN(StravisData取り込み!AA27/1000000,0) -> 4923 | S32: =ROUNDDOWN(StravisData取り込み!AC27/1000000,0) -> 4764 | T32: =ROUNDDOWN(StravisData取り込み!AD27/1000000,0) -> 5012 | U32: =ROUNDDOWN(StravisData取り込み!AF27/1000000,0) -> 4780
C33: その他 Others | G33: =ROUNDDOWN(StravisData取り込み!Z28/1000000,0) -> 7941 | H33: =ROUND(StravisData取り込み!Z28/StravisData取り込み!Z$19*100,1) -> 3.9 | I33: =ROUND((StravisData取り込み!Z28/StravisData取り込み!S28-1)*100,1) -> 5.3 | J33: =ROUNDDOWN(StravisData取り込み!AG28/1000000,0) -> 8191 | K33: =ROUND(StravisData取り込み!AG28/StravisData取り込み!AG$19*100,1) -> 3.9 | L33: =ROUND((StravisData取り込み!AG28/StravisData取り込み!Z28-1)*100,1) -> 3.2 | O33: =ROUNDDOWN(StravisData取り込み!V28/1000000,0) -> 2697 | P33: =ROUNDDOWN(StravisData取り込み!W28/1000000,0) -> 2565 | Q33: =ROUNDDOWN(StravisData取り込み!Y28/1000000,0) -> 2678 | R33: =ROUNDDOWN(StravisData取り込み!AA28/1000000,0) -> 2669 | S33: =ROUNDDOWN(StravisData取り込み!AC28/1000000,0) -> 2745 | T33: =ROUNDDOWN(StravisData取り込み!AD28/1000000,0) -> 2624 | U33: =ROUNDDOWN(StravisData取り込み!AF28/1000000,0) -> 2821
B34: 営業利益 Operating profit | G34: =ROUNDDOWN(StravisData取り込み!Z29/1000000,0) -> 21841 | H34: =ROUND(StravisData取り込み!Z29/StravisData取り込み!Z$19*100,1) -> 10.9 | I34: =ROUND((StravisData取り込み!Z29/StravisData取り込み!S29-1)*100,1) -> -0.2 | J34: =ROUNDDOWN(StravisData取り込み!AG29/1000000,0) -> 20885 | K34: =ROUND(StravisData取り込み!AG29/StravisData取り込み!AG$19*100,1) -> 10 | L34: =ROUND((StravisData取り込み!AG29/StravisData取り込み!Z29-1)*100,1) -> -4.4 | O34: =ROUNDDOWN(StravisData取り込み!V29/1000000,0) -> 6552 | P34: =ROUNDDOWN(StravisData取り込み!W29/1000000,0) -> 6461 | Q34: =ROUNDDOWN(StravisData取り込み!Y29/1000000,0) -> 8827 | R34: =ROUNDDOWN(StravisData取り込み!AA29/1000000,0) -> 5222 | S34: =ROUNDDOWN(StravisData取り込み!AC29/1000000,0) -> 6938 | T34: =ROUNDDOWN(StravisData取り込み!AD29/1000000,0) -> 6363 | U34: =ROUNDDOWN(StravisData取り込み!AF29/1000000,0) -> 7583
B35: 経常利益 Ordinary profit | G35: =ROUNDDOWN(StravisData取り込み!Z30/1000000,0) -> 21401 | H35: =ROUND(StravisData取り込み!Z30/StravisData取り込み!Z$19*100,1) -> 10.6 | I35: =ROUND((StravisData取り込み!Z30/StravisData取り込み!S30-1)*100,1) -> -1.7 | J35: =ROUNDDOWN(StravisData取り込み!AG30/1000000,0) -> 21570 | K35: =ROUND(StravisData取り込み!AG30/StravisData取り込み!AG$19*100,1) -> 10.3 | L35: =ROUND((StravisData取り込み!AG30/StravisData取り込み!Z30-1)*100,1) -> 0.8 | O35: =ROUNDDOWN(StravisData取り込み!V30/1000000,0) -> 6415 | P35: =ROUNDDOWN(StravisData取り込み!W30/1000000,0) -> 6334 | Q35: =ROUNDDOWN(StravisData取り込み!Y30/1000000,0) -> 8652 | R35: =ROUNDDOWN(StravisData取り込み!AA30/1000000,0) -> 6120 | S35: =ROUNDDOWN(StravisData取り込み!AC30/1000000,0) -> 7034 | T35: =ROUNDDOWN(StravisData取り込み!AD30/1000000,0) -> 6539 | U35: =ROUNDDOWN(StravisData取り込み!AF30/1000000,0) -> 7996
B36: 特別損益 Extraordinary income/loss | G36: =ROUNDDOWN(StravisData取り込み!Z31/1000000,0) -> -204 | H36: － | I36: － | J36: =ROUNDDOWN(StravisData取り込み!AG31/1000000,0) -> 146 | K36: － | L36: － | O36: =ROUNDDOWN(StravisData取り込み!V31/1000000,0) -> -129 | P36: =ROUNDDOWN(StravisData取り込み!W31/1000000,0) -> 50 | Q36: =ROUNDDOWN(StravisData取り込み!Y31/1000000,0) -> -125 | R36: =ROUNDDOWN(StravisData取り込み!AA31/1000000,0) -> -936 | S36: =ROUNDDOWN(StravisData取り込み!AC31/1000000,0) -> -38 | T36: =ROUNDDOWN(StravisData取り込み!AD31/1000000,0) -> -124 | U36: =ROUNDDOWN(StravisData取り込み!AF31/1000000,0) -> 310
B37: 非支配株主利益 Profit attributable to non-controlling interests | G37: =ROUNDDOWN(StravisData取り込み!Z32/1000000,0) -> 482 | H37: － | I37: － | J37: =ROUNDDOWN(StravisData取り込み!AG32/1000000,0) -> 145 | K37: － | L37: － | O37: =ROUNDDOWN(StravisData取り込み!V32/1000000,0) -> 266 | P37: =ROUNDDOWN(StravisData取り込み!W32/1000000,0) -> 155 | Q37: =ROUNDDOWN(StravisData取り込み!Y32/1000000,0) -> 60 | R37: =ROUNDDOWN(StravisData取り込み!AA32/1000000,0) -> -99 | S37: =ROUNDDOWN(StravisData取り込み!AC32/1000000,0) -> 112 | T37: =ROUNDDOWN(StravisData取り込み!AD32/1000000,0) -> 4 | U37: =ROUNDDOWN(StravisData取り込み!AF32/1000000,0) -> 27
B38: 当期純利益** Net profit** | G38: =ROUNDDOWN(StravisData取り込み!Z33/1000000,0) -> 14048 | H38: =ROUND(StravisData取り込み!Z33/StravisData取り込み!Z$19*100,1) -> 7 | I38: =ROUND((StravisData取り込み!Z33/StravisData取り込み!S33-1)*100,1) -> -4.3 | J38: =ROUNDDOWN(StravisData取り込み!AG33/1000000,0) -> 14701 | K38: =ROUND(StravisData取り込み!AG33/StravisData取り込み!AG$19*100,1) -> 7 | L38: =ROUND((StravisData取り込み!AG33/StravisData取り込み!Z33-1)*100,1) -> 4.7 | O38: =ROUNDDOWN(StravisData取り込み!V33/1000000,0) -> 4050 | P38: =ROUNDDOWN(StravisData取り込み!W33/1000000,0) -> 4173 | Q38: =ROUNDDOWN(StravisData取り込み!Y33/1000000,0) -> 5825 | R38: =ROUNDDOWN(StravisData取り込み!AA33/1000000,0) -> 3633 | S38: =ROUNDDOWN(StravisData取り込み!AC33/1000000,0) -> 4953 | T38: =ROUNDDOWN(StravisData取り込み!AD33/1000000,0) -> 4225 | U38: =ROUNDDOWN(StravisData取り込み!AF33/1000000,0) -> 5523
B39: *第１四半期連結会計期間の期首より「収益認識会計基準」を適用しており、リベート等について従来は販売費及び一般管理費として処理する方法によっておりましたが、販売時に取引金額から減額する方法に変更しております。
B40: *The Company adopted the "Accounting Standard for Revenue Recognition" from the beginning of the first quarter of the fiscal year.
B41: Rebates, etc. were previously accounted for as selling, general and administrative expenses, but the Company has changed the method to reduce this from the transaction amount at the time of sale.
B42: *総売上高は従来通りリベート等を控除する前の売上高であり、純売上高はリベート等を控除した後の売上高となっております。 *Gross sales are sales figures before deducting certain selling expenses, Net sales are sales figures after deducting certain selling expenses.
B43: **当期純利益は、親会社株主に帰属する当期純利益になります **Profit attributable to owners of parent
A45: 製品別売上高* Sales by product* （百万円 Million yen) | G45: =G6 -> FY’21/３ Q3 | H45: 構成比(％) Percent of Gross sales | I45: 伸び率(%) Change in % | J45: =J6 -> FY’22/３ Q3 | K45: 構成比(％) Percent of Gross sales | L45: 伸び率(%) Change in % | O45: =O22 -> FY’21/３ | S45: =S22 -> FY’22/３
O46: Q1 | P46: Q2 | Q46: Q3 | R46: Q4 | S46: Q1 | T46: Q2 | U46: Q3 | V46: Q4
C47: 国内スナック Domestic snack foods | G47: =ROUNDDOWN(StravisData取り込み!Z38/1000000,0) -> 132028 | H47: =ROUND(StravisData取り込み!Z38/StravisData取り込み!Z$19*100,1) -> 65.6 | I47: =ROUND((StravisData取り込み!Z38/StravisData取り込み!S38-1)*100,1) -> -4 | J47: =ROUNDDOWN(StravisData取り込み!AG38/1000000,0) -> 134869 | K47: =ROUND(StravisData取り込み!AG38/StravisData取り込み!AG$19*100,1) -> 64.3 | L47: =ROUND((StravisData取り込み!AG38/StravisData取り込み!Z38-1)*100,1) -> 2.2 | O47: =ROUNDDOWN(StravisData取り込み!V38/1000000,0) -> 41345 | P47: =ROUNDDOWN(StravisData取り込み!W38/1000000,0) -> 43452 | Q47: =ROUNDDOWN(StravisData取り込み!Y38/1000000,0) -> 47230 | R47: =ROUNDDOWN(StravisData取り込み!AA38/1000000,0) -> 43646 | S47: =ROUNDDOWN(StravisData取り込み!AC38/1000000,0) -> 42857 | T47: =ROUNDDOWN(StravisData取り込み!AD38/1000000,0) -> 44816 | U47: =ROUNDDOWN(StravisData取り込み!AF38/1000000,0) -> 47194
C48: 国内シリアル Domestic cereals | G48: =ROUNDDOWN(StravisData取り込み!Z39/1000000,0) -> 21621 | H48: =ROUND(StravisData取り込み!Z39/StravisData取り込み!Z$19*100,1) -> 10.7 | I48: =ROUND((StravisData取り込み!Z39/StravisData取り込み!S39-1)*100,1) -> 16.1 | J48: =ROUNDDOWN(StravisData取り込み!AG39/1000000,0) -> 18896 | K48: =ROUND(StravisData取り込み!AG39/StravisData取り込み!AG$19*100,1) -> 9 | L48: =ROUND((StravisData取り込み!AG39/StravisData取り込み!Z39-1)*100,1) -> -12.6 | O48: =ROUNDDOWN(StravisData取り込み!V39/1000000,0) -> 7973 | P48: =ROUNDDOWN(StravisData取り込み!W39/1000000,0) -> 7351 | Q48: =ROUNDDOWN(StravisData取り込み!Y39/1000000,0) -> 6295 | R48: =ROUNDDOWN(StravisData取り込み!AA39/1000000,0) -> 6101 | S48: =ROUNDDOWN(StravisData取り込み!AC39/1000000,0) -> 6629 | T48: =ROUNDDOWN(StravisData取り込み!AD39/1000000,0) -> 6533 | U48: =ROUNDDOWN(StravisData取り込み!AF39/1000000,0) -> 5733
C49: 国内その他合計（甘しょ・馬鈴しょ、役務提供）** Domestic others total (sweet potatoes, potatoes and other businesses)** | G49: =ROUNDDOWN((StravisData取り込み!Z42)/1000000,0) -> 7388 | H49: =ROUND(StravisData取り込み!Z42/StravisData取り込み!Z$19*100,1) -> 3.7 | I49: =ROUND((StravisData取り込み!Z42/StravisData取り込み!S42-1)*100,1) -> 195.7 | J49: =ROUNDDOWN((StravisData取り込み!AG42)/1000000,0) -> 8551 | K49: =ROUND(StravisData取り込み!AG42/StravisData取り込み!AG$19*100,1) -> 4.1 | L49: =ROUND((StravisData取り込み!AG42/StravisData取り込み!Z42-1)*100,1) -> 15.7 | O49: =ROUNDDOWN(StravisData取り込み!V42/1000000,0) -> 2134 | P49: =ROUNDDOWN(StravisData取り込み!W42/1000000,0) -> 2026 | Q49: =ROUNDDOWN(StravisData取り込み!Y42/1000000,0) -> 3227 | R49: =ROUNDDOWN(StravisData取り込み!AA42/1000000,0) -> 2853 | S49: =ROUNDDOWN(StravisData取り込み!AC42/1000000,0) -> 2775 | T49: =ROUNDDOWN(StravisData取り込み!AD42/1000000,0) -> 2120 | U49: =ROUNDDOWN(StravisData取り込み!AF42/1000000,0) -> 3655
B50: 国内食品計 Domestic foods business | G50: =ROUNDDOWN(StravisData取り込み!Z43/1000000,0) -> 161038 | H50: =ROUND(StravisData取り込み!Z43/StravisData取り込み!Z$19*100,1) -> 80 | I50: =ROUND((StravisData取り込み!Z43/StravisData取り込み!S43-1)*100,1) -> 1.5 | J50: =ROUNDDOWN((StravisData取り込み!AG43)/1000000,0) -> 162317 | K50: =ROUND(StravisData取り込み!AG43/StravisData取り込み!AG$19*100,1) -> 77.4 | L50: =ROUND((StravisData取り込み!AG43/StravisData取り込み!Z43-1)*100,1) -> 0.8 | O50: =ROUNDDOWN(StravisData取り込み!V43/1000000,0) -> 51454 | P50: =ROUNDDOWN(StravisData取り込み!W43/1000000,0) -> 52831 | Q50: =ROUNDDOWN(StravisData取り込み!Y43/1000000,0) -> 56753 | R50: =ROUNDDOWN(StravisData取り込み!AA43/1000000,0) -> 52600 | S50: =ROUNDDOWN(StravisData取り込み!AC43/1000000,0) -> 52263 | T50: =ROUNDDOWN(StravisData取り込み!AD43/1000000,0) -> 53470 | U50: =ROUNDDOWN(StravisData取り込み!AF43/1000000,0) -> 56583
C51: 海外スナック Overseas snack foods | G51: =ROUNDDOWN(StravisData取り込み!Z44/1000000,0) -> 34635 | H51: =ROUND(StravisData取り込み!Z44/StravisData取り込み!Z$19*100,1) -> 17.2 | I51: =ROUND((StravisData取り込み!Z44/StravisData取り込み!S44-1)*100,1) -> 22.3 | J51: =ROUNDDOWN(StravisData取り込み!AG44/1000000,0) -> 41197 | K51: =ROUND(StravisData取り込み!AG44/StravisData取り込み!AG$19*100,1) -> 19.6 | L51: =ROUND((StravisData取り込み!AG44/StravisData取り込み!Z44-1)*100,1) -> 18.9 | O51: =ROUNDDOWN(StravisData取り込み!V44/1000000,0) -> 10978 | P51: =ROUNDDOWN(StravisData取り込み!W44/1000000,0) -> 11977 | Q51: =ROUNDDOWN(StravisData取り込み!Y44/1000000,0) -> 11678 | R51: =ROUNDDOWN(StravisData取り込み!AA44/1000000,0) -> 11772 | S51: =ROUNDDOWN(StravisData取り込み!AC44/1000000,0) -> 13303 | T51: =ROUNDDOWN(StravisData取り込み!AD44/1000000,0) -> 13438 | U51: =ROUNDDOWN(StravisData取り込み!AF44/1000000,0) -> 14455
C52: 海外シリアル Overseas cereals | G52: =ROUNDDOWN(StravisData取り込み!Z45/1000000,0) -> 5529 | H52: =ROUND(StravisData取り込み!Z45/StravisData取り込み!Z$19*100,1) -> 2.7 | I52: =ROUND((StravisData取り込み!Z45/StravisData取り込み!S45-1)*100,1) -> 8.8 | J52: =ROUNDDOWN(StravisData取り込み!AG45/1000000,0) -> 6308 | K52: =ROUND(StravisData取り込み!AG45/StravisData取り込み!AG$19*100,1) -> 3 | L52: =ROUND((StravisData取り込み!AG45/StravisData取り込み!Z45-1)*100,1) -> 14.1 | O52: =ROUNDDOWN(StravisData取り込み!V45/1000000,0) -> 1952 | P52: =ROUNDDOWN(StravisData取り込み!W45/1000000,0) -> 1753 | Q52: =ROUNDDOWN(StravisData取り込み!Y45/1000000,0) -> 1823 | R52: =ROUNDDOWN(StravisData取り込み!AA45/1000000,0) -> 1169 | S52: =ROUNDDOWN(StravisData取り込み!AC45/1000000,0) -> 1786 | T52: =ROUNDDOWN(StravisData取り込み!AD45/1000000,0) -> 1930 | U52: =ROUNDDOWN(StravisData取り込み!AF45/1000000,0) -> 2591
B53: 海外食品計 Overseas foods business | G53: =ROUNDDOWN(StravisData取り込み!Z46/1000000,0) -> 40164 | H53: =ROUND(StravisData取り込み!Z46/StravisData取り込み!Z$19*100,1) -> 20 | I53: =ROUND((StravisData取り込み!Z46/StravisData取り込み!S46-1)*100,1) -> 20.3 | J53: =ROUNDDOWN(StravisData取り込み!AG46/1000000,0) -> 47506 | K53: =ROUND(StravisData取り込み!AG46/StravisData取り込み!AG$19*100,1) -> 22.6 | L53: =ROUND((StravisData取り込み!AG46/StravisData取り込み!Z46-1)*100,1) -> 18.3 | O53: =ROUNDDOWN(StravisData取り込み!V46/1000000,0) -> 12931 | P53: =ROUNDDOWN(StravisData取り込み!W46/1000000,0) -> 13730 | Q53: =ROUNDDOWN(StravisData取り込み!Y46/1000000,0) -> 13502 | R53: =ROUNDDOWN(StravisData取り込み!AA46/1000000,0) -> 12941 | S53: =ROUNDDOWN(StravisData取り込み!AC46/1000000,0) -> 15090 | T53: =ROUNDDOWN(StravisData取り込み!AD46/1000000,0) -> 15368 | U53: =ROUNDDOWN(StravisData取り込み!AF46/1000000,0) -> 17046
B54: 食品製造販売事業計 Snacks and other foods business | G54: =ROUNDDOWN(StravisData取り込み!Z47/1000000,0) -> 201203 | H54: =ROUND(StravisData取り込み!Z47/StravisData取り込み!Z$19*100,1) -> 100 | I54: =ROUND((StravisData取り込み!Z47/StravisData取り込み!S47-1)*100,1) -> 4.7 | J54: =ROUNDDOWN(StravisData取り込み!AG48/1000000,0) -> 209823 | K54: =ROUND(StravisData取り込み!AG47/StravisData取り込み!AG$19*100,1) -> 100 | L54: =ROUND((StravisData取り込み!AG47/StravisData取り込み!Z47-1)*100,1) -> 4.3 | O54: =ROUNDDOWN(StravisData取り込み!V47/1000000,0) -> 64385 | P54: =ROUNDDOWN(StravisData取り込み!W47/1000000,0) -> 66562 | Q54: =ROUNDDOWN(StravisData取り込み!Y47/1000000,0) -> 70256 | R54: =ROUNDDOWN(StravisData取り込み!AA47/1000000,0) -> 65542 | S54: =ROUNDDOWN(StravisData取り込み!AC47/1000000,0) -> 67353 | T54: =ROUNDDOWN(StravisData取り込み!AD47/1000000,0) -> 68839 | U54: =ROUNDDOWN(StravisData取り込み!AF47/1000000,0) -> 73630
B55: その他事業 Other businesses | G55: =ROUNDDOWN(StravisData取り込み!Z41/1000000,0) -> 1195 | H55: =ROUND(StravisData取り込み!Z41/StravisData取り込み!Z$19*100,1) -> 0.6 | I55: =ROUND((StravisData取り込み!Z41/StravisData取り込み!S41-1)*100,1) -> -17.1 | J55: =ROUNDDOWN(StravisData取り込み!AG41/1000000,0) -> 1078 | K55: =ROUND(StravisData取り込み!AG41/StravisData取り込み!AG$19*100,1) -> 0.5 | L55: =ROUND((StravisData取り込み!AG41/StravisData取り込み!Z41-1)*100,1) -> -9.8 | O55: =ROUNDDOWN(StravisData取り込み!V41/1000000,0) -> 317 | P55: =ROUNDDOWN(StravisData取り込み!W41/1000000,0) -> 230 | Q55: =ROUNDDOWN(StravisData取り込み!Y41/1000000,0) -> 647 | R55: =ROUNDDOWN(StravisData取り込み!AA41/1000000,0) -> 363 | S55: =ROUNDDOWN(StravisData取り込み!AC41/1000000,0) -> 256 | T55: =ROUNDDOWN(StravisData取り込み!AD41/1000000,0) -> 209
B56: 売上高合計 Gross sales | G56: =ROUNDDOWN(StravisData取り込み!Z48/1000000,0) -> 201203 | H56: =ROUND(StravisData取り込み!Z48/StravisData取り込み!Z$19*100,1) -> 100 | I56: =ROUND((StravisData取り込み!Z48/StravisData取り込み!S48-1)*100,1) -> 4.7 | J56: =ROUNDDOWN(StravisData取り込み!AG48/1000000,0) -> 209823 | K56: =ROUND(StravisData取り込み!AG48/StravisData取り込み!AG$19*100,1) -> 100 | L56: =ROUND((StravisData取り込み!AG48/StravisData取り込み!Z48-1)*100,1) -> 4.3 | O56: =ROUNDDOWN(StravisData取り込み!V48/1000000,0) -> 64385 | P56: =ROUNDDOWN(StravisData取り込み!W48/1000000,0) -> 66562 | Q56: =ROUNDDOWN(StravisData取り込み!Y48/1000000,0) -> 70256 | R56: =ROUNDDOWN(StravisData取り込み!AA48/1000000,0) -> 65542 | S56: =ROUNDDOWN(StravisData取り込み!AC48/1000000,0) -> 67353 | T56: =ROUNDDOWN(StravisData取り込み!AD48/1000000,0) -> 68839
C57: ＜国内スナック内訳 Breakdown of domestic snack foods＞
C58: ポテト系スナック Potato-based snacks | G58: =ROUNDDOWN(StravisData取り込み!Z50/1000000,0) -> 96776 | H58: =ROUND(StravisData取り込み!Z50/StravisData取り込み!Z$19*100,1) -> 48.1 | I58: =ROUND((StravisData取り込み!Z50/StravisData取り込み!S50-1)*100,1) -> -3.9 | J58: =ROUNDDOWN(StravisData取り込み!AG50/1000000,0) -> 97617 | K58: =ROUND(StravisData取り込み!AG50/StravisData取り込み!AG$19*100,1) -> 46.5 | L58: =ROUND((StravisData取り込み!AG50/StravisData取り込み!Z50-1)*100,1) -> 0.9 | O58: =ROUNDDOWN(StravisData取り込み!V50/1000000,0) -> 29120 | P58: =ROUNDDOWN(StravisData取り込み!W50/1000000,0) -> 32309 | Q58: =ROUNDDOWN(StravisData取り込み!Y50/1000000,0) -> 35346 | R58: =ROUNDDOWN(StravisData取り込み!AA50/1000000,0) -> 32065 | S58: =ROUNDDOWN(StravisData取り込み!AC50/1000000,0) -> 30674 | T58: =ROUNDDOWN(StravisData取り込み!AD50/1000000,0) -> 32642 | U58: =ROUNDDOWN(StravisData取り込み!AF50/1000000,0) -> 34299
D59: ポテトチップス Potato Chips | G59: =ROUNDDOWN(StravisData取り込み!Z51/1000000,0) -> 65385 | H59: =ROUND(StravisData取り込み!Z51/StravisData取り込み!Z$19*100,1) -> 32.5 | I59: =ROUND((StravisData取り込み!Z51/StravisData取り込み!S51-1)*100,1) -> 2.7 | J59: =ROUNDDOWN(StravisData取り込み!AG51/1000000,0) -> 64066 | K59: =ROUND(StravisData取り込み!AG51/StravisData取り込み!AG$19*100,1) -> 30.5 | L59: =ROUND((StravisData取り込み!AG51/StravisData取り込み!Z51-1)*100,1) -> -2 | O59: =ROUNDDOWN(StravisData取り込み!V51/1000000,0) -> 19461 | P59: =ROUNDDOWN(StravisData取り込み!W51/1000000,0) -> 21574 | Q59: =ROUNDDOWN(StravisData取り込み!Y51/1000000,0) -> 24350 | R59: =ROUNDDOWN(StravisData取り込み!AA51/1000000,0) -> 21207 | S59: =ROUNDDOWN(StravisData取り込み!AC51/1000000,0) -> 19605 | T59: =ROUNDDOWN(StravisData取り込み!AD51/1000000,0) -> 21493 | U59: =ROUNDDOWN(StravisData取り込み!AF51/1000000,0) -> 22967
D60: じゃがりこ Jagarico | G60: =ROUNDDOWN(StravisData取り込み!Z52/1000000,0) -> 25585 | H60: =ROUND(StravisData取り込み!Z52/StravisData取り込み!Z$19*100,1) -> 12.7 | I60: =ROUND((StravisData取り込み!Z52/StravisData取り込み!S52-1)*100,1) -> -9 | J60: =ROUNDDOWN(StravisData取り込み!AG52/1000000,0) -> 27013 | K60: =ROUND(StravisData取り込み!AG52/StravisData取り込み!AG$19*100,1) -> 12.9 | L60: =ROUND((StravisData取り込み!AG52/StravisData取り込み!Z52-1)*100,1) -> 5.6 | O60: =ROUNDDOWN(StravisData取り込み!V52/1000000,0) -> 7865 | P60: =ROUNDDOWN(StravisData取り込み!W52/1000000,0) -> 8722 | Q60: =ROUNDDOWN(StravisData取り込み!Y52/1000000,0) -> 8998 | R60: =ROUNDDOWN(StravisData取り込み!AA52/1000000,0) -> 8954 | S60: =ROUNDDOWN(StravisData取り込み!AC52/1000000,0) -> 9019 | T60: =ROUNDDOWN(StravisData取り込み!AD52/1000000,0) -> 8875 | U60: =ROUNDDOWN(StravisData取り込み!AF52/1000000,0) -> 9117
D61: Jagabee/じゃがポックル Jagabee/Jagapokkuru | G61: =ROUNDDOWN(StravisData取り込み!Z53/1000000,0) -> 5804 | H61: =ROUND(StravisData取り込み!Z53/StravisData取り込み!Z$19*100,1) -> 2.9 | I61: =ROUND((StravisData取り込み!Z53/StravisData取り込み!S53-1)*100,1) -> -35.3 | J61: =ROUNDDOWN(StravisData取り込み!AG53/1000000,0) -> 6537 | K61: =ROUND(StravisData取り込み!AG53/StravisData取り込み!AG$19*100,1) -> 3.1 | L61: =ROUND((StravisData取り込み!AG53/StravisData取り込み!Z53-1)*100,1) -> 12.6 | O61: =ROUNDDOWN(StravisData取り込み!V53/1000000,0) -> 1794 | P61: =ROUNDDOWN(StravisData取り込み!W53/1000000,0) -> 2012 | Q61: =ROUNDDOWN(StravisData取り込み!Y53/1000000,0) -> 1998 | R61: =ROUNDDOWN(StravisData取り込み!AA53/1000000,0) -> 1903 | S61: =ROUNDDOWN(StravisData取り込み!AC53/1000000,0) -> 2049 | T61: =ROUNDDOWN(StravisData取り込み!AD53/1000000,0) -> 2273 | U61: =ROUNDDOWN(StravisData取り込み!AF53/1000000,0) -> 2214
C62: 小麦系スナック Flour-based snacks | G62: =ROUNDDOWN(StravisData取り込み!Z54/1000000,0) -> 15933 | H62: =ROUND(StravisData取り込み!Z54/StravisData取り込み!Z$19*100,1) -> 7.9 | I62: =ROUND((StravisData取り込み!Z54/StravisData取り込み!S54-1)*100,1) -> -2.3 | J62: =ROUNDDOWN(StravisData取り込み!AG54/1000000,0) -> 16183 | K62: =ROUND(StravisData取り込み!AG54/StravisData取り込み!AG$19*100,1) -> 7.7 | L62: =ROUND((StravisData取り込み!AG54/StravisData取り込み!Z54-1)*100,1) -> 1.6 | O62: =ROUNDDOWN(StravisData取り込み!V54/1000000,0) -> 5501 | P62: =ROUNDDOWN(StravisData取り込み!W54/1000000,0) -> 5189 | Q62: =ROUNDDOWN(StravisData取り込み!Y54/1000000,0) -> 5242 | R62: =ROUNDDOWN(StravisData取り込み!AA54/1000000,0) -> 5565 | S62: =ROUNDDOWN(StravisData取り込み!AC54/1000000,0) -> 5168 | T62: =ROUNDDOWN(StravisData取り込み!AD54/1000000,0) -> 5504 | U62: =ROUNDDOWN(StravisData取り込み!AF54/1000000,0) -> 5511
D63: かっぱえびせん Kappa Ebisen | G63: =ROUNDDOWN(StravisData取り込み!Z55/1000000,0) -> 7222 | H63: =ROUND(StravisData取り込み!Z55/StravisData取り込み!Z$19*100,1) -> 3.6 | I63: =ROUND((StravisData取り込み!Z55/StravisData取り込み!S55-1)*100,1) -> -4.7 | J63: =ROUNDDOWN(StravisData取り込み!AG55/1000000,0) -> 7717 | K63: =ROUND(StravisData取り込み!AG55/StravisData取り込み!AG$19*100,1) -> 3.7 | L63: =ROUND((StravisData取り込み!AG55/StravisData取り込み!Z55-1)*100,1) -> 6.9 | O63: =ROUNDDOWN(StravisData取り込み!V55/1000000,0) -> 2366 | P63: =ROUNDDOWN(StravisData取り込み!W55/1000000,0) -> 2346 | Q63: =ROUNDDOWN(StravisData取り込み!Y55/1000000,0) -> 2508 | R63: =ROUNDDOWN(StravisData取り込み!AA55/1000000,0) -> 2872 | S63: =ROUNDDOWN(StravisData取り込み!AC55/1000000,0) -> 2494 | T63: =ROUNDDOWN(StravisData取り込み!AD55/1000000,0) -> 2592 | U63: =ROUNDDOWN(StravisData取り込み!AF55/1000000,0) -> 2630
D64: サッポロポテト等 Sapporo potato and others | G64: =ROUNDDOWN(StravisData取り込み!Z56/1000000,0) -> 8710 | H64: =ROUND(StravisData取り込み!Z56/StravisData取り込み!Z$19*100,1) -> 4.3 | I64: =ROUND((StravisData取り込み!Z56/StravisData取り込み!S56-1)*100,1) -> -0.3 | J64: =ROUNDDOWN(StravisData取り込み!AG56/1000000,0) -> 8466 | K64: =ROUND(StravisData取り込み!AG56/StravisData取り込み!AG$19*100,1) -> 4 | L64: =ROUND((StravisData取り込み!AG56/StravisData取り込み!Z56-1)*100,1) -> -2.8 | O64: =ROUNDDOWN(StravisData取り込み!V56/1000000,0) -> 3134 | P64: =ROUNDDOWN(StravisData取り込み!W56/1000000,0) -> 2842 | Q64: =ROUNDDOWN(StravisData取り込み!Y56/1000000,0) -> 2733 | R64: =ROUNDDOWN(StravisData取り込み!AA56/1000000,0) -> 2693 | S64: =ROUNDDOWN(StravisData取り込み!AC56/1000000,0) -> 2673 | T64: =ROUNDDOWN(StravisData取り込み!AD56/1000000,0) -> 2912 | U64: =ROUNDDOWN(StravisData取り込み!AF56/1000000,0) -> 2880
C65: コーン系・豆系スナック Corn- and bean-based snacks | G65: =ROUNDDOWN(StravisData取り込み!Z57/1000000,0) -> 13242 | H65: =ROUND(StravisData取り込み!Z57/StravisData取り込み!Z$19*100,1) -> 6.6 | I65: =ROUND((StravisData取り込み!Z57/StravisData取り込み!S57-1)*100,1) -> 0.8 | J65: =ROUNDDOWN(StravisData取り込み!AG57/1000000,0) -> 14135 | K65: =ROUND(StravisData取り込み!AG57/StravisData取り込み!AG$19*100,1) -> 6.7 | L65: =ROUND((StravisData取り込み!AG57/StravisData取り込み!Z57-1)*100,1) -> 6.7 | O65: =ROUNDDOWN(StravisData取り込み!V57/1000000,0) -> 4763 | P65: =ROUNDDOWN(StravisData取り込み!W57/1000000,0) -> 4017 | Q65: =ROUNDDOWN(StravisData取り込み!Y57/1000000,0) -> 4461 | R65: =ROUNDDOWN(StravisData取り込み!AA57/1000000,0) -> 3856 | S65: =ROUNDDOWN(StravisData取り込み!AC57/1000000,0) -> 4846 | T65: =ROUNDDOWN(StravisData取り込み!AD57/1000000,0) -> 4470 | U65: =ROUNDDOWN(StravisData取り込み!AF57/1000000,0) -> 4818
C66: その他スナック Other snacks | G66: =ROUNDDOWN((StravisData取り込み!Z58)/1000000,0) -> 6076 | H66: =ROUND(StravisData取り込み!Z58/StravisData取り込み!Z$19*100,1) -> 3 | I66: =ROUND((StravisData取り込み!Z58/StravisData取り込み!S58-1)*100,1) -> -17.8 | J66: =ROUNDDOWN((StravisData取り込み!AG58)/1000000,0) -> 6932 | K66: =ROUND(StravisData取り込み!AG58/StravisData取り込み!AG$19*100,1) -> 3.3 | L66: =ROUND((StravisData取り込み!AG58/StravisData取り込み!Z58-1)*100,1) -> 14.1 | O66: =ROUNDDOWN(StravisData取り込み!V58/1000000,0) -> 1959 | P66: =ROUNDDOWN(StravisData取り込み!W58/1000000,0) -> 1936 | Q66: =ROUNDDOWN(StravisData取り込み!Y58/1000000,0) -> 2179 | R66: =ROUNDDOWN(StravisData取り込み!AA58/1000000,0) -> 2158 | S66: =ROUNDDOWN(StravisData取り込み!AC58/1000000,0) -> 2168 | T66: =ROUNDDOWN(StravisData取り込み!AD58/1000000,0) -> 2198 | U66: =ROUNDDOWN(StravisData取り込み!AF58/1000000,0) -> 2565
B67: *第１四半期連結会計期間の期首より「収益認識会計基準」を適用しており、リベート等について従来は販売費及び一般管理費として処理する方法によっておりましたが、販売時に取引金額から減額する方法に変更しております。
B68: *The Company adopted the "Accounting Standard for Revenue Recognition" from the beginning of the first quarter of the fiscal year.
B69: Rebates, etc. were previously accounted for as selling, general and administrative expenses, but the Company has changed the method to reduce this from the transaction amount at the time of sale.
B70: *上記の製品別売上高は、いずれもリベート等控除前の総売上高となっております。 *The above sales by product are all gross sales before deduction of rebates, etc.
B71: **「その他事業」を「国内その他食品」にまとめて表記 ** "Others" have been summarized in "Other domestic foods".
A77: 海外国・地域別売上高* Sales by country/area * | G77: =G6 -> FY’21/３ Q3 | H77: 伸び率(%) Change in % | J77: =J6 -> FY’22/３ Q3 | K77: 伸び率(%) Change in % | O77: =O22 -> FY’21/３ | S77: =S22 -> FY’22/３
O78: Q1 | P78: Q2 | Q78: Q3 | R78: Q4 | S78: Q1 | T78: Q2 | U78: Q3 | V78: Q4
B79: 北米 North America | E79: 百万円 | F79: M JPY | G79: =ROUNDDOWN(StravisData取り込み!Z65/1000000,0) -> 10854 | H79: =ROUND((StravisData取り込み!Z65/StravisData取り込み!S65-1)*100,1) -> 52.7 | J79: =ROUNDDOWN(StravisData取り込み!AG65/1000000,0) -> 11592 | K79: =ROUND((StravisData取り込み!AG65/StravisData取り込み!Z65-1)*100,1) -> 6.8 | O79: =ROUNDDOWN(StravisData取り込み!V65/1000000,0) -> 3530 | P79: =ROUNDDOWN(StravisData取り込み!W65/1000000,0) -> 3942 | Q79: =ROUNDDOWN(StravisData取り込み!Y65/1000000,0) -> 3381 | R79: =ROUNDDOWN(StravisData取り込み!AA65/1000000,0) -> 3587 | S79: =ROUNDDOWN(StravisData取り込み!AC65/1000000,0) -> 3974 | T79: =ROUNDDOWN(StravisData取り込み!AD65/1000000,0) -> 3674 | U79: =ROUNDDOWN(StravisData取り込み!AF65/1000000,0) -> 3942
E80: 千USD | F80: K USD | G80: =ROUNDDOWN(StravisData取り込み!Z66/1000,0) -> 102524 | H80: =ROUND((StravisData取り込み!Z66/StravisData取り込み!S66-1)*100,1) -> 57.3 | J80: =ROUNDDOWN(StravisData取り込み!AG66/1000,0) -> 104089 | K80: =ROUND((StravisData取り込み!AG66/StravisData取り込み!Z66-1)*100,1) -> 1.5 | O80: =ROUNDDOWN(StravisData取り込み!V66/1000,0) -> 32764 | P80: =ROUNDDOWN(StravisData取り込み!W66/1000,0) -> 37288 | Q80: =ROUNDDOWN(StravisData取り込み!Y66/1000,0) -> 32471 | R80: =ROUNDDOWN(StravisData取り込み!AA66/1000,0) -> 33516 | S80: =ROUNDDOWN(StravisData取り込み!AC66/1000,0) -> 36139 | T80: =ROUNDDOWN(StravisData取り込み!AD66/1000,0) -> 33291 | U80: =ROUNDDOWN(StravisData取り込み!AF66/1000,0) -> 34658
B81: 中華圏 Greater China | E81: 百万円 | F81: M JPY | G81: =ROUNDDOWN(StravisData取り込み!Z67/1000000,0) -> 11761 | H81: =ROUND((StravisData取り込み!Z67/StravisData取り込み!S67-1)*100,1) -> 21.6 | J81: =ROUNDDOWN(StravisData取り込み!AG67/1000000,0) -> 14863 | K81: =ROUND((StravisData取り込み!AG67/StravisData取り込み!Z67-1)*100,1) -> 26.4 | O81: =ROUNDDOWN(StravisData取り込み!V67/1000000,0) -> 4028 | P81: =ROUNDDOWN(StravisData取り込み!W67/1000000,0) -> 3853 | Q81: =ROUNDDOWN(StravisData取り込み!Y67/1000000,0) -> 3879 | R81: =ROUNDDOWN(StravisData取り込み!AA67/1000000,0) -> 3370 | S81: =ROUNDDOWN(StravisData取り込み!AC67/1000000,0) -> 4200 | T81: =ROUNDDOWN(StravisData取り込み!AD67/1000000,0) -> 4909 | U81: =ROUNDDOWN(StravisData取り込み!AF67/1000000,0) -> 5754
C82: 中国 China | E82: 百万円 | F82: M JPY | G82: =ROUNDDOWN(StravisData取り込み!Z68/1000000,0) -> 7550 | H82: =ROUND((StravisData取り込み!Z68/StravisData取り込み!S68-1)*100,1) -> 70.8 | J82: =ROUNDDOWN(StravisData取り込み!AG68/1000000,0) -> 11312 | K82: =ROUND((StravisData取り込み!AG68/StravisData取り込み!Z68-1)*100,1) -> 49.8 | O82: =ROUNDDOWN(StravisData取り込み!V68/1000000,0) -> 2244 | P82: =ROUNDDOWN(StravisData取り込み!W68/1000000,0) -> 2536 | Q82: =ROUNDDOWN(StravisData取り込み!Y68/1000000,0) -> 2769 | R82: =ROUNDDOWN(StravisData取り込み!AA68/1000000,0) -> 2332 | S82: =ROUNDDOWN(StravisData取り込み!AC68/1000000,0) -> 3062 | T82: =ROUNDDOWN(StravisData取り込み!AD68/1000000,0) -> 3760 | U82: =ROUNDDOWN(StravisData取り込み!AF68/1000000,0) -> 4488
E83: 千RMB | F83: K RMB | G83: =ROUNDDOWN(StravisData取り込み!Z69/1000,0) -> 490900 | H83: =ROUND((StravisData取り込み!Z69/StravisData取り込み!S69-1)*100,1) -> 74.3 | J83: =ROUNDDOWN(StravisData取り込み!AG69/1000,0) -> 654253 | K83: =ROUND((StravisData取り込み!AG69/StravisData取り込み!Z69-1)*100,1) -> 33.3 | O83: =ROUNDDOWN(StravisData取り込み!V69/1000,0) -> 148025 | P83: =ROUNDDOWN(StravisData取り込み!W69/1000,0) -> 166293 | Q83: =ROUNDDOWN(StravisData取り込み!Y69/1000,0) -> 176581 | R83: =ROUNDDOWN(StravisData取り込み!AA69/1000,0) -> 141804 | S83: =ROUNDDOWN(StravisData取り込み!AC69/1000,0) -> 180166 | T83: =ROUNDDOWN(StravisData取り込み!AD69/1000,0) -> 220514 | U83: =ROUNDDOWN(StravisData取り込み!AF69/1000,0) -> 253572
C84: 香港** Hong Kong** | E84: 百万円 | F84: M JPY | G84: =ROUNDDOWN(StravisData取り込み!Z70/1000000,0) -> 4211 | H84: =ROUND((StravisData取り込み!Z70/StravisData取り込み!S70-1)*100,1) -> -19.8 | J84: =ROUNDDOWN(StravisData取り込み!AG70/1000000,0) -> 3551 | K84: =ROUND((StravisData取り込み!AG70/StravisData取り込み!Z70-1)*100,1) -> -15.7 | O84: =ROUNDDOWN(StravisData取り込み!V70/1000000,0) -> 1784 | P84: =ROUNDDOWN(StravisData取り込み!W70/1000000,0) -> 1316 | Q84: =ROUNDDOWN(StravisData取り込み!Y70/1000000,0) -> 1110 | R84: =ROUNDDOWN(StravisData取り込み!AA70/1000000,0) -> 1037 | S84: =ROUNDDOWN(StravisData取り込み!AC70/1000000,0) -> 1137 | T84: =ROUNDDOWN(StravisData取り込み!AD70/1000000,0) -> 1148 | U84: =ROUNDDOWN(StravisData取り込み!AF70/1000000,0) -> 1265
E85: 千HKD | F85: K HKD | G85: =ROUNDDOWN(StravisData取り込み!Z71/1000,0) -> 308276 | H85: =ROUND((StravisData取り込み!Z71/StravisData取り込み!S71-1)*100,1) -> -18.2 | J85: =ROUNDDOWN(StravisData取り込み!AG71/1000,0) -> 248205 | K85: =ROUND((StravisData取り込み!AG71/StravisData取り込み!Z71-1)*100,1) -> -19.5 | O85: =ROUNDDOWN(StravisData取り込み!V71/1000,0) -> 128362 | P85: =ROUNDDOWN(StravisData取り込み!W71/1000,0) -> 96987 | Q85: =ROUNDDOWN(StravisData取り込み!Y71/1000,0) -> 82926 | R85: =ROUNDDOWN(StravisData取り込み!AA71/1000,0) -> 75099 | S85: =ROUNDDOWN(StravisData取り込み!AC71/1000,0) -> 80352 | T85: =ROUNDDOWN(StravisData取り込み!AD71/1000,0) -> 80992 | U85: =ROUNDDOWN(StravisData取り込み!AF71/1000,0) -> 86861
B86: 英国 United Kingdom | E86: 百万円 | F86: M JPY | G86: =ROUNDDOWN(StravisData取り込み!Z73/1000000,0) -> 4860 | H86: =ROUND((StravisData取り込み!Z73/StravisData取り込み!S73-1)*100,1) -> 8 | J86: =ROUNDDOWN(StravisData取り込み!AG73/1000000,0) -> 5973 | K86: =ROUND((StravisData取り込み!AG73/StravisData取り込み!Z73-1)*100,1) -> 22.9 | O86: =ROUNDDOWN(StravisData取り込み!V73/1000000,0) -> 1568 | P86: =ROUNDDOWN(StravisData取り込み!W73/1000000,0) -> 1650 | Q86: =ROUNDDOWN(StravisData取り込み!Y73/1000000,0) -> 1642 | R86: =ROUNDDOWN(StravisData取り込み!AA73/1000000,0) -> 1646 | S86: =ROUNDDOWN(StravisData取り込み!AC73/1000000,0) -> 1937 | T86: =ROUNDDOWN(StravisData取り込み!AD73/1000000,0) -> 1910 | U86: =ROUNDDOWN(StravisData取り込み!AF73/1000000,0) -> 2124
E87: 千GBP | F87: K GBP | G87: =ROUNDDOWN(StravisData取り込み!Z74/1000,0) -> 35773 | H87: =ROUND((StravisData取り込み!Z74/StravisData取り込み!S74-1)*100,1) -> 9.9 | J87: =ROUNDDOWN(StravisData取り込み!AG74/1000,0) -> 39013 | K87: =ROUND((StravisData取り込み!AG74/StravisData取り込み!Z74-1)*100,1) -> 9.1 | O87: =ROUNDDOWN(StravisData取り込み!V74/1000,0) -> 11805 | P87: =ROUNDDOWN(StravisData取り込み!W74/1000,0) -> 12029 | Q87: =ROUNDDOWN(StravisData取り込み!Y74/1000,0) -> 11937 | R87: =ROUNDDOWN(StravisData取り込み!AA74/1000,0) -> 11149 | S87: =ROUNDDOWN(StravisData取り込み!AC74/1000,0) -> 12647 | T87: =ROUNDDOWN(StravisData取り込み!AD74/1000,0) -> 12592 | U87: =ROUNDDOWN(StravisData取り込み!AF74/1000,0) -> 13773
B88: インドネシア Indonesia | E88: 百万円 | F88: M JPY | G88: =ROUNDDOWN(StravisData取り込み!Z76/1000000,0) -> 2977 | H88: =ROUND((StravisData取り込み!Z76/StravisData取り込み!S76-1)*100,1) -> -12.3 | J88: =ROUNDDOWN(StravisData取り込み!AG76/1000000,0) -> 4201 | K88: =ROUND((StravisData取り込み!AG76/StravisData取り込み!Z76-1)*100,1) -> 41.1 | O88: =ROUNDDOWN(StravisData取り込み!V76/1000000,0) -> 855 | P88: =ROUNDDOWN(StravisData取り込み!W76/1000000,0) -> 1078 | Q88: =ROUNDDOWN(StravisData取り込み!Y76/1000000,0) -> 1042 | R88: =ROUNDDOWN(StravisData取り込み!AA76/1000000,0) -> 1078 | S88: =ROUNDDOWN(StravisData取り込み!AC76/1000000,0) -> 1367 | T88: =ROUNDDOWN(StravisData取り込み!AD76/1000000,0) -> 1197 | U88: =ROUNDDOWN(StravisData取り込み!AF76/1000000,0) -> 1636
E89: 百万IDR | F89: M IDR | G89: =ROUNDDOWN(StravisData取り込み!Z77/1000000,0) -> 413488 | H89: =ROUND((StravisData取り込み!Z77/StravisData取り込み!S77-1)*100,1) -> -6.2 | J89: =ROUNDDOWN(StravisData取り込み!AG77/1000000,0) -> 538649 | K89: =ROUND((StravisData取り込み!AG77/StravisData取り込み!Z77-1)*100,1) -> 30.3 | O89: =ROUNDDOWN(StravisData取り込み!V77/1000000,0) -> 120549 | P89: =ROUNDDOWN(StravisData取り込み!W77/1000000,0) -> 151914 | Q89: =ROUNDDOWN(StravisData取り込み!Y77/1000000,0) -> 141024 | R89: =ROUNDDOWN(StravisData取り込み!AA77/1000000,0) -> 142083 | S89: =ROUNDDOWN(StravisData取り込み!AC77/1000000,0) -> 179907 | T89: =ROUNDDOWN(StravisData取り込み!AD77/1000000,0) -> 153200 | U89: =ROUNDDOWN(StravisData取り込み!AF77/1000000,0) -> 205541
B90: 上記以外 Other regions | E90: 百万円 | F90: M JPY | G90: =ROUNDDOWN(StravisData取り込み!Z78/1000000,0) -> 9711 | H90: =ROUND((StravisData取り込み!Z78/StravisData取り込み!S78-1)*100,1) -> 11.4 | J90: =ROUNDDOWN(StravisData取り込み!AG78/1000000,0) -> 10875 | K90: =ROUND((StravisData取り込み!AG78/StravisData取り込み!Z78-1)*100,1) -> 12 | O90: =ROUNDDOWN(StravisData取り込み!V78/1000000,0) -> 2948 | P90: =ROUNDDOWN(StravisData取り込み!W78/1000000,0) -> 3206 | Q90: =ROUNDDOWN(StravisData取り込み!Y78/1000000,0) -> 3556 | R90: =ROUNDDOWN(StravisData取り込み!AA78/1000000,0) -> 3259 | S90: =ROUNDDOWN(StravisData取り込み!AC78/1000000,0) -> 3609 | T90: =ROUNDDOWN(StravisData取り込み!AD78/1000000,0) -> 3676 | U90: =ROUNDDOWN(StravisData取り込み!AF78/1000000,0) -> 3589
C91: 韓国 South Korea | E91: 百万円 | F91: M JPY | G91: =ROUNDDOWN(StravisData取り込み!Z79/1000000,0) -> 3055 | H91: =ROUND((StravisData取り込み!Z79/StravisData取り込み!S79-1)*100,1) -> 7.3 | J91: =ROUNDDOWN(StravisData取り込み!AG79/1000000,0) -> 3350 | K91: =ROUND((StravisData取り込み!AG79/StravisData取り込み!Z79-1)*100,1) -> 9.7 | O91: =ROUNDDOWN(StravisData取り込み!V79/1000000,0) -> 924 | P91: =ROUNDDOWN(StravisData取り込み!W79/1000000,0) -> 1005 | Q91: =ROUNDDOWN(StravisData取り込み!Y79/1000000,0) -> 1126 | R91: =ROUNDDOWN(StravisData取り込み!AA79/1000000,0) -> 1143 | S91: =ROUNDDOWN(StravisData取り込み!AC79/1000000,0) -> 1166 | T91: =ROUNDDOWN(StravisData取り込み!AD79/1000000,0) -> 1171 | U91: =ROUNDDOWN(StravisData取り込み!AF79/1000000,0) -> 1013
E92: 百万KRW | F92: M KRW | G92: =ROUNDDOWN(StravisData取り込み!Z80/1000000,0) -> 33803 | H92: =ROUND((StravisData取り込み!Z80/StravisData取り込み!S80-1)*100,1) -> 10.5 | J92: =ROUNDDOWN(StravisData取り込み!AG80/1000000,0) -> 34652 | K92: =ROUND((StravisData取り込み!AG80/StravisData取り込み!Z80-1)*100,1) -> 2.5 | O92: =ROUNDDOWN(StravisData取り込み!V80/1000000,0) -> 10432 | P92: =ROUNDDOWN(StravisData取り込み!W80/1000000,0) -> 11273 | Q92: =ROUNDDOWN(StravisData取り込み!Y80/1000000,0) -> 12097 | R92: =ROUNDDOWN(StravisData取り込み!AA80/1000000,0) -> 12042 | S92: =ROUNDDOWN(StravisData取り込み!AC80/1000000,0) -> 11891 | T92: =ROUNDDOWN(StravisData取り込み!AD80/1000000,0) -> 12285 | U92: =ROUNDDOWN(StravisData取り込み!AF80/1000000,0) -> 10475
C93: タイ Thailand | E93: 百万円 | F93: M JPY | G93: =ROUNDDOWN(StravisData取り込み!Z81/1000000,0) -> 2685 | H93: =ROUND((StravisData取り込み!Z81/StravisData取り込み!S81-1)*100,1) -> -6.8 | J93: =ROUNDDOWN(StravisData取り込み!AG81/1000000,0) -> 2903 | K93: =ROUND((StravisData取り込み!AG81/StravisData取り込み!Z81-1)*100,1) -> 8.1 | O93: =ROUNDDOWN(StravisData取り込み!V81/1000000,0) -> 805 | P93: =ROUNDDOWN(StravisData取り込み!W81/1000000,0) -> 874 | Q93: =ROUNDDOWN(StravisData取り込み!Y81/1000000,0) -> 1005 | R93: =ROUNDDOWN(StravisData取り込み!AA81/1000000,0) -> 846 | S93: =ROUNDDOWN(StravisData取り込み!AC81/1000000,0) -> 922 | T93: =ROUNDDOWN(StravisData取り込み!AD81/1000000,0) -> 942 | U93: =ROUNDDOWN(StravisData取り込み!AF81/1000000,0) -> 1038
E94: 千THB | F94: K THB | G94: =ROUNDDOWN(StravisData取り込み!Z82/1000,0) -> 794570 | H94: =ROUND((StravisData取り込み!Z82/StravisData取り込み!S82-1)*100,1) -> -2.7 | J94: =ROUNDDOWN(StravisData取り込み!AG82/1000,0) -> 848926 | K94: =ROUND((StravisData取り込み!AG82/StravisData取り込み!Z82-1)*100,1) -> 6.8 | O94: =ROUNDDOWN(StravisData取り込み!V82/1000,0) -> 239107 | P94: =ROUNDDOWN(StravisData取り込み!W82/1000,0) -> 260991 | Q94: =ROUNDDOWN(StravisData取り込み!Y82/1000,0) -> 294470 | R94: =ROUNDDOWN(StravisData取り込み!AA82/1000,0) -> 241253 | S94: =ROUNDDOWN(StravisData取り込み!AC82/1000,0) -> 264337 | T94: =ROUNDDOWN(StravisData取り込み!AD82/1000,0) -> 280964 | U94: =ROUNDDOWN(StravisData取り込み!AF82/1000,0) -> 303624
C95: シンガポール Singapore | E95: 百万円 | F95: M JPY | G95: =ROUNDDOWN(StravisData取り込み!Z83/1000000,0) -> 1215 | H95: =ROUND((StravisData取り込み!Z83/StravisData取り込み!S83-1)*100,1) -> 15.6 | J95: =ROUNDDOWN(StravisData取り込み!AG83/1000000,0) -> 1288 | K95: =ROUND((StravisData取り込み!AG83/StravisData取り込み!Z83-1)*100,1) -> 6 | O95: =ROUNDDOWN(StravisData取り込み!V83/1000000,0) -> 409 | P95: =ROUNDDOWN(StravisData取り込み!W83/1000000,0) -> 416 | Q95: =ROUNDDOWN(StravisData取り込み!Y83/1000000,0) -> 389 | R95: =ROUNDDOWN(StravisData取り込み!AA83/1000000,0) -> 348 | S95: =ROUNDDOWN(StravisData取り込み!AC83/1000000,0) -> 420 | T95: =ROUNDDOWN(StravisData取り込み!AD83/1000000,0) -> 420 | U95: =ROUNDDOWN(StravisData取り込み!AF83/1000000,0) -> 446
E96: 千SGD | F96: K SGD | G96: =ROUNDDOWN(StravisData取り込み!Z84/1000,0) -> 15813 | H96: =ROUND((StravisData取り込み!Z84/StravisData取り込み!S84-1)*100,1) -> 20 | J96: =ROUNDDOWN(StravisData取り込み!AG84/1000,0) -> 15571 | K96: =ROUND((StravisData取り込み!AG84/StravisData取り込み!Z84-1)*100,1) -> -1.5 | O96: =ROUNDDOWN(StravisData取り込み!V84/1000,0) -> 5371 | P96: =ROUNDDOWN(StravisData取り込み!W84/1000,0) -> 5414 | Q96: =ROUNDDOWN(StravisData取り込み!Y84/1000,0) -> 5027 | R96: =ROUNDDOWN(StravisData取り込み!AA84/1000,0) -> 4328 | S96: =ROUNDDOWN(StravisData取り込み!AC84/1000,0) -> 5111 | T96: =ROUNDDOWN(StravisData取り込み!AD84/1000,0) -> 5142 | U96: =ROUNDDOWN(StravisData取り込み!AF84/1000,0) -> 5318
C97: オーストラリア Australia | E97: 百万円 | F97: M JPY | G97: =ROUNDDOWN(StravisData取り込み!Z85/1000000,0) -> 2754 | H97: =ROUND((StravisData取り込み!Z85/StravisData取り込み!S85-1)*100,1) -> 42.5 | J97: =ROUNDDOWN(StravisData取り込み!AG85/1000000,0) -> 3332 | K97: =ROUND((StravisData取り込み!AG85/StravisData取り込み!Z85-1)*100,1) -> 21 | O97: =ROUNDDOWN(StravisData取り込み!V85/1000000,0) -> 808 | P97: =ROUNDDOWN(StravisData取り込み!W85/1000000,0) -> 909 | Q97: =ROUNDDOWN(StravisData取り込み!Y85/1000000,0) -> 1035 | R97: =ROUNDDOWN(StravisData取り込み!AA85/1000000,0) -> 920 | S97: =ROUNDDOWN(StravisData取り込み!AC85/1000000,0) -> 1099 | T97: =ROUNDDOWN(StravisData取り込み!AD85/1000000,0) -> 1142 | U97: =ROUNDDOWN(StravisData取り込み!AF85/1000000,0) -> 1091
E98: 千AUD | F98: K AUD | G98: =ROUNDDOWN(StravisData取り込み!Z86/1000,0) -> 37283 | H98: =ROUND((StravisData取り込み!Z86/StravisData取り込み!S86-1)*100,1) -> 45.2 | J98: =ROUNDDOWN(StravisData取り込み!AG86/1000,0) -> 40224 | K98: =ROUND((StravisData取り込み!AG86/StravisData取り込み!Z86-1)*100,1) -> 7.9 | O98: =ROUNDDOWN(StravisData取り込み!V86/1000,0) -> 11507 | P98: =ROUNDDOWN(StravisData取り込み!W86/1000,0) -> 12106 | Q98: =ROUNDDOWN(StravisData取り込み!Y86/1000,0) -> 13669 | R98: =ROUNDDOWN(StravisData取り込み!AA86/1000,0) -> 11140 | S98: =ROUNDDOWN(StravisData取り込み!AC86/1000,0) -> 13060 | T98: =ROUNDDOWN(StravisData取り込み!AD86/1000,0) -> 14077 | U98: =ROUNDDOWN(StravisData取り込み!AF86/1000,0) -> 13086
B99: *第１四半期連結会計期間の期首より「収益認識会計基準」を適用しており、リベート等について従来は販売費及び一般管理費として処理する方法によっておりましたが、販売時に取引金額から減額する方法に変更しております。
B100: *The Company adopted the "Accounting Standard for Revenue Recognition" from the beginning of the first quarter of the fiscal year.
B101: Rebates, etc. were previously accounted for as selling, general and administrative expenses, but the Company has changed the method to reduce this from the transaction amount at the time of sale.
B102: *上記の海外国・地域別売上高は、いずれもリベート等控除前の総売上高となっております。 *All of the above sales by overseas country and region are gross sales before deduction of rebates, etc.
B103: **香港のうち、カルビーイーコマースの採用通貨はJPY **Within Hong Kong, Calbee E-commerce uses JPY
A105: 国内営業利益、海外営業利益 Domestic and Overseas operating profit （百万円 Million yen） | G105: =G6 -> FY’21/３ Q3 | H105: 営業利益率(%) Operating margin | J105: =J6 -> FY’22/３ Q3 | K105: 営業利益率(%) Operating margin | O105: =O22 -> FY’21/３ | S105: =S22 -> FY’22/３
O106: Q1 | P106: Q2 | Q106: Q3 | R106: Q4 | S106: Q1 | T106: Q2 | U106: Q3 | V106: Q4
B107: 国内営業利益 Domestic operating profit | G107: =ROUNDDOWN(StravisData取り込み!Z95/1000000,0) -> 19514 | H107: =ROUND(StravisData取り込み!Z95/StravisData取り込み!Z43*100,1) -> 12.1 | J107: =ROUNDDOWN(StravisData取り込み!AG95/1000000,0) -> 19365 | K107: =ROUND(StravisData取り込み!AG95/StravisData取り込み!AG43*100,1) -> 11.9 | O107: =ROUNDDOWN(StravisData取り込み!V95/1000000,0) -> 5603 | P107: =ROUNDDOWN(StravisData取り込み!W95/1000000,0) -> 5767 | Q107: =ROUNDDOWN(StravisData取り込み!Y95/1000000,0) -> 8143 | R107: =ROUNDDOWN(StravisData取り込み!AA95/1000000,0) -> 5188 | S107: =ROUNDDOWN(StravisData取り込み!AC95/1000000,0) -> 6342 | T107: =ROUNDDOWN(StravisData取り込み!AD95/1000000,0) -> 5856 | U107: =ROUNDDOWN(StravisData取り込み!AF95/1000000,0) -> 7165
B108: 海外営業利益 Overseas operating profit | G108: =ROUNDDOWN(StravisData取り込み!Z96/1000000,0) -> 2327 | H108: =ROUND(StravisData取り込み!Z96/StravisData取り込み!Z46*100,1) -> 5.8 | J108: =ROUNDDOWN(StravisData取り込み!AG96/1000000,0) -> 1520 | K108: =ROUND(StravisData取り込み!AG96/StravisData取り込み!AG46*100,1) -> 3.2 | O108: =ROUNDDOWN(StravisData取り込み!V96/1000000,0) -> 949 | P108: =ROUNDDOWN(StravisData取り込み!W96/1000000,0) -> 694 | Q108: =ROUNDDOWN(StravisData取り込み!Y96/1000000,0) -> 683 | R108: =ROUNDDOWN(StravisData取り込み!AA96/1000000,0) -> 34 | S108: =ROUNDDOWN(StravisData取り込み!AC96/1000000,0) -> 595 | T108: =ROUNDDOWN(StravisData取り込み!AD96/1000000,0) -> 506 | U108: =ROUNDDOWN(StravisData取り込み!AF96/1000000,0) -> 417
C109: 北米 North America | G109: =ROUNDDOWN(StravisData取り込み!Z97/1000000,0) -> 687 | H109: =ROUND(StravisData取り込み!Z97/StravisData取り込み!Z64*100,1) -> 6.3 | J109: =ROUNDDOWN(StravisData取り込み!AG97/1000000,0) -> -70 | K109: =ROUND(StravisData取り込み!AG97/StravisData取り込み!AG64*100,1) -> -0.6 | O109: =ROUNDDOWN(StravisData取り込み!V97/1000000,0) -> 111 | P109: =ROUNDDOWN(StravisData取り込み!W97/1000000,0) -> 277 | Q109: =ROUNDDOWN(StravisData取り込み!Y97/1000000,0) -> 297 | R109: =ROUNDDOWN(StravisData取り込み!AA97/1000000,0) -> -63 | S109: =ROUNDDOWN(StravisData取り込み!AC97/1000000,0) -> 54 | T109: =ROUNDDOWN(StravisData取り込み!AD97/1000000,0) -> -3 | U109: =ROUNDDOWN(StravisData取り込み!AF97/1000000,0) -> -122
C110: 中華圏 Greater China | G110: =ROUNDDOWN(StravisData取り込み!Z98/1000000,0) -> 685 | H110: =ROUND(StravisData取り込み!Z98/StravisData取り込み!Z67*100,1) -> 5.8 | J110: =ROUNDDOWN(StravisData取り込み!AG98/1000000,0) -> 881 | K110: =ROUND(StravisData取り込み!AG98/StravisData取り込み!AG67*100,1) -> 5.9 | O110: =ROUNDDOWN(StravisData取り込み!V98/1000000,0) -> 483 | P110: =ROUNDDOWN(StravisData取り込み!W98/1000000,0) -> 160 | Q110: =ROUNDDOWN(StravisData取り込み!Y98/1000000,0) -> 42 | R110: =ROUNDDOWN(StravisData取り込み!AA98/1000000,0) -> -69 | S110: =ROUNDDOWN(StravisData取り込み!AC98/1000000,0) -> 257 | T110: =ROUNDDOWN(StravisData取り込み!AD98/1000000,0) -> 384 | U110: =ROUNDDOWN(StravisData取り込み!AF98/1000000,0) -> 239
C111: 英国 United Kingdom | G111: =ROUNDDOWN(StravisData取り込み!Z102 /1000000,0) -> 134 | H111: =ROUND(StravisData取り込み!Z102/StravisData取り込み!Z73*100,1) -> 2.8 | J111: =ROUNDDOWN(StravisData取り込み!AG102 /1000000,0) -> 28 | K111: =ROUND(StravisData取り込み!AG102/StravisData取り込み!AG73*100,1) -> 0.5 | O111: =ROUNDDOWN(StravisData取り込み!V102/1000000,0) -> 15 | P111: =ROUNDDOWN(StravisData取り込み!W102/1000000,0) -> 47 | Q111: =ROUNDDOWN(StravisData取り込み!Y102/1000000,0) -> 70 | R111: =ROUNDDOWN(StravisData取り込み!AA102/1000000,0) -> 20 | S111: =ROUNDDOWN(StravisData取り込み!AC102/1000000,0) -> -19 | T111: =ROUNDDOWN(StravisData取り込み!AD102/1000000,0) -> 15 | U111: =ROUNDDOWN(StravisData取り込み!AF102/1000000,0) -> 31
C112: インドネシア Indonesia | G112: =ROUNDDOWN(StravisData取り込み!Z103 /1000000,0) -> -232 | H112: =ROUND(StravisData取り込み!Z103/StravisData取り込み!Z76*100,1) -> -7.8 | J112: =ROUNDDOWN(StravisData取り込み!AG103 /1000000,0) -> -387 | K112: =ROUND(StravisData取り込み!AG103/StravisData取り込み!AG76*100,1) -> -9.2 | O112: =ROUNDDOWN(StravisData取り込み!V103/1000000,0) -> -64 | P112: =ROUNDDOWN(StravisData取り込み!W103/1000000,0) -> -87 | Q112: =ROUNDDOWN(StravisData取り込み!Y103/1000000,0) -> -81 | R112: =ROUNDDOWN(StravisData取り込み!AA103/1000000,0) -> -269 | S112: =ROUNDDOWN(StravisData取り込み!AC103/1000000,0) -> -52 | T112: =ROUNDDOWN(StravisData取り込み!AD103/1000000,0) -> -313 | U112: =ROUNDDOWN(StravisData取り込み!AF103/1000000,0) -> -22
A113: @ | O113: =ROUNDDOWN(StravisData取り込み!AU105/1000000,0) -> 0 | P113: =ROUNDDOWN(StravisData取り込み!AV105/1000000,0) -> 0 | Q113: =ROUNDDOWN(StravisData取り込み!AW105/1000000,0) -> 0 | R113: =ROUNDDOWN(StravisData取り込み!AX105/1000000,0) -> 0 | S113: =ROUNDDOWN(StravisData取り込み!AZ105/1000000,0) -> 0 | T113: =ROUNDDOWN(StravisData取り込み!BA105/1000000,0) -> 0 | U113: =ROUNDDOWN(StravisData取り込み!BB105/1000000,0) -> 0
C114: その他地域 Other regions | G114: =ROUNDDOWN(StravisData取り込み!Z104/1000000,0) -> 1052 | H114: =ROUND(StravisData取り込み!Z104/StravisData取り込み!Z78*100,1) -> 10.8 | J114: =ROUNDDOWN(StravisData取り込み!AG104/1000000,0) -> 1069 | K114: =ROUND(StravisData取り込み!AG104/StravisData取り込み!AG78*100,1) -> 9.8 | O114: =ROUNDDOWN(StravisData取り込み!V104/1000000,0) -> 402 | P114: =ROUNDDOWN(StravisData取り込み!W104/1000000,0) -> 295 | Q114: =ROUNDDOWN(StravisData取り込み!Y104/1000000,0) -> 354 | R114: =ROUNDDOWN(StravisData取り込み!AA104/1000000,0) -> 416 | S114: =ROUNDDOWN(StravisData取り込み!AC104/1000000,0) -> 354 | T114: =ROUNDDOWN(StravisData取り込み!AD104/1000000,0) -> 423 | U114: =ROUNDDOWN(StravisData取り込み!AF104/1000000,0) -> 291
A115: @
A116: @
A117: @
A118: @
A119: @
O120: =ROUNDDOWN(StravisData取り込み!L110/1000000,0) -> 0 | P120: =ROUNDDOWN(円!AP111/1000000,0) -> -142 | Q120: =ROUNDDOWN(円!AK111/1000000,0) -> -90 | R120: =ROUNDDOWN(円!AM111/1000000,0) -> -186 | S120: =ROUNDDOWN(StravisData取り込み!U110/1000000,0) -> 0
A121: @
A122: @
A123: @
B124: *上記の営業利益率は、リベート等控除前の総売上高に対する割合を表示しております。 *The operating margin above represents the percentage of gross sales before rebates and other deductions.
A126: 為替レート Exchange rate | G126: =G6 -> FY’21/３ Q3 | J126: =J6 -> FY’22/３ Q3
B128: 期中平均レート Average rate during the period
C129: USD/JPY | G129: =ROUNDDOWN(StravisData取り込み!Z117,2) -> 105.87 | J129: =ROUNDDOWN(StravisData取り込み!AG117,2) -> 111.37
C130: RMB/JPY | G130: =ROUNDDOWN(StravisData取り込み!Z118,2) -> 15.38 | J130: =ROUNDDOWN(StravisData取り込み!AG118,2) -> 17.29
C131: GBP/JPY | G131: =ROUNDDOWN(StravisData取り込み!Z127,2) -> 135.88 | J131: =ROUNDDOWN(StravisData取り込み!AG127,2) -> 153.1
C132: IDR/JPY | G132: =ROUNDDOWN(StravisData取り込み!Z125,4) -> 0.0072 | J132: =ROUNDDOWN(StravisData取り込み!AG125,4) -> 0.0078
A133: @ | C133: HKD/JPY
A134: @ | C134: TWD/JPY
C135: KRW/JPY | G135: =ROUNDDOWN(StravisData取り込み!U121,4) -> 0.0925 | J135: =ROUNDDOWN(StravisData取り込み!X121,4) -> 0.0889
A136: @ | C136: THB/JPY
A137: @ | C137: PHP/JPY
A138: @ | C138: SGD/JPY
A139: @ | C139: AUD/JPY
A140: @ | C140: EUR/JPY
B141: 期末日レート Current rate | G141: As of Dec. 31, 2020 | J141: As of Dec. 31, 2021
C142: USD/JPY | G142: =ROUNDDOWN(StravisData取り込み!Z130,2) -> 103.5 | J142: =ROUNDDOWN(StravisData取り込み!AG130,2) -> 115.02
C143: RMB/JPY | G143: =ROUNDDOWN(StravisData取り込み!Z131,2) -> 15.88 | J143: =ROUNDDOWN(StravisData取り込み!AG131,2) -> 18.06
C144: GBP/JPY | G144: =ROUNDDOWN(StravisData取り込み!Z132,2) -> 139.82 | J144: =ROUNDDOWN(StravisData取り込み!AG132,2) -> 155.24
C145: IDR/JPY | G145: =ROUNDDOWN(StravisData取り込み!Z133,4) -> 0.0074 | J145: =ROUNDDOWN(StravisData取り込み!AG133,4) -> 0.0081
A146: 設備投資・減価償却 Capex and depreciation （百万円 Million yen） | G146: FY'20/3 (累計) (YTD) | H146: 増減 YoY | J146: FY'20/3 (累計) (YTD) | K146: 増減 YoY
B148: 設備投資 Capex | G148: =ROUNDDOWN(StravisData取り込み!U137,0) -> 9004 | H148: =ROUNDDOWN((StravisData取り込み!U137-StravisData取り込み!N137),0) -> -941 | J148: =ROUNDDOWN(StravisData取り込み!X137,0) -> 0 | K148: =ROUNDDOWN((StravisData取り込み!X137-StravisData取り込み!Q137),0) -> 0
C149: 国内 Domestic | G149: =ROUNDDOWN(StravisData取り込み!U138,0) -> 7765 | H149: =ROUNDDOWN((StravisData取り込み!U138-StravisData取り込み!N138),0) -> 8 | J149: =ROUNDDOWN(StravisData取り込み!X138,0) -> 0 | K149: =ROUNDDOWN((StravisData取り込み!X138-StravisData取り込み!Q138),0) -> 0
C150: 海外 Overseas | G150: =ROUNDDOWN(StravisData取り込み!U139,0) -> 1239 | H150: =ROUNDDOWN((StravisData取り込み!U139-StravisData取り込み!N139),0) -> -949 | J150: =ROUNDDOWN(StravisData取り込み!X139,0) -> 0 | K150: =ROUNDDOWN((StravisData取り込み!X139-StravisData取り込み!Q139),0) -> 0
B151: 減価償却費 Depreciation | G151: =ROUNDDOWN(StravisData取り込み!U140/1000000,0) -> 8449 | H151: =ROUNDDOWN((StravisData取り込み!U140-StravisData取り込み!N140)/1000000,0) -> 425 | J151: =ROUNDDOWN(StravisData取り込み!X140/1000000,0) -> 0 | K151: =ROUNDDOWN((StravisData取り込み!X140-StravisData取り込み!Q140)/1000000,0) -> 0
C152: 国内 Domestic | G152: =ROUNDDOWN(StravisData取り込み!U141/1000000,0) -> 6416 | H152: =ROUNDDOWN((StravisData取り込み!U141-StravisData取り込み!N141)/1000000,0) -> 217 | J152: =ROUNDDOWN(StravisData取り込み!X141/1000000,0) -> 0 | K152: =ROUNDDOWN((StravisData取り込み!X141-StravisData取り込み!Q141)/1000000,0) -> 0
C153: 海外 Overseas | G153: =ROUNDDOWN(StravisData取り込み!U142/1000000,0) -> 2033 | H153: =ROUNDDOWN((StravisData取り込み!U142-StravisData取り込み!N142)/1000000,0) -> 207 | J153: =ROUNDDOWN(StravisData取り込み!X142/1000000,0) -> 0 | K153: =ROUNDDOWN((StravisData取り込み!X142-StravisData取り込み!Q142)/1000000,0) -> 0
A155: @
A156: @
A157: 研究開発費 Research and development costs（百万円 Million yen) | G157: FY'20/3 (累計) (YTD) | H157: 構成比(％) Percent of Net sales | I157: 伸び率(%) Change in % | J157: FY'20/3 (累計) (YTD) | K157: 構成比(％) Percent of Net sales | L157: 伸び率(%) Change in %
B159: 研究開発費 Research and development costs | G159: =ROUNDDOWN(StravisData取り込み!U148/1000000,0) -> 2745 | H159: =ROUND(StravisData取り込み!U148/StravisData取り込み!U$19 *100,1) -> 1.1 | I159: =ROUND((StravisData取り込み!U148/StravisData取り込み!N148-1)*100,1) -> 3.2 | J159: =ROUNDDOWN(StravisData取り込み!X148/1000000,0) -> 0 | K159: =ROUND(StravisData取り込み!X148/StravisData取り込み!X$19 *100,1) -> 0 | L159: =ROUND((StravisData取り込み!Z148/StravisData取り込み!Q148-1)*100,1) -> 
A161: 配当状況 Dividends | G161: FY'20/3 (累計) (YTD) | H161: 増減 YoY | J161: FY'20/3 (累計) (YTD) | K161: 増減 YoY
B163: 1株当たり年間配当金 Annual dividend per share (円 Yen) | G163: =ROUNDDOWN(StravisData取り込み!U152,2) -> 50 | H163: =ROUNDDOWN(StravisData取り込み!U152,2)-ROUNDDOWN(StravisData取り込み!N152,2) -> 2 | J163: =ROUNDDOWN(StravisData取り込み!X152,2) -> 0 | K163: =ROUNDDOWN(StravisData取り込み!X152,2)-ROUNDDOWN(StravisData取り込み!Q152,2) -> 0
B164: 配当性向 Dividend payout ratio (%) | G164: =ROUND(StravisData取り込み!U153,1) -> 38.1 | H164: =ROUND(G164-#REF!,1) ->  | J164: =ROUND(StravisData取り込み!X153,1) -> 0 | K164: =ROUND(J164-G164,1) -> -38.1
B165: 配当金総額 Total dividend amount (百万円 Million yen) | G165: =ROUNDDOWN(StravisData取り込み!U154/1000000,0) -> 6696 | H165: =ROUNDDOWN((StravisData取り込み!U154-StravisData取り込み!N154)/1000000,0) -> 268 | J165: =ROUNDDOWN(StravisData取り込み!X154/1000000,0) -> 0 | K165: =ROUNDDOWN((StravisData取り込み!X154-StravisData取り込み!Q154)/1000000,0) -> 0

Sheet StravisData取り込み (hidden)
E1: 会計期間 | H1: 2019年3月期 | O1: 2020年3月期 | V1: 2021年3月期 | AC1: 2022年3月期
E2: 会計期間 | F2: 201709T | G2: 201712T | H2: 201803T | J2: 201806T | L2: 201809T | N2: 201812T | O2: 201903T | Q2: 201906T | S2: 201909T | U2: 201912T | V2: 202003T | X2: 202006T | Z2: 202009T | AB2: 202012T | AC2: 202103T | AE2: 202106T | AG2: 202109T | AI2: 202112T
A4: 財務指標
H5: １Q | I5: ２Q | J5: 上期 | K5: ３Q | L5: 3Q累計 | M5: 4Q | N5: ４Q累計 | O5: １Q | P5: ２Q | Q5: ２Q累計 | R5: ３Q | S5: 3Q累計 | T5: 4Q | U5: ４Q累計 | V5: １Q | W5: ２Q | X5: ２Q累計 | Y5: ３Q | Z5: 3Q累計 | AA5: 4Q | AB5: ４Q累計 | AC5: １Q | AD5: ２Q | AE5: ２Q累計 | AF5: ３Q | AG5: 3Q累計 | AH5: 4Q | AI5: ４Q累計
B6: 自己資本利益率 ROE (%) | G6: 12.95781691 | N6: 13.24863608 | AB6: 10.44405212
B7: 1株あたり当期純利益 EPS (円 yen) | G7: 129.72 | L7: 112.4 | N7: 145.39 | O7: 31.76 | Q7: 65.99 | S7: 109.83 | U7: 131.22 | V7: 30.3 | X7: 61.52 | Z7: 105.11 | AB7: 132.3 | AC7: 37.07 | AE7: 68.68 | AG7: 110.23
B8: 1株当たり純資産額 | G8: 1043.37 | N8: 1151.71 | U8: 1221.19 | AB8: 1312.24
B9: 営業活動によるCF | G9: 9358968238 | H9: 5730343440 | J9: 12283757461 | L9: 11380668418 | N9: 27620969848 | O9: 5102000942 | Q9: 25154702760 | S9: 13812220516 | U9: 40449269550 | V9: 6367608100 | X9: 14648403333 | Z9: 3388536455 | AB9: 30450730256 | AC9: 5163220731 | AE9: 12792482354 | AG9: -4106975751 | AI9: 0
B10: 投資活動によるCF | G10: -6258088694 | H10: -3992357429 | J10: -14600111851 | L10: -19170063947 | N10: -28347343393 | O10: 666703600 | Q10: -10567437003 | S10: -3872805097 | U10: -13462393139 | V10: -6196256367 | X10: -11751120410 | Z10: -14509422127 | AB10: -32069745134 | AC10: 17091904929 | AE10: 13947887009 | AG10: -2250892221 | AI10: 0
B11: 財務活動によるCF | G11: -5450518221 | H11: -5389823189 | J11: -1421811982 | L11: -3393656906 | N11: -6227483517 | O11: -5979511468 | Q11: -6125098617 | S11: -1183642110 | U11: -6278860084 | V11: -6775214636 | X11: -8456106728 | Z11: -2512802330 | AB11: -7635163939 | AC11: -8216222043 | AE11: -12106361804 | AG11: -11888660278 | AI11: 0
B12: 現金及び現金同等物残高 | G12: 42195201303 | H12: 38581259049 | J12: 38723215248 | L12: 31157610051 | N12: 35425891287 | O12: 34975485536 | Q12: 43579277146 | S12: 44187906251 | U12: 55742996094 | V12: 49240128821 | X12: 50233612038 | Z12: 42249425003 | AB12: 47282750847 | AC12: 61347226815 | AE12: 62032004106 | AG12: 29649579552 | AI12: 0
B13: 総資産 | G13: 192034489170 | H13: 184994336019 | J13: 196890619877 | L13: 197360646748 | N13: 202750168779 | O13: 196475347658 | Q13: 204449080835 | S13: 213653124881 | U13: 214967413153 | V13: 214990265851 | X13: 222290677284 | Z13: 229795015046 | AB13: 238978749675 | AC13: 231840472808 | AE13: 236024384966 | AG13: 237154668601 | AI13: 0
B14: 純資産 | G14: 146667727737 | H14: 145411475603 | J14: 150987272976 | L14: 155569294711 | N14: 160490065970 | O14: 157688435318 | Q14: 161903026009 | S14: 169156507730 | U14: 169632656900 | V14: 167784886882 | X14: 171782213586 | Z14: 177545226814 | AB14: 182740340286 | AC14: 179036395583 | AE14: 183329901110 | AG14: 183141537049 | AI14: 0
B15: 自己資本比率 | G15: 72.6 | H15: 74.82315337 | J15: 73.24586155 | L15: 75.48639374 | N15: 75.92154021 | O15: 76.83557268 | Q15: 75.94272225 | S15: 75.82023552 | U15: 75.93828636 | V15: 74.85819104 | X15: 74.1374305 | Z15: 74.14616008 | AB15: 73.38271028 | AC15: 73.95323324 | AE15: 74.48393468 | AG15: 73.94121271
A17: 損益計算書 P/L (百万円 Million yen)
B19: 総売上高 Gross sales | F19: 186691413673 | G19: 251575543134 | H19: 61231784366 | I19: 59835235808 | J19: 121067020174 | K19: 65955177686 | L19: 187022197860 | M19: 61633085245 | N19: 248655283105 | O19: 61912847708 | P19: =Q19-O19 -> 63333480281 | Q19: 125246327989 | R19: =S19-Q19 -> 66858128183 | S19: 192104456172 | T19: =U19-S19 -> 63834512981 | U19: 255938969153 | V19: 64385224826 | W19: =X19-V19 -> 66562341404 | X19: 130947566230 | Y19: =Z19-X19 -> 70256063521 | Z19: 201203629751 | AA19: =AB19-Z19 -> 65542274127 | AB19: 266745903878 | AC19: 67353757579 | AD19: =AE19-AC19 -> 68839394089 | AE19: 136193151668 | AF19: =AG19-AE19 -> 73630172125 | AG19: 209823323793 | AH19: =AI19-AG19 -> -209823323793 | AI19: 0
B20: リベート等控除 | AC20: 7457347175 | AD20: =AE20-AC20 -> 8294899012 | AE20: 15752246187 | AF20: =AG20-AE20 -> 8600718673 | AG20: 24352964860 | AH20: =AI20-AG20 -> -24352964860 | AI20: 0
B21: 純売上高 Net sales | AC21: 59896410404 | AD21: =AE21-AC21 -> 60544495077 | AE21: 120440905481 | AF21: =AG21-AE21 -> 65029453452 | AG21: 185470358933 | AH21: =AI21-AG21 -> -185470358933 | AI21: 0
B22: 売上原価 | F22: 106614473972 | G22: 142671175421 | H22: 34524162494 | I22: 33209628196 | J22: 67733790690 | K22: 35716171526 | L22: 103449962216 | M22: 34084323865 | N22: 137534286081 | O22: 34291757747 | P22: =Q22-O22 -> 34949260153 | Q22: 69241017900 | R22: =S22-Q22 -> 36179629303 | S22: 105420647203 | T22: =U22-S22 -> 35431426865 | U22: 140852074068 | V22: 36125218950 | W22: =X22-V22 -> 37607402230 | X22: 73732621180 | Y22: =Z22-X22 -> 38082822146 | Z22: 111815443326 | AA22: =AB22-Z22 -> 37119924233 | AB22: 148935367559 | AC22: 38687806941 | AD22: =AE22-AC22 -> 39663356902 | AE22: 78351163843 | AF22: =AG22-AE22 -> 42319072390 | AG22: 120670236233 | AH22: =AI22-AG22 -> -120670236233 | AI22: 0
B23: 売上総利益率 Gross profit | F23: 80076939701 | G23: 108904367713 | H23: 26707621872 | I23: 26625607612 | J23: 53333229484 | K23: 30239006160 | L23: 83572235644 | M23: 27548761380 | N23: 111120997024 | O23: 27621089961 | P23: 28384220128 | Q23: 56005310089 | R23: 30678498880 | S23: 86683808969 | T23: 28403086116 | U23: 115086895085 | V23: 28260005876 | W23: 28954939174 | X23: 57214945050 | Y23: 32173241375 | Z23: 89388186425 | AA23: 28422349894 | AB23: 117810536319 | AC23: 21208603463 | AD23: 20881138175 | AE23: 42089741638 | AF23: 22710381062 | AG23: 64800122700 | AH23: -64800122700 | AI23: 0
B24: 販売管理費 SG&A | F24: 60886668286 | G24: 82075529936 | H24: 20933332905 | I24: 20658935279 | J24: 41592268184 | K24: 21538484772 | L24: 63130752956 | M24: 21025979974 | N24: 84156732930 | O24: 21172227858 | P24: 21574622933 | Q24: 42746850791 | R24: 22057639992 | S24: 64804490783 | T24: 22617806287 | U24: 87422297070 | V24: 21707304845 | W24: 22493673282 | X24: 44200978127 | Y24: 23345607309 | Z24: 67546585436 | AA24: 23199931415 | AB24: 90746516851 | AC24: 14269722367 | AD24: 14517945815 | AE24: 28787668182 | AF24: 15127014555 | AG24: 43914682737 | AH24: -43914682737 | AI24: 0
C25: 販売費 Selling | F25: 26709904776 | G25: 36921361826 | H25: 9388826864 | I25: 9554853731 | J25: 18943680595 | K25: 10047029539 | L25: 28990710134 | M25: 10060917261 | N25: 39051627395 | O25: 9746212555 | P25: 10242470075 | Q25: 19988682630 | R25: 9988180653 | S25: 29976863283 | T25: 10836036544 | U25: 40812899827 | V25: 9582056453 | W25: 10257314824 | X25: 19839371277 | Y25: 10810938227 | Z25: 30650309504 | AA25: 10916340520 | AB25: 41566650024 | AC25: 2008320252 | AD25: 1967207415 | AE25: 3975527667 | AF25: 2269345418 | AG25: 6244873085 | AH25: -6244873085 | AI25: 0
C26: 物流費 Distribution | F26: 12849211963 | G26: 17345087203 | H26: 4124081078 | I26: 4079893314 | J26: 8203974392 | K26: 4658681781 | L26: 12862656173 | M26: 4365879926 | N26: 17228536099 | O26: 4534306880 | P26: 4452443853 | Q26: 8986750733 | R26: 4785494672 | S26: 13772245405 | T26: 4662927539 | U26: 18435172944 | V26: 4876456579 | W26: 4749511280 | X26: 9625967859 | Y26: 4931323904 | Z26: 14557291763 | AA26: 4690477564 | AB26: 19247769327 | AC26: 4751776424 | AD26: 4913679416 | AE26: 9665455840 | AF26: 5255179850 | AG26: 14920635690 | AH26: -14920635690 | AI26: 0
C27: 人件費 Labor | F27: 13691737636 | G27: 17686829040 | H27: 4691935449 | I27: 4435813011 | J27: 9127748460 | K27: 4309483289 | L27: 13437231749 | M27: 4195159309 | N27: 17632391058 | O27: 4344675808 | P27: 4547218532 | Q27: 8891894340 | R27: 4625559647 | S27: 13517453987 | T27: 4431354875 | U27: 17948808862 | V27: 4551607999 | W27: 4920988108 | X27: 9472596107 | Y27: 4925232425 | Z27: 14397828532 | AA27: 4923579766 | AB27: 19321408298 | AC27: 4764277606 | AD27: 5012528396 | AE27: 9776806002 | AF27: 4780723786 | AG27: 14557529788 | AH27: -14557529788 | AI27: 0
C28: その他 Others | F28: 7635813911 | G28: 10122251867 | H28: 2728489514 | I28: 2588375223 | J28: 5316864737 | K28: 2523290163 | L28: 7840154900 | M28: 2404023478 | N28: 10244178378 | O28: 2547032615 | P28: 2332490473 | Q28: 4879523088 | R28: 2658405020 | S28: 7537928108 | T28: 2687487329 | U28: 10225415437 | V28: 2697183814 | W28: 2565859070 | X28: 5263042884 | Y28: 2678112753 | Z28: 7941155637 | AA28: 2669533565 | AB28: 10610689202 | AC28: 2745348085 | AD28: 2624530588 | AE28: 5369878673 | AF28: 2821765501 | AG28: 8191644174 | AH28: -8191644174 | AI28: 0
B29: 営業利益 Operating income | F29: 19190271415 | G29: 26828837777 | H29: 5774288967 | I29: 5966672333 | J29: 11740961300 | K29: 8700521388 | L29: 20441482688 | M29: 6522781406 | N29: 26964264094 | O29: 6448862103 | P29: 6809597195 | Q29: 13258459298 | R29: 8620858888 | S29: 21879318186 | T29: 5785279829 | U29: 27664598015 | V29: 6552701031 | W29: 6461265892 | X29: 13013966923 | Y29: 8827634066 | Z29: 21841600989 | AA29: 5222418479 | AB29: 27064019468 | AC29: 6938881096 | AD29: 6363192360 | AE29: 13302073456 | AF29: 7583366507 | AG29: 20885439963 | AH29: -20885439963 | AI29: 0
B30: 経常利益 Ordinary income | F30: 19426860591 | G30: 26179600807 | H30: 6232176196 | I30: 6327963689 | J30: 12560139885 | K30: 8280116984 | L30: 20840256869 | M30: 6591821301 | N30: 27432078170 | O30: 6069012507 | P30: 6750545420 | Q30: 12819557927 | R30: 8943057323 | S30: 21762615250 | T30: 5629069567 | U30: 27391684817 | V30: 6415059051 | W30: 6334485164 | X30: 12749544215 | Y30: 8652044335 | Z30: 21401588550 | AA30: 6120449866 | AB30: 27522038416 | AC30: 7034278730 | AD30: 6539745413 | AE30: 13574024143 | AF30: 7996357801 | AG30: 21570381944 | AH30: -21570381944 | AI30: 0
B31: 特別損益 Extraordinary income/loss | F31: -125808991 | G31: -80461182 | H31: 114677063 | I31: 1506538087 | J31: 1621215150 | K31: -269506562 | L31: 1351708588 | M31: -313924034 | N31: 1037784554 | O31: -17860707 | P31: -43930962 | Q31: -61791669 | R31: -84391257 | S31: -146182926 | T31: -1501964936 | U31: -1648147862 | V31: -129190452 | W31: 50686236 | X31: -78504216 | Y31: -125697539 | Z31: -204201755 | AA31: -936601697 | AB31: -1140803452 | AC31: -38671071 | AD31: -124781135 | AE31: -163452206 | AF31: 310054272 | AG31: 146602066 | AH31: -146602066 | AI31: 0
B32: 非支配株主利益 Non-controlling interests profit | F32: -86196152 | G32: -258326668 | H32: 48376408 | I32: -1296080 | J32: 47080328 | K32: -61971641 | L32: -14891313 | M32: -38801450 | N32: -53692763 | O32: 38964865 | P32: 31997581 | Q32: 70962446 | R32: 35807681 | S32: 106770127 | T32: -434416272 | U32: -327646145 | V32: 266282969 | W32: 155606937 | X32: 421889906 | Y32: 60417217 | Z32: 482307123 | AA32: -99112102 | AB32: 383195021 | AC32: 112361184 | AD32: 4980529 | AE32: 117341713 | AF32: 27957177 | AG32: 145298890 | AH32: -145298890 | AI32: 0
B33: 当期純利益* Net profit* | F33: 13067294377 | G33: 17330900497 | H33: 4213870466 | I33: 5414972315 | J33: 9628842781 | K33: 5390821716 | L33: 15019664497 | M33: 4409913237 | N33: 19429577734 | O33: 4245211826 | P33: 4574943737 | Q33: 8820155563 | R33: 5860794055 | S33: 14680949618 | T33: 2858730348 | U33: 17539679966 | V33: 4050360518 | W33: 4173096623 | X33: 8223457141 | Y33: 5825048197 | Z33: 14048505338 | AA33: 3633883432 | AB33: 17682388770 | AC33: 4953465140 | AD33: 4225150171 | AE33: 9178615311 | AF33: 5523257859 | AG33: 14701873170 | AH33: -14701873170 | AI33: 0
B34: *当期純利益は、親会社株主に帰属する当期純利益になります *Profit attributable to owners of parent
A36: 製品別売上高 Sales by product （百万円 Million yen)
B38: 国内スナック Domestic snack foods | F38: 129374890282 | G38: 175575195689 | H38: 44608786101 | I38: 43583334024 | J38: 88192120125 | K38: 47565345796 | L38: 135757465921 | M38: 44742244749 | N38: 180499710670 | O38: 44634086220 | P38: =Q38-O38 -> 44595067971 | Q38: 89229154191 | R38: =S38-Q38 -> 48369464468 | S38: 137598618659 | T38: =U38-S38 -> 44488042392 | U38: 182086661051 | V38: 41345898585 | W38: =X38-V38 -> 43452879047 | X38: 84798777632 | Y38: =Z38-X38 -> 47230091437 | Z38: 132028869069 | AA38: =AB38-Z38 -> 43646140260 | AB38: 175675009329 | AC38: 42857782144 | AD38: =AE38-AC38 -> 44816566503 | AE38: 87674348647 | AF38: =AG38-AE38 -> 47194815946 | AG38: 134869164593 | AH38: =AI38-AG38 -> -134869164593
B39: 国内シリアル Domestic cereals | F39: 18409867350 | G39: 23836995254 | H39: 6138150214 | I39: 6270314023 | J39: 12408464237 | K39: 5914523086 | L39: 18322987323 | M39: 5494069033 | N39: 23817056356 | O39: 6209365527 | P39: =Q39-O39 -> 6390106713 | Q39: 12599472240 | R39: =S39-Q39 -> 6015524331 | S39: 18614996571 | T39: =U39-S39 -> 6542096549 | U39: 25157093120 | V39: 7973460255 | W39: =X39-V39 -> 7351800117 | X39: 15325260372 | Y39: 6295972894 | Z39: 21621233266 | AA39: 6101042871 | AB39: 27722276137 | AC39: 6629509266 | AD39: =AE39-AC39 -> 6533755005 | AE39: 13163264271 | AF39: =AG39-AE39 -> 5733118444 | AG39: 18896382715 | AH39: -18896382715
B40: 国内その他食品*1 Domestic other foods*1 | F40: 10726009730 | G40: 14363562023 | H40: 250583950 | I40: 295639469 | J40: 546223419 | K40: 452733580 | L40: 998956999 | M40: 286836764 | N40: 1285793763 | O40: 285761263 | P40: 327677486 | Q40: 613438749 | R40: 443278142 | S40: 1056716891 | T40: 323643958 | U40: 1380360849 | V40: =1817032072 -> 1817032072 | W40: 1796318344 | X40: 3613350416 | Y40: 2580265570 | Z40: 6193615986 | AA40: 2489726606 | AB40: =8683342592 -> 8683342592 | AC40: =2519213520 -> 2519213520 | AD40: 1911001705 | AE40: 4430215225 | AF40: =AG40-AE40 -> 3043063721 | AG40: 7473278946 | AH40: -7473278946
B41: その他事業 Other businesses | F41: 2982176232 | G41: 3998326318 | H41: 941449745 | I41: 498343696 | J41: 1439793441 | K41: 771566656 | L41: 2211360097 | M41: 379373925 | N41: 2590734022 | O41: 351530098 | P41: =Q41-O41 -> 328244151 | Q41: 679774249 | R41: =S41-Q41 -> 762080929 | S41: 1441855178 | T41: =U41-S41 -> 404880316 | U41: 1846735494 | V41: 317677336 | W41: =X41-V41 -> 230397519 | X41: 548074855 | Y41: =Z41-X41 -> 647101270 | Z41: 1195176125 | AA41: =AB41-Z41 -> 363371302 | AB41: 1558547427 | AC41: 256643834 | AD41: =AE41-AC41 -> 209463558 | AE41: 466107392 | AF41: =AG41-AE41 -> 612255706 | AG41: 1078363098 | AH41: =AI41-AG41 -> -1078363098
B42: 国内その他合計（甘しょ・馬鈴しょ、役務提供）** Domestic others total (sweet potatoes, potatoes and other businesses)** | O42: =O40+O41 -> 637291361 | P42: =P40+P41 -> 655921637 | Q42: 1293212998 | R42: 1205359071 | S42: 2498572069 | T42: 728524274 | U42: =U40+U41 -> 3227096343 | V42: 2134709408 | W42: 2026715863 | X42: 4161425271 | Y42: 3227366840 | Z42: 7388792111 | AA42: 2853097908 | AB42: 10241890019 | AC42: 2775857354 | AD42: 2120465263 | AE42: 4896322617 | AF42: 3655319427 | AG42: 8551642044 | AH42: -8551642044 | AI42: 0
B43: 国内食品計 Domestic foods business | F43: 158510767362 | G43: 213775752966 | H43: 50997520265 | I43: 50149287516 | J43: 101146807781 | K43: 53932602462 | L43: 155079410243 | M43: 50523150546 | N43: 205602560789 | O43: =SUM(O38:O41) -> 51480743108 | P43: 51641096321 | Q43: =SUM(Q38:Q41) -> 103121839429 | R43: 55590347870 | S43: =SUM(S38:S41) -> 158712187299 | T43: 51758663215 | U43: =SUM(U38:U41) -> 210470850514 | V43: =SUM(V38:V41) -> 51454068248 | W43: =SUM(W38:W41) -> 52831395027 | X43: 104285463275 | Y43: 56753431171 | Z43: 161038894446 | AA43: 52600281039 | AB43: 213639175485 | AC43: =SUM(AC38:AC41) -> 52263148764 | AD43: =SUM(AD38:AD41) -> 53470786771 | AE43: 105733935535 | AF43: 56583253817 | AG43: =SUM(AG38:AG41) -> 162317189352 | AH43: -162317189352 | AI43: 0
B44: 海外スナック Overseas snack foods | F44: 23541998602 | G44: 31266988621 | H44: 8272724645 | I44: 8026627322 | J44: 16299351967 | K44: 9435035751 | L44: 25734387718 | M44: 9444247823 | N44: 35178635541 | O44: 8950232330 | P44: 9908670178 | Q44: 18858902508 | R44: 9450942339 | S44: 28309844847 | T44: 10688372247 | U44: 38998217094 | V44: 10978664166 | W44: 11977929693 | X44: 22956593859 | Y44: 11678664393 | Z44: 34635258252 | AA44: 11772200737 | AB44: 46407458989 | AC44: 13303849401 | AD44: 13438598458 | AE44: 26742447859 | AF44: 14455507992 | AG44: 41197955851 | AH44: -41197955851
B45: 海外シリアル Overseas cereals | F45: 1656471477 | G45: 2534475229 | H45: 1020089711 | I45: 1160977274 | J45: 2181066985 | K45: 1815972817 | L45: 3997039802 | M45: 1286312951 | N45: 5283352753 | O45: 1481872270 | P45: 1783713782 | Q45: 3265586052 | R45: 1816837974 | S45: 5082424026 | T45: 1387477519 | U45: 6469901545 | V45: 1952492412 | W45: 1753016684 | X45: 3705509096 | Y45: 1823967957 | Z45: 5529477053 | AA45: 1169792351 | AB45: 6699269404 | AC45: 1786759414 | AD45: 1930008860 | AE45: 3716768274 | AF45: 2591410316 | AG45: 6308178590 | AH45: -6308178590
B46: 海外食品計 Overseas foods business | F46: 25198470079 | G46: 33801463850 | H46: 9292814356 | I46: 9187604596 | J46: 18480418952 | K46: 11251008568 | L46: 29731427520 | M46: 10730560774 | N46: 40461988294 | O46: 10432104600 | P46: 11692383960 | Q46: 22124488560 | R46: 11267780313 | S46: 33392268873 | T46: 12075849766 | U46: 45468118639 | V46: 12931156578 | W46: 13730946377 | X46: 26662102955 | Y46: 13502632350 | Z46: 40164735305 | AA46: 12941993088 | AB46: 53106728393 | AC46: =SUM(AC44:AC45) -> 15090608815 | AD46: =SUM(AD44:AD45) -> 15368607318 | AE46: =SUM(AE44:AE45) -> 30459216133 | AF46: 17046918308 | AG46: 47506134441 | AH46: -47506134441 | AI46: 0
B47: 食品製造販売事業計 Snacks and other foods business | F47: 183709237441 | G47: 247577216816 | H47: 60290334621 | I47: 59336892112 | J47: 119627226733 | K47: 65183611030 | L47: 184810837763 | M47: 61253711320 | N47: 246064549083 | O47: =O43+O46 -> 61912847708 | P47: 63333480281 | Q47: =Q43+Q46 -> 125246327989 | R47: 66858128183 | S47: =S43+S46 -> 192104456172 | T47: 63834512981 | U47: =U43+U46 -> 255938969153 | V47: =V43+V46 -> 64385224826 | W47: =W43+W46 -> 66562341404 | X47: 130947566230 | Y47: 70256063521 | Z47: 201203629751 | AA47: 65542274127 | AB47: 266745903878 | AC47: 67353757579 | AD47: =AD43+AD46 -> 68839394089 | AE47: 136193151668 | AF47: =AF43+AF46 -> 73630172125 | AG47: 209823323793 | AH47: -209823323793 | AI47: 0
B48: 売上高合計 Gross sales | F48: 186691413673 | G48: 251575543134 | H48: 61231784366 | I48: 59835235808 | J48: 121067020174 | K48: 65955177686 | L48: 187022197860 | M48: 61633085245 | N48: 248655283105 | O48: 61912847708 | P48: 63333480281 | Q48: 125246327989 | R48: 66858128183 | S48: 192104456172 | T48: 63834512981 | U48: 255938969153 | V48: 64385224826 | W48: 66562341404 | X48: 130947566230 | Y48: 70256063521 | Z48: 201203629751 | AA48: 65542274127 | AB48: 266745903878 | AC48: 67353757579 | AD48: 68839394089 | AE48: 136193151668 | AF48: 73630172125 | AG48: 209823323793 | AH48: -209823323793
C49: ＜国内スナック内訳＞ | F49: =円!AJ46 -> 0 | G49: =円!AK46 -> 0 | H49: 0 | K49: 0 | M49: 0 | P49: 0 | R49: 0 | T49: 0 | W49: 0 | Y49: 0 | AA49: =AB49-Z49 -> 0
C50: ポテト系スナック Potato-based snacks | F50: 91914861592 | G50: 126305753715 | H50: 32627031567 | I50: 31977075930 | J50: 64604107497 | K50: 35186169548 | L50: 99790277045 | M50: 33278316818 | N50: 133068593863 | O50: 32342911269 | P50: 32561669554 | Q50: 64904580823 | R50: 35847657337 | S50: 100752238160 | T50: 32902725576 | U50: 133654963736 | V50: 29120673078 | W50: 32309301166 | X50: 61429974244 | Y50: 35346276229 | Z50: 96776250473 | AA50: 32065088774 | AB50: 128841339247 | AC50: 30674415401 | AD50: 32642740161 | AE50: 63317155562 | AF50: 34299879861 | AG50: 97617035423 | AH50: -97617035423
D51: ポテトチップス Potato Chips | F51: 54880255505 | G51: 77007273145 | H51: 20635035470 | I51: 19332480540 | J51: 39967516010 | K51: 23096207315 | L51: 63063723325 | M51: 21065642636 | N51: 84129365961 | O51: 20122752256 | P51: 20253128749 | Q51: 40375881005 | R51: 23290296777 | S51: 63666177782 | T51: 22523012770 | U51: 86189190552 | V51: 19461138696 | W51: 21574758385 | X51: 41035897081 | Y51: 24350062625 | Z51: 65385959706 | AA51: 21207211166 | AB51: 86593170872 | AC51: 19605396135 | AD51: 21493661974 | AE51: 41099058109 | AF51: 22967462892 | AG51: 64066521001 | AH51: -64066521001
D52: じゃがりこ Jagarico | F52: 26536249647 | G52: 35695615982 | H52: 9068730138 | I52: 9686434799 | J52: 18755164937 | K52: 9289636863 | L52: 28044801800 | M52: 9357298077 | N52: 37402099877 | O52: 9327356719 | P52: 9277164961 | Q52: 18604521680 | R52: 9507764495 | S52: 28112286175 | T52: 8277973059 | U52: 36390259234 | V52: 7865223291 | W52: 8722486080 | X52: 16587709371 | Y52: 8998181281 | Z52: 25585890652 | AA52: 8954052163 | AB52: 34539942815 | AC52: 9019518685 | AD52: 8875911177 | AE52: 17895429862 | AF52: 9117775098 | AG52: 27013204960 | AH52: -27013204960
D53: Jabagee/じゃがポックル Jagabee/Jagapokkuru | F53: 10498356440 | G53: 13602864588 | H53: 2923265959 | I53: 2958160591 | J53: 5881426550 | K53: 2800325370 | L53: 8681751920 | M53: 2855376105 | N53: 11537128025 | O53: 2892802294 | P53: 3031375844 | Q53: 5924178138 | R53: 3049596065 | S53: 8973774203 | T53: 2101739747 | U53: 11075513950 | V53: 1794311091 | W53: 2012056701 | X53: 3806367792 | Y53: 1998032323 | Z53: 5804400115 | AA53: 1903825445 | AB53: 7708225560 | AC53: 2049500581 | AD53: 2273167010 | AE53: 4322667591 | AF53: 2214641871 | AG53: 6537309462 | AH53: -6537309462
C54: 小麦系スナック Flour-based snacks | F54: 17052854698 | G54: 22405120696 | H54: 5103163556 | I54: 5156285653 | J54: 10259449209 | K54: 5373518806 | L54: 15632968015 | M54: 5142071980 | N54: 20775039995 | O54: 5334920155 | P54: 5460400543 | Q54: 10795320698 | R54: 5515787293 | S54: 16311107991 | T54: 5352548523 | U54: 21663656514 | V54: 5501642690 | W54: 5189266854 | X54: 10690909544 | Y54: 5242168557 | Z54: 15933078101 | AA54: 5565789002 | AB54: 21498867103 | AC54: 5168148628 | AD54: 5504635590 | AE54: 10672784218 | AF54: 5511144536 | AG54: 16183928754 | AH54: -16183928754
D55: かっぱえびせん Kappa Ebisen | F55: 8060912749 | G55: 10707860062 | H55: 2365048455 | I55: 2274440487 | J55: 4639488942 | K55: 2655775721 | L55: 7295264663 | M55: 2410338469 | N55: 9705603132 | O55: 2363696858 | P55: 2586398750 | Q55: 4950095608 | R55: 2627520410 | S55: 7577616018 | T55: 2491403694 | U55: 10069019712 | V55: 2366806855 | W55: 2346738247 | X55: 4713545102 | Y55: 2508846095 | Z55: 7222391197 | AA55: 2872618040 | AB55: 10095009237 | AC55: 2494509317 | AD55: 2592591161 | AE55: 5087100478 | AF55: 2630322094 | AG55: 7717422572 | AH55: -7717422572
D56: サッポロポテト等 Sapporo potato and others | F56: 8991941949 | G56: 11697260634 | H56: 2738115101 | I56: 2881845166 | J56: 5619960267 | K56: 2717743085 | L56: 8337703352 | M56: 2731733511 | N56: 11069436863 | O56: 2971223297 | P56: 2874001793 | Q56: 5845225090 | R56: 2888266883 | S56: 8733491973 | T56: 2861144829 | U56: 11594636802 | V56: 3134835835 | W56: 2842528607 | X56: 5977364442 | Y56: 2733322462 | Z56: 8710686904 | AA56: 2693170962 | AB56: 11403857866 | AC56: 2673639311 | AD56: 2912044429 | AE56: 5585683740 | AF56: 2880822442 | AG56: 8466506182 | AH56: -8466506182
C57: コーン系・豆系スナック Corn- and bean-based snacks | F57: 12954447803 | G57: 16785761056 | H57: 4138577356 | I57: 3769151150 | J57: 7907728506 | K57: 4247986373 | L57: 12155714879 | M57: 3727070163 | N57: 15882785042 | O57: 4449995943 | P57: 4175538339 | Q57: 8625534282 | R57: 4516714586 | S57: 13142248868 | T57: 4101762056 | U57: 17244010924 | V57: 4763605580 | W57: 4017493806 | X57: 8781099386 | Y57: 4461714627 | Z57: 13242814013 | AA57: 3856887941 | AB57: 17099701954 | AC57: 4846287840 | AD57: 4470386945 | AE57: 9316674785 | AF57: 4818525859 | AG57: 14135200644 | AH57: -14135200644
C58: その他スナック*2 Other snacks*2 | F58: 7452726189 | G58: 10078560222 | H58: 2740013622 | I58: 2680821291 | J58: 5420834913 | K58: 2757671069 | L58: 8178505982 | M58: 2594785788 | N58: 10773291770 | O58: 2506258853 | P58: 2397459535 | Q58: 4903718388 | R58: 2489305252 | S58: 7393023640 | T58: 2131006237 | U58: 9524029877 | V58: 1959977237 | W58: 1936817221 | X58: 3896794458 | Y58: 2179932024 | Z58: 6076726482 | AA58: 2158374543 | AB58: 8235101025 | AC58: 2168930275 | AD58: 2198803807 | AE58: 4367734082 | AF58: =AG58-AE58 -> 2565265690 | AG58: 6932999772 | AH58: -6932999772
B59: *1 「その他事業」を「国内その他食品」にまとめて表記 *1 "Others" has been summarized in "Other domestic foods".
B60: *2 「小麦系スナック」を「その他スナック」にまとめて表記 *2 "Flour-based snacks" have been summarized in "Other snacks".
A62: 海外国別売上高 Sales by country
B64: 北米 North America | E64: M JPY | F64: =F65 -> 7239507870 | G64: 9843936220 | H64: 2759866911 | I64: 2418526198 | J64: 5178393109 | K64: 2144713728 | L64: 7323106837 | M64: 2618892524 | N64: 9941999361 | O64: =O65 -> 2258283443 | P64: =Q64-O64 -> 2625824745 | Q64: =Q65 -> 4884108188 | R64: =S64-Q64 -> 2226238032 | S64: =S65 -> 7110346220 | T64: =U64-S64 -> 3466003034 | U64: =U65 -> 10576349254 | V64: =V65 -> 3530022678 | W64: =X64-V64 -> 3942461934 | X64: =X65 -> 7472484612 | Y64: =Z64-X64 -> 3381745299 | Z64: =Z65 -> 10854229911 | AA64: =AB64-Z64 -> 3587827267 | AB64: =AB65 -> 14442057178 | AC64: =AC65 -> 3974957359 | AD64: =AE64-AC64 -> 3674901301 | AE64: =AE65 -> 7649858660 | AF64: =AG64-AE64 -> 3942555129 | AG64: =AG65 -> 11592413789 | AH64: =AI64-AG64 -> -11592413789 | AI64: =AI65 -> 0
C65: 北米 North America | E65: M JPY | F65: 7239507870 | G65: 9843936220 | H65: 2759866911 | I65: 2418526198 | J65: 5178393109 | K65: 2144713728 | L65: 7323106837 | M65: 2618892524 | N65: 9941999361 | O65: 2258283443 | P65: =Q65-O65 -> 2625824745 | Q65: 4884108188 | R65: 2226238032 | S65: 7110346220 | T65: =U65-S65 -> 3466003034 | U65: 10576349254 | V65: 3530022678 | W65: =X65-V65 -> 3942461934 | X65: 7472484612 | Y65: 3381745299 | Z65: 10854229911 | AA65: =AB65-Z65 -> 3587827267 | AB65: 14442057178 | AC65: 3974957359 | AD65: =AE65-AC65 -> 3674901301 | AE65: 7649858660 | AF65: 3942555129 | AG65: 11592413789 | AH65: =AI65-AG65 -> -11592413789 | AI65: 0
E66: K USD | F66: =F65/F117 -> 64748304 | G66: 88836172.01 | H66: 25389759.99 | I66: 21660877.02 | J66: 47050637.01 | K66: 19030456.99 | L66: 66081094 | M66: 23737312.01 | N66: 89818406.01 | O66: =O65/O117 -> 20531716 | P66: 24276616 | Q66: =Q65/Q117 -> 44808332 | R66: 20364410.62 | S66: =S65/S117 -> 65172742.62 | T66: =U66-S66 -> 31769047.06 | U66: =U65/U117 -> 96941789.68 | V66: =V65/V117 -> 32764272.12 | W66: 37288081.98 | X66: =X65/X117 -> 70052354.1 | Y66: 32471778.43 | Z66: =Z65/Z117 -> 102524132.5 | AA66: =AB66-Z66 -> 33516345.79 | AB66: =AB65/AB117 -> 136040478.3 | AC66: =AC65/AC117 -> 36139261.38 | AD66: 33291294.62 | AE66: =AE65/AE117 -> 69430556 | AF66: 34658640.27 | AG66: =AG65/AG117 -> 104089196.3 | AH66: =AI66-AG66 ->  | AI66: =AI65/AI117 -> 
B67: 中華圏 Greater China | E67: M JPY | F67: =F68+F70+#REF! ->  | G67: 8718460277 | H67: 2574436879 | I67: 2603183498 | J67: 5177620377 | K67: 3578012858 | L67: 8755633235 | M67: 2583961450 | N67: 11339594685 | O67: =O68+O70 -> 2789359327 | P67: 3341948535 | Q67: =Q68+Q70 -> 6131307862 | R67: 3540174804 | S67: =S68+S70 -> 9671482666 | T67: =U67-S67 -> 3099658778 | U67: =U68+U70 -> 12771141444 | V67: =V68+V70 -> 4028298952 | W67: 3853312618 | X67: =X68+X70 -> 7881611570 | Y67: 3879492738 | Z67: =Z68+Z70 -> 11761104308 | AA67: =AB67-Z67 -> 3370149728 | AB67: =AB68+AB70 -> 15131254036 | AC67: =AC68+AC70 -> 4200607001 | AD67: 4909234512 | AE67: =AE68+AE70 -> 9109841513 | AF67: 5754026545 | AG67: =AG68+AG70 -> 14863868058 | AH67: =AI67-AG67 -> -14863868058 | AI67: =AI68+AI70 -> 0
C68: 中国 China | E68: M JPY | F68: 1259223274 | G68: 1636411796 | H68: 532674965 | I68: 853646644 | J68: 1386321609 | K68: 1377922313 | L68: 2764243922 | M68: 1053919696 | N68: 3818163618 | O68: 1025755141 | P68: 1611782332 | Q68: 2637537473 | R68: 1783707426 | S68: 4421244899 | T68: =U68-S68 -> 1753884231 | U68: 6175129130 | V68: 2244063013 | W68: 2536728829 | X68: 4780791842 | Y68: 2769252033 | Z68: 7550043875 | AA68: =AB68-Z68 -> 2332794576 | AB68: 9882838451 | AC68: 3062822094 | AD68: 3760768104 | AE68: 6823590198 | AF68: 4488450959 | AG68: 11312041157 | AH68: =AI68-AG68 -> -11312041157 | AI68: 0
E69: K RMB | F69: =F68/F118 -> 75629025.47 | G69: 97754587.57 | H69: 31407721.99 | I69: 51705084.3 | J69: 83112806.29 | K69: 83910995.64 | L69: 167023801.9 | M69: 64099903.76 | N69: 231123705.7 | O69: =O68/O118 -> 63632452.92 | P69: 103830243.8 | Q69: =Q68/Q118 -> 167462696.7 | R69: 114145258.7 | S69: =S68/S118 -> 281607955.4 | T69: 112717021 | U69: =U68/U118 -> 394324976.4 | V69: =V68/V118 -> 148025264.7 | W69: 166293725.6 | X69: =X68/X118 -> 314318990.3 | Y69: 176581131.6 | Z69: =Z68/Z118 -> 490900121.9 | AA69: 141804004.3 | AB69: =AB68/AB118 -> 632704126.2 | AC69: =AC68/AC118 -> 180166005.5 | AD69: 220514569.8 | AE69: =AE68/AE118 -> 400680575.3 | AF69: 253572817.2 | AG69: =AG68/AG118 -> 654253392.5 | AI69: =AI68/AI118 -> 
C70: 香港* Hong Kong* | E70: M JPY | F70: 4717250597 | G70: 6461094170 | H70: 1803528089 | I70: 1649613219 | J70: 3453141308 | K70: 2125312224 | L70: 5578453532 | M70: 1504870309 | N70: 7083323841 | O70: 1763604186 | P70: 1730166203 | Q70: 3493770389 | R70: 1756467378 | S70: 5250237767 | T70: 1345774547 | U70: 6596012314 | V70: 1784235939 | W70: 1316583789 | X70: 3100819728 | Y70: 1110240705 | Z70: 4211060433 | AA70: 1037355152 | AB70: 5248415585 | AC70: 1137784907 | AD70: 1148466408 | AE70: 2286251315 | AF70: 1265575586 | AG70: 3551826901 | AH70: -3551826901 | AI70: 0
E71: K HKD | F71: =F70/F119 -> 329187061.9 | G71: 455327284.7 | H71: 130218634.6 | I71: 115906904.1 | J71: 246125538.7 | K71: 148669474.2 | L71: 394795012.9 | M71: 107212346.5 | N71: 502007359.4 | O71: =O70/O119 -> 125702365.4 | P71: 125648022.3 | Q71: =Q70/Q119 -> 251350387.7 | R71: 125551103.1 | S71: =S70/S119 -> 376901490.8 | T71: 95930933.13 | U71: =U70/U119 -> 472832423.9 | V71: =V70/V119 -> 128362297.8 | W71: 96987973.16 | X71: =X70/X119 -> 225350270.9 | Y71: 82926481.12 | Z71: =Z70/Z119 -> 308276752 | AA71: 75099112.45 | AB71: =AB70/AB119 -> 383375864.5 | AC71: =AC70/AC119 -> 80352041.45 | AD71: 80992440.9 | AE71: =AE70/AE119 -> 161344482.4 | AF71: 86861450.63 | AG71: =AG70/AG119 -> 248205933 | AI71: =AI70/AI119 -> 
B72: 英国 UK | E72: M JPY | F72: =F73 -> 1040695702 | G72: =G73 -> 1390971599 | H72: 401305615 | I72: 425846123 | J72: 827151738 | K72: 1686121348 | L72: 2513273086 | M72: 1680454635 | N72: 4193727721 | O72: =O73+O89 -> 1436127354 | P72: 1495228085 | Q72: =Q73+Q89 -> 2931355439 | R72: 1570088755 | S72: =S73+S89 -> 4501444194 | T72: 1546522633 | U72: =U73+U89 -> 6047966827 | V72: =V73+V89 -> 1568113503 | W72: 1650371143 | X72: =X73+X89 -> 3218484646 | Y72: 1642372458 | Z72: =Z73+Z89 -> 4860857104 | AA72: 1646340592 | AB72: =AB73+AB89 -> 6507197696 | AC72: =AC73+AC89 -> 1937995248 | AD72: 1910619137 | AE72: =AE73+AE89 -> 3848614385 | AF72: 2124420760 | AG72: =AG73+AG89 -> 5973035145 | AH72: -5973035145 | AI72: =AI73+AI89 -> 0
C73: UK United Kingdom | E73: M JPY | F73: 1040695702 | G73: 1390971599 | H73: 401305615 | I73: 425846123 | J73: 827151738 | K73: 1686121348 | L73: 2513273086 | M73: 1680454635 | N73: 4193727721 | O73: 1436127354 | P73: 1495228085 | Q73: 2931355439 | R73: 1570088755 | S73: 4501444194 | T73: 1546522633 | U73: 6047966827 | V73: 1568113503 | W73: 1650371143 | X73: 3218484646 | Y73: 1642372458 | Z73: 4860857104 | AA73: 1646340592 | AB73: 6507197696 | AC73: 1937995248 | AD73: 1910619137 | AE73: 3848614385 | AF73: 2124420760 | AG73: 5973035145 | AH73: -5973035145 | AI73: 0
E74: K GBP | F74: =F73/F127 -> 7116841.291 | G74: 9445685 | H74: 2719978.413 | I74: 2907286.966 | J74: 5627265.379 | K74: 11607001.14 | L74: 17234266.52 | M74: 11554967.51 | N74: 28789234.03 | O74: =O73/O127 -> 10193976.11 | P74: 11229362.63 | Q74: =Q73/Q127 -> 21423338.73 | R74: 11118005.83 | S74: =S73/S127 -> 32541344.57 | T74: 11123133.28 | U74: =U73/U127 -> 43664477.85 | V74: =V73/V127 -> 11805416.72 | W74: 12029913.55 | X74: =X73/X127 -> 23835330.27 | Y74: 11937830.64 | Z74: =Z73/Z127 -> 35773160.91 | AA74: 11149233.79 | AB74: =AB73/AB127 -> 46922394.69 | AC74: =AC73/AC127 -> 12647622.84 | AD74: 12592502.98 | AE74: =AE73/AE127 -> 25240125.82 | AF74: 13773820.26 | AG74: =AG73/AG127 -> 39013946.08 | AI74: =AI73/AI127 -> 
B75: インドネシア Indonesia | E75: M JPY | F75: =F76 -> 2396111048 | G75: =G76 -> 2965341768 | H75: 897075822 | I75: 958248748 | J75: 1855324570 | K75: 1012976686 | L75: 2868301256 | M75: 986651208 | N75: 3854952464 | O75: =O76 -> 1200121982 | P75: 1235837555 | Q75: 2435959537 | R75: 957243678 | S75: =S76 -> 3393203215 | T75: 958260924 | U75: =U76 -> 4351464139 | V75: =V76 -> 855903829 | W75: 1078595947 | X75: 1934499776 | Y75: 1042620305 | Z75: =Z76 -> 2977120081 | AA75: 1078555729 | AB75: =AB76 -> 4055675810 | AC75: =AC76 -> 1367294951 | AD75: 1197634725 | AE75: 2564929676 | AF75: 1636534948 | AG75: =AG76 -> 4201464624 | AH75: -4201464624 | AI75: =AI76 -> 0
C76: インドネシア Indonesia | E76: M JPY | F76: 2396111048 | G76: 2965341768 | H76: 897075822 | I76: 958248748 | J76: 1855324570 | K76: 1012976686 | L76: 2868301256 | M76: 986651208 | N76: 3854952464 | O76: 1200121982 | P76: 1235837555 | Q76: 2435959537 | R76: 957243678 | S76: 3393203215 | T76: 958260924 | U76: 4351464139 | V76: 855903829 | W76: 1078595947 | X76: 1934499776 | Y76: 1042620305 | Z76: 2977120081 | AA76: 1078555729 | AB76: 4055675810 | AC76: 1367294951 | AD76: 1197634725 | AE76: 2564929676 | AF76: 1636534948 | AG76: 4201464624 | AH76: -4201464624 | AI76: 0
E77: M IDR | F77: =F76/F125 -> 2.886880781e+11 | G77: 3.616270449e+11 | H77: 1.150097208e+11 | I77: 1.259415221e+11 | J77: 2.409512429e+11 | K77: 1.315554138e+11 | L77: 3.725066566e+11 | M77: 1.281365205e+11 | N77: 5.006431771e+11 | O77: =O76/O125 -> 1.558599977e+11 | P77: 1.604983838e+11 | Q77: =Q76/Q125 -> 3.163583814e+11 | R77: 1.243173608e+11 | S77: =S76/S125 -> 4.406757422e+11 | T77: 1.318853287e+11 | U77: =U76/U125 -> 5.725610709e+11 | V77: =V76/V125 -> 1.205498351e+11 | W77: 1.519149221e+11 | X77: =X76/X125 -> 2.724647572e+11 | Y77: 1.41024143e+11 | Z77: =Z76/Z125 -> 4.134889001e+11 | AA77: 1.420831286e+11 | AB77: =AB76/AB125 -> 5.555720288e+11 | AC77: =AC76/AC125 -> 1.799072304e+11 | AD77: 1.532005197e+11 | AE77: =AE76/AE125 -> 3.331077501e+11 | AF77: 2.055415606e+11 | AG77: =AG76/AG125 -> 5.386493108e+11 | AI77: =AI76/AI125 -> 
B78: その他アジア・豪州 Other Asian regions and Australia | E78: M JPY | F78: =F81+F87+F83+F79+F85 -> 8195155230 | G78: =G81+G87+G83+G79+G85 -> 10869177289 | H78: 2660129129 | I78: 2781800029 | J78: 5441929158 | K78: 2829183948 | L78: 8271113106 | M78: 2860600957 | N78: 11131714063 | O78: =O81+O87+O83+O79+O85 -> 2748212494 | P78: 2993545040 | Q78: =Q81+Q87+Q83+Q79+Q85 -> 5741757534 | R78: 2974035044 | S78: =S81+S87+S83+S79+S85 -> 8715792578 | T78: 3005404397 | U78: =U81+U87+U83+U79+U85 -> 11721196975 | V78: =V81+V87+V83+V79+V85 -> 2948817616 | W78: 3206204735 | X78: =X81+X87+X83+X79+X85 -> 6155022351 | Y78: 3556401550 | Z78: =Z81+Z87+Z83+Z79+Z85 -> 9711423901 | AA78: 3259119772 | AB78: =AB81+AB87+AB83+AB79+AB85 -> 12970543673 | AC78: =AC81+AC87+AC83+AC79+AC85 -> 3609754256 | AD78: 3676217643 | AE78: =AE81+AE87+AE83+AE79+AE85 -> 7285971899 | AF78: 3589380926 | AG78: =AG81+AG87+AG83+AG79+AG85 -> 10875352825 | AH78: -10875352825 | AI78: =AI81+AI87+AI83+AI79+AI85 -> 0
C79: 韓国 South Korea | E79: M JPY | F79: 4089957625 | G79: 5283263283 | H79: 1062233236 | I79: 1129295001 | J79: 2191528237 | K79: 1206488497 | L79: 3398016734 | M79: 1238156911 | N79: 4636173645 | O79: 959729265 | P79: 983386155 | Q79: 1943115420 | R79: 905995779 | S79: 2849111199 | T79: 1081427060 | U79: 3930538259 | V79: 924319964 | W79: 1005332698 | X79: 1929652662 | Y79: 1126173273 | Z79: 3055825935 | AA79: 1143660350 | AB79: 4199486285 | AC79: 1166536041 | AD79: 1171385026 | AE79: 2337921067 | AF79: 1013006465 | AG79: 3350927532 | AH79: -3350927532 | AI79: 0
E80: M KRW | F80: =F79/F121 -> 4.081794037e+10 | G80: 5.2674609e+10 | H80: 1.058001231e+10 | I80: 1.124795818e+10 | J80: 2.182797049e+10 | K80: 1.205056126e+10 | L80: 3.387853174e+10 | M80: 1.252961285e+10 | N80: 4.640814459e+10 | O80: =O79/O121 -> 1.011305864e+10 | P80: 1.082568511e+10 | Q80: =Q79/Q121 -> 20938743750 | R80: 9663954413 | S80: =S79/S121 -> 3.060269816e+10 | T80: 1.188960734e+10 | U80: =U79/U121 -> 4.24923055e+10 | V80: =V79/V121 -> 1.043250524e+10 | W80: 1.127337398e+10 | X80: =X79/X121 -> 2.170587921e+10 | Y80: 1.209750502e+10 | Z80: =Z79/Z121 -> 3.380338424e+10 | AA80: 1.204253591e+10 | AB80: =AB79/AB121 -> 4.584592014e+10 | AC80: =AC79/AC121 -> 1.189129502e+10 | AD80: 1.228575842e+10 | AE80: =AE79/AE121 -> 2.417705343e+10 | AF80: 1.047576489e+10 | AG80: =AG79/AG121 -> 3.465281832e+10 | AI80: =AI79/AI121 -> 
C81: タイ Thailand | E81: M JPY | F81: 2468844370 | G81: 3325683531 | H81: 817798187 | I81: 771534251 | J81: 1589332438 | K81: 911593428 | L81: 2500925866 | M81: 859003382 | N81: 3359929248 | O81: 908711638 | P81: 948659612 | Q81: 1857371250 | R81: 1024257458 | S81: 2881628708 | T81: 810653111 | U81: 3692281819 | V81: 805793804 | W81: 874541815 | X81: 1680335619 | Y81: 1005313350 | Z81: 2685648969 | AA81: 846512421 | AB81: 3532161390 | AC81: 922539304 | AD81: 942395055 | AE81: 1864934359 | AF81: 1038394537 | AG81: 2903328896 | AH81: -2903328896 | AI81: 0
E82: K THB | F82: =F81/F122 -> 741394705.7 | G82: 992741352.5 | H82: 241238403.2 | I82: 227591224.5 | J82: 468829627.7 | K82: 266736803.4 | L82: 735566431.2 | M82: 246869021.5 | N82: 982435452.6 | O82: =O81/O122 -> 261876552.7 | P82: 270321513.2 | Q82: =Q81/Q122 -> 532198065.9 | R82: 284127347.1 | S82: =S81/S122 -> 816325413 | T82: =U82-S82 -> 238612249.5 | U82: =U81/U122 -> 1054937663 | V82: =V81/V122 -> 239107953.7 | W82: 260991932.9 | X82: =X81/X122 -> 500099886.6 | Y82: 294470814.3 | Z82: =Z81/Z122 -> 794570700.9 | AA82: =AB82-Z82 -> 241253753.7 | AB82: =AB81/AB122 -> 1035824455 | AC82: =AC81/AC122 -> 264337909.5 | AD82: 280964534.7 | AE82: =AE81/AE122 -> 545302444.2 | AF82: 303624133.6 | AG82: =AG81/AG122 -> 848926577.8 | AH82: =AI82-AG82 ->  | AI82: =AI81/AI122 -> 
C83: シンガポール Singapore | E83: M JPY | F83: 995328729 | G83: 1303712800 | H83: 351037485 | I83: 347506861 | J83: 698544346 | K83: 339257927 | L83: 1037802273 | M83: 303726816 | N83: 1341529089 | O83: 338470487 | P83: 352807096 | Q83: 691277583 | R83: 360558328 | S83: 1051835911 | T83: =U83-S83 -> 319382485 | U83: 1371218396 | V83: 409820578 | W83: 416589833 | X83: 826410411 | Y83: 389023972 | Z83: 1215434383 | AA83: =AB83-Z83 -> 348564823 | AB83: 1563999206 | AC83: 420999998 | AD83: 420228145 | AE83: 841228143 | AF83: 446886732 | AG83: 1288114875 | AH83: =AI83-AG83 -> -1288114875 | AI83: 0
E84: K SGD | F84: =F83/F124 -> 12170808.62 | G84: 15945606.65 | H84: 4316742.314 | I84: 4245948.86 | J84: 8562691.174 | K84: 4144573.097 | L84: 12707264.27 | M84: 3718952.075 | N84: 16426216.35 | O84: =O83/O124 -> 4193662.334 | P84: 4496187.861 | Q84: =Q83/Q124 -> 8689850.195 | R84: 4489399.41 | S84: =S83/S124 -> 13179249.61 | T84: 4075291.681 | U84: =U83/U124 -> 17254541.29 | V84: =V83/V124 -> 5371174.024 | W84: 5414657.496 | X84: =X83/X124 -> 10785831.52 | Y84: 5027782.623 | Z84: =Z83/Z124 -> 15813614.14 | AA84: =AB84-Z84 -> 4328036.933 | AB84: =AB83/AB124 -> 20141651.08 | AC84: =AC83/AC124 -> 5111084.108 | AD84: 5142793.793 | AE84: =AE83/AE124 -> 10253877.9 | AF84: 5318110.433 | AG84: =AG83/AG124 -> 15571988.33 | AH84: =AI84-AG84 ->  | AI84: =AI83/AI124 -> 
C85: オーストラリア Australia | E85: M JPY | F85: 278942498 | G85: 437470055 | H85: 245641833 | I85: 359728645 | J85: 605370478 | K85: 371844096 | L85: 977214574 | M85: 459713848 | N85: 1436928422 | O85: 541301104 | P85: 708692177 | Q85: 1249993281 | R85: 683223479 | S85: 1933216760 | T85: 793941741 | U85: 2727158501 | V85: 808883270 | W85: 909740389 | X85: 1718623659 | Y85: 1035890955 | Z85: 2754514614 | AA85: 920382178 | AB85: 3674896792 | AC85: 1099678913 | AD85: 1142209417 | AE85: 2241888330 | AF85: 1091093192 | AG85: 3332981522 | AH85: -3332981522 | AI85: 0
E86: K AUD | F86: =F85/F126 -> 3236367.305 | G86: 5100501.982 | H86: 2997825.641 | I86: 4405506.608 | J86: 7403332.249 | K86: 4603235.806 | L86: 12006568.06 | M86: 5770599.111 | N86: 17777167.17 | O86: =O85/O126 -> 7028971.614 | P86: 9571204.76 | Q86: =Q85/Q126 -> 16600176.37 | R86: 9073352.975 | S86: =S85/S126 -> 25673529.35 | T86: 11090537.8 | U86: =U85/U126 -> 36764067.15 | V86: =V85/V126 -> 11507800.11 | W86: 12106155.08 | X86: =X85/X126 -> 23613955.19 | Y86: 13669675.21 | Z86: =Z85/Z126 -> 37283630.4 | AA86: 11140362.11 | AB86: =AB85/AB126 -> 48423992.52 | AC86: =AC85/AC126 -> 13060319.63 | AD86: 14077900.08 | AE86: =AE85/AE126 -> 27138219.71 | AF86: 13086032.31 | AG86: =AG85/AG126 -> 40224252.02 | AI86: =AI85/AI126 -> 
C87: フィリピン Philippines | E87: M JPY | F87: 362082008 | G87: 519047620 | H87: 183418388 | I87: 173735271 | J87: 357153659 | K87: 0 | L87: 357153659 | M87: 0 | N87: 357153659 | O87: 0 | P87: 0 | Q87: 0 | R87: 0 | S87: 0 | T87: 0 | U87: 0 | V87: 0 | W87: 0 | X87: 0 | Y87: 0 | Z87: 0 | AA87: 0 | AB87: 0 | AC87: 0 | AD87: 0 | AE87: 0 | AF87: 0 | AG87: 0 | AH87: 0 | AI87: 0
E88: K PHP | F88: 163100003.2 | G88: 237008045.7 | H88: 88181917.31 | I88: 82705000.87 | J88: 170886918.2 | K88: 0 | L88: 170886918.2 | M88: 0 | N88: 170886918.2 | O88: 170886918.2 | P88: 0 | Q88: 170886918.2 | R88: -170886918.2 | S88: =S87/S123 -> 0 | T88: 0 | U88: =U87/U123 -> 0 | V88: =V87/V123 -> 0 | W88: 0 | X88: =X87/X123 -> 0 | Y88: 0 | Z88: =Z87/Z123 -> 0 | AA88: 0 | AB88: =AB87/AB123 -> 0 | AC88: =AC87/AC123 -> 0 | AD88: 0 | AE88: =AE87/AE123 -> 0 | AF88: 0 | AG88: =AG87/AG123 -> 0 | AI88: =AI87/AI123 -> 
C89: スペイン Spain | E89: M JPY | F89: 13576697 | G89: 13576697 | H89: 0 | I89: 0 | J89: 0 | K89: 0 | L89: 0 | M89: 0 | N89: 0 | O89: 0 | P89: 0 | Q89: 0 | R89: 0 | S89: 0 | T89: 0 | U89: 0 | V89: 0 | W89: 0 | X89: 0 | Y89: 0 | Z89: 0 | AA89: 0 | AB89: 0 | AC89: 0 | AD89: 0 | AE89: 0 | AF89: 0 | AG89: 0 | AH89: 0 | AI89: 0
E90: K EUR | F90: =F89/F128 -> 105581.2816 | G90: 107223 | H90: 0 | I90: 0 | J90: 0 | K90: 0 | L90: 0 | M90: 0 | N90: 0 | O90: =O89/O128 -> 0 | P90: 0 | Q90: =Q89/Q128 -> 0 | R90: 0 | S90: =S89/S128 -> 0 | T90: 0 | U90: =U89/U128 -> 0 | V90: =V89/V128 -> 0 | W90: 0 | X90: =X89/X128 -> 0 | Y90: 0 | Z90: =Z89/Z128 -> 0 | AA90: 0 | AB90: =AB89/AB128 -> 0 | AC90: =AC89/AC128 -> 0 | AD90: 0 | AE90: =AE89/AE128 -> 0 | AF90: 0 | AG90: =AG89/AG128 -> 0 | AI90: =AI89/AI128 -> 
B91: *香港のうち、カルビーイーコマースの採用通貨はJPY *Within Hong Kong, Calbee E-commerce uses JPY
A93: 国内営業利益、海外営業利益 Domestic operating income, Overseas operating income
B95: 国内営業利益 Domestic operating income | F95: =F112-F96 -> 19924225482 | G95: =G112-G96 -> 28316940112 | H95: 5790561089 | I95: 5991013997 | J95: 11781575086 | K95: 8872331130 | L95: 20653906216 | M95: 6415978129 | N95: 27069884345 | O95: =O112-O96 -> 6135018640 | P95: =Q95-O95 -> 6462088339 | Q95: =Q112-Q96 -> 12597106979 | R95: =S95-Q95 -> 8523255683 | S95: =S112-S96 -> 21120362662 | T95: =U95-S95 -> 5573447471 | U95: =U112-U96 -> 26693810133 | V95: =V112-V96 -> 5603168475 | W95: =X95-V95 -> 5767179530 | X95: =X112-X96 -> 11370348005 | Y95: =Z95-X95 -> 8143809102 | Z95: =Z112-Z96 -> 19514157107 | AA95: =AB95-Z95 -> 5188293222 | AB95: =AB112-AB96 -> 24702450329 | AC95: =AC112-AC96 -> 6342889715 | AD95: =AE95-AC95 -> 5856838548 | AE95: =AE112-AE96 -> 1.219972826e+10 | AF95: =AG95-AE95 -> 7165459586 | AG95: =AG112-AG96 -> 1.936518785e+10 | AH95: =AI95-AG95 -> -1.936518785e+10 | AI95: =AI112-AI96 -> 0
B96: 海外営業利益 Overseas operating income | F96: =SUM(F97,F98,F102,F103,F104,F110) -> -733954067 | G96: =SUM(G97,G98,G102,G103,G104,G110) -> -1488102335 | H96: -16272122 | I96: -24341664 | J96: -40613786 | K96: -171809742 | L96: -212423528 | M96: 106803277 | N96: -105620251 | O96: =SUM(O97,O98,O102,O103,O104,O110) -> 313843463 | P96: =Q96-O96 -> 347508856 | Q96: =SUM(Q97,Q98,Q102,Q103,Q104,Q110) -> 661352319 | R96: 97603205 | S96: =SUM(S97,S98,S102,S103,S104,S110) -> 758955524 | T96: =U96-S96 -> 211832358 | U96: =SUM(U97,U98,U102,U103,U104,U110) -> 970787882 | V96: =SUM(V97,V98,V102,V103,V104,V110) -> 949532556.3 | W96: =X96-V96 -> 694086361.7 | X96: =SUM(X97,X98,X102,X103,X104,X110) -> 1643618918 | Y96: 683824964 | Z96: =SUM(Z97,Z98,Z102,Z103,Z104,Z110) -> 2327443882 | AA96: =AB96-Z96 -> 34125257 | AB96: =SUM(AB97,AB98,AB102,AB103,AB104,AB110) -> 2361569139 | AC96: =SUM(AC97,AC98,AC102,AC103,AC104,AC110) -> 595991380.8 | AD96: =AE96-AC96 -> 506353812.1 | AE96: =SUM(AE97,AE98,AE102,AE103,AE104,AE110) -> 1102345193 | AF96: 417906921.2 | AG96: =SUM(AG97,AG98,AG102,AG103,AG104,AG110) -> 1520252114 | AH96: =AI96-AG96 -> -1520252114 | AI96: =SUM(AI97,AI98,AI102,AI103,AI104,AI110) -> 0
C97: 北米 North America | F97: -427494428 | G97: -706716993 | H97: 159244464 | I97: 20888285 | J97: 180132749 | K97: -123411420 | L97: 56721329 | M97: 14825083 | N97: 71546412 | O97: -21111829 | P97: 25219573 | Q97: 4107744 | R97: -416927406 | S97: -412819662 | T97: 2713023 | U97: -410106639 | V97: 111866873 | W97: 277812221 | X97: 389679094 | Y97: 297465987 | Z97: 687145081 | AA97: -63978712 | AB97: 623166369 | AC97: 54936505 | AD97: =AE97-AC97 -> -3307078 | AE97: 51629427 | AF97: -122283194 | AG97: -70653767 | AH97: 70653767 | AI97: 0
C98: 中華圏 Greater China | F98: =SUM(F99:F101) -> 471145045 | G98: =SUM(G99:G101) -> 161141142 | H98: -58866923 | I98: 156807716 | J98: 97940793 | K98: 238379986 | L98: 336320779 | M98: 24802881 | N98: 361123660 | O98: =SUM(O99:O101) -> 176175077 | P98: 233748675 | Q98: =SUM(Q99:Q101) -> 409923752 | R98: 324395470 | S98: =SUM(S99:S101) -> 734319222 | T98: 169677483 | U98: =SUM(U99:U101) -> 903996705 | V98: =SUM(V99:V101) -> 483207632 | W98: 160408537 | X98: =SUM(X99:X101) -> 643616169 | Y98: 42115142 | Z98: =SUM(Z99:Z101) -> 685731311 | AA98: -69808547 | AB98: =SUM(AB99:AB101) -> 615922764 | AC98: =SUM(AC99:AC101) -> 257673241 | AD98: 384105766 | AE98: =SUM(AE99:AE101) -> 641779007 | AF98: 239482870 | AG98: =SUM(AG99:AG101) -> 881261877 | AH98: -881261877 | AI98: =SUM(AI99:AI101) -> 0
D99: 中国 | F99: 181514263 | G99: 158447292 | H99: -15030691 | I99: 13825917 | J99: -1204774 | K99: 119626321 | L99: 118421547 | M99: -16046112 | N99: 102375435 | O99: 23949486 | P99: 113266974 | Q99: 137216460 | R99: 198712388 | S99: 335928848 | T99: 76696511 | U99: 412625359 | V99: 252895187 | W99: 106659077 | X99: 359554264 | Y99: 26145809 | Z99: 385700073 | AA99: -107660005 | AB99: 278040068 | AC99: 238304113 | AD99: 370751133 | AE99: 609055246 | AF99: 208701077 | AG99: 817756323 | AH99: -817756323 | AI99: 0
D100: 香港 | F100: 415477627 | G100: 354352916 | H100: 132051194 | I100: 134184298 | J100: 266235492 | K100: 128648883 | L100: 394884375 | M100: 36545984 | N100: 431430359 | O100: 152240199 | P100: 120553467 | Q100: 272793666 | R100: 125689117 | S100: 398482783 | T100: 92888563 | U100: 491371346 | V100: 230317845 | W100: 53754860 | X100: 284072705 | Y100: 15958533 | Z100: 300031238 | AA100: 37851458 | AB100: 337882696 | AC100: 19369128 | AD100: 13354633 | AE100: 32723761 | AF100: 30781793 | AG100: 63505554 | AH100: -63505554 | AI100: 0
D101: 台湾 | F101: -125846845 | G101: -351659066 | H101: -175887426 | I101: 8797501 | J101: -167089925 | K101: -9895218 | L101: -176985143 | M101: 4303009 | N101: -172682134 | O101: -14608 | P101: -71766 | Q101: -86374 | R101: -6035 | S101: -92409 | T101: 92409 | U101: 0 | V101: -5400 | W101: -5400 | X101: -10800 | Y101: 10800 | Z101: 0 | AA101: 0 | AB101: 0 | AC101: 0 | AD101: 0 | AE101: 0 | AF101: 0 | AG101: 0 | AH101: 0 | AI101: 0
C102: UK | F102: -285614463 | G102: -396417044 | H102: -109685208 | I102: -142919911 | J102: -252605119 | K102: -132718971 | L102: -385324090 | M102: -58824588 | N102: -444148678 | O102: 9616453 | P102: 27826732 | Q102: 37443185 | R102: -32238114 | S102: 5205071 | T102: -34640952 | U102: -29435881 | V102: 15965494.32 | W102: 47492702.68 | X102: 63458197 | Y102: 70871435 | Z102: 134329632 | AA102: 20373714 | AB102: 154703346 | AC102: -19259787.24 | AD102: 15932340.13 | AE102: -3327447.114 | AF102: =AG102-AE102 -> 31921466.15 | AG102: 28594019.04 | AH102: -28594019.04 | AI102: 0
C103: インドネシア | F103: -526477451 | G103: -720376418 | H103: -153923191 | I103: -152479340 | J103: -306402531 | K103: -292058482 | L103: -598461013 | M103: -187403483 | N103: -785864496 | O103: -144186192 | P103: -135639263 | Q103: -279825455 | R103: -119625789 | S103: -399451244 | T103: -123431452 | U103: -522882696 | V103: -64278262 | W103: -87285250 | X103: -151563512 | Y103: -81014459 | Z103: -232577971 | AA103: -269103671 | AB103: -501681642 | AC103: -52119161 | AD103: -313552568 | AE103: -365671729 | AF103: -22313224 | AG103: -387984953 | AH103: 387984953 | AI103: 0
C104: その他アジア・豪州 Other Asian reagions and Australia | F104: =SUM(F105:F110) -> 73827751 | G104: =SUM(G105:G110) -> 213789435 | H104: 146958736 | I104: 93361586 | J104: 240320322 | K104: 137999145 | L104: 378319467 | M104: 313403384 | N104: 691722851 | O104: =SUM(O105:O110) -> 293349954 | P104: 196353139 | Q104: =SUM(Q105:Q110) -> 489703093 | R104: 341999044 | S104: =SUM(S105:S110) -> 831702137 | T104: 197514256 | U104: =SUM(U105:U110) -> 1029216393 | V104: =SUM(V105:V110) -> 402770819 | W104: 295658151 | X104: =SUM(X105:X110) -> 698428970 | Y104: 354386859 | Z104: =SUM(Z105:Z110) -> 1052815829 | AA104: 416642473 | AB104: =SUM(AB105:AB110) -> 1469458302 | AC104: =SUM(AC105:AC110) -> 354760583 | AD104: 423175352 | AE104: =SUM(AE105:AE110) -> 777935935 | AF104: 291099003 | AG104: =SUM(AG105:AG110) -> 1069034938 | AH104: -1069034938 | AI104: =SUM(AI105:AI110) -> 0
D105: 韓国 South Korea | F105: -48131215 | G105: -42126893 | H105: -14181275 | I105: -8705666 | J105: -22886941 | K105: 6082265 | L105: -16804676 | M105: 48338053 | N105: 31533377 | O105: 7568558 | P105: 372077 | Q105: 7940635 | R105: 7824820 | S105: 15765455 | T105: 41769928 | U105: 57535383 | V105: 34377346 | W105: 6635840 | X105: 41013186 | Y105: 9492178 | Z105: 50505364 | AA105: 44351109 | AB105: 94856473 | AC105: 30780645 | AD105: 10381010 | AE105: 41161655 | AF105: -59757425 | AG105: -18595770 | AH105: 18595770 | AI105: 0
D106: タイ | F106: 286823880 | G106: 421784024 | H106: 144832940 | I106: 75766705 | J106: 220599645 | K106: 54192569 | L106: 274792214 | M106: 199688131 | N106: 474480345 | O106: 161822582 | P106: 72449672 | Q106: 234272254 | R106: 156883860 | S106: 391156114 | T106: 151466251 | U106: 542622365 | V106: 176971451 | W106: 133984976 | X106: 310956427 | Y106: 113390581 | Z106: 424347008 | AA106: 167670451 | AB106: 592017459 | AC106: 81399921 | AD106: 156309072 | AE106: 237708993 | AF106: 138372218 | AG106: 376081211 | AH106: -376081211 | AI106: 0
D107: フィリピン | F107: -177763766 | G107: -200704547 | H107: -9182272 | I107: -27165125 | J107: -36347397 | K107: 0 | L107: -36347397 | M107: 0 | N107: -36347397 | O107: 0 | P107: 0 | Q107: 0 | R107: 0 | S107: 0 | T107: 0 | U107: 0 | V107: 0 | W107: 0 | X107: 0 | Y107: 0 | Z107: 0 | AA107: 0 | AB107: 0 | AC107: 0 | AD107: 0 | AE107: 0 | AF107: 0 | AG107: 0 | AH107: 0 | AI107: 0
D108: シンガポール | F108: 61362774 | G108: 68621850 | H108: 19897294 | I108: 26774806 | J108: 46672100 | K108: 12900776 | L108: 59572876 | M108: 13030404 | N108: 72603280 | O108: 28860918 | P108: 26692576 | Q108: 55553494 | R108: 25921105 | S108: 81474599 | T108: 14473334 | U108: 95947933 | V108: 57616444 | W108: 60507700 | X108: 118124144 | Y108: 13220504 | Z108: 131344648 | AA108: 25635408 | AB108: 156980056 | AC108: 57017149 | AD108: 67187510 | AE108: 124204659 | AF108: 64037933 | AG108: 188242592 | AH108: -188242592 | AI108: 0
D109: オーストラリア | F109: -9123401 | G109: 5737458 | H109: 5592049 | I109: 26690866 | J109: 32282915 | K109: 64823535 | L109: 97106450 | M109: 52346796 | N109: 149453246 | O109: 95097896 | P109: 96838814 | Q109: 191936710 | R109: 151369259 | S109: 343305969 | T109: -10195257 | U109: 333110712 | V109: 133805578 | W109: 94529635 | X109: 228335213 | Y109: 218283596 | Z109: 446618809 | AA109: 178985505 | AB109: 625604314 | AC109: 185562868 | AD109: 189297760 | AE109: 374860628 | AF109: 148446277 | AG109: 523306905 | AH109: -523306905 | AI109: 0
C110: 欧州 Europe | F110: =SUM(F111) -> -39340521 | G110: =SUM(G111) -> -39522457 | H110: 0 | I110: 0 | J110: 0 | K110: 0 | L110: 0 | M110: 0 | N110: 0 | O110: =SUM(O111) -> 0 | P110: 0 | Q110: 0 | R110: 0 | S110: 0 | T110: 0 | U110: 0 | V110: 0 | W110: 0 | X110: 0 | Y110: 0 | Z110: 0 | AA110: 0 | AB110: 0 | AC110: 0 | AD110: 0 | AE110: 0 | AF110: 0 | AG110: 0 | AH110: 0 | AI110: 0
D111: スペイン | F111: -39340521 | G111: -39522457 | H111: 0 | I111: 0 | J111: 0 | K111: 0 | L111: 0 | M111: 0 | N111: 0 | O111: 0 | P111: 0 | Q111: 0 | R111: 0 | S111: 0 | T111: 0 | U111: 0 | V111: 0 | W111: 0 | X111: 0 | Y111: 0 | Z111: 0 | AA111: 0 | AB111: 0 | AC111: 0 | AD111: 0 | AE111: 0 | AF111: 0 | AG111: 0 | AH111: 0 | AI111: 0
B112: 連結営業利益 | F112: =F29 -> 19190271415 | G112: =G29 -> 26828837777 | H112: 5774288967 | J112: 11740961300 | K112: 8700521388 | L112: 20441482688 | M112: 6522781406 | N112: 26964264094 | O112: =O29 -> 6448862103 | P112: 6809597195 | Q112: =Q29 -> 13258459298 | R112: 8620858888 | S112: =S29 -> 21879318186 | T112: 5785279829 | U112: =U29 -> 27664598015 | V112: =V29 -> 6552701031 | W112: 6461265892 | X112: =X29 -> 13013966923 | Y112: 8827634066 | Z112: =Z29 -> 21841600989 | AA112: 5222418479 | AB112: =AB29 -> 27064019468 | AC112: =AC29 -> 6938881096 | AD112: 6363192360 | AE112: =AE29 -> 13302073456 | AF112: 7583366507 | AG112: =AG29 -> 20885439963 | AH112: -20885439963 | AI112: =AI29 -> 0
A114: 為替レート Exchange rate
B116: 期中平均レート Average rate during the period
C117: USD/JPY | F117: 111.81 | G117: 111.81 | H117: 108.7 | J117: 110.06 | L117: 110.82 | N117: 110.69 | O117: 109.99 | Q117: 109 | S117: 109.1 | U117: 109.1 | V117: 107.74 | X117: 106.67 | Z117: 105.87 | AB117: 106.16 | AC117: 109.99 | AE117: 110.18 | AG117: 111.37 | AI117: 0
C118: RMB/JPY | F118: 16.65 | G118: 16.65 | H118: 16.96 | J118: 16.68 | L118: 16.55 | N118: 16.52 | O118: 16.12 | Q118: 15.75 | S118: 15.7 | U118: 15.66 | V118: 15.16 | X118: 15.21 | Z118: 15.38 | AB118: 15.62 | AC118: 17 | AE118: 17.03 | AG118: 17.29 | AI118: 0
C119: HKD/JPY | F119: 14.33 | G119: 14.33 | H119: 13.85 | J119: 14.03 | L119: 14.13 | N119: 14.11 | O119: 14.03 | Q119: 13.9 | S119: 13.93 | U119: 13.95 | V119: 13.9 | X119: 13.76 | Z119: 13.66 | AB119: 13.69 | AC119: 14.16 | AE119: 14.17 | AG119: 14.31 | AI119: 0
C120: TWD/JPY | F120: 3.7 | G120: 3.7 | H120: 3.64 | J120: 3.64 | L120: 3.64 | N120: 3.63 | O120: 3.53 | Q120: 3.5 | S120: 3.53 | U120: 3.54 | V120: 3.6 | X120: 3.6 | Z120: 3.61 | AB120: 3.66 | AC120: 3.92 | AE120: 3.94 | AG120: 3.99 | AI120: 0
C121: KRW/JPY | F121: 0.1002 | G121: 0.1002 | H121: 0.1004 | J121: 0.1004 | L121: 0.1003 | N121: 0.0999 | O121: 0.0949 | Q121: 0.0928 | S121: 0.0931 | U121: 0.0925 | V121: 0.0886 | X121: 0.0889 | Z121: 0.0904 | AB121: 0.0916 | AC121: 0.0981 | AE121: 0.0967 | AG121: 0.0967 | AI121: 0
C122: THB/JPY | F122: 3.33 | G122: 3.33 | H122: 3.39 | J122: 3.39 | L122: 3.4 | N122: 3.42 | O122: 3.47 | Q122: 3.49 | S122: 3.53 | U122: 3.5 | V122: 3.37 | X122: 3.36 | Z122: 3.38 | AB122: 3.41 | AC122: 3.49 | AE122: 3.42 | AG122: 3.42 | AI122: 0
C123: PHP/JPY | F123: 2.22 | G123: 2.22 | H123: 2.08 | J123: 2.09 | L123: 2.11 | N123: 2.11 | O123: 2.12 | Q123: 2.11 | S123: 2.13 | U123: 2.14 | V123: 2.15 | X123: 2.16 | Z123: 2.17 | AB123: 2.18 | AC123: 2.29 | AE123: 2.25 | AG123: 2.25 | AI123: 0
C124: SGD/JPY | F124: 81.78 | G124: 81.78 | H124: 81.32 | J124: 81.58 | L124: 81.67 | N124: 81.67 | O124: 80.71 | Q124: 79.55 | S124: 79.81 | U124: 79.47 | V124: 76.3 | X124: 76.62 | Z124: 76.86 | AB124: 77.65 | AC124: 82.37 | AE124: 82.04 | AG124: 82.72 | AI124: 0
C125: IDR/JPY | F125: 0.0083 | G125: 0.0083 | H125: 0.0078 | J125: 0.0077 | L125: 0.0077 | N125: 0.0077 | O125: 0.0077 | Q125: 0.0077 | S125: 0.0077 | U125: 0.0076 | V125: 0.0071 | X125: 0.0071 | Z125: 0.0072 | AB125: 0.0073 | AC125: 0.0076 | AE125: 0.0077 | AG125: 0.0078 | AI125: 0
C126: AUD/JPY | F126: 86.19 | G126: 86.19 | H126: 81.94 | J126: 81.77 | L126: 81.39 | N126: 80.83 | O126: 77.01 | Q126: 75.3 | S126: 75.3 | U126: 74.18 | V126: 70.29 | X126: 72.78 | Z126: 73.88 | AB126: 75.89 | AC126: 84.2 | AE126: 82.61 | AG126: 82.86 | AI126: 0
C127: GBP/JPY | F127: 146.23 | G127: 146.23 | H127: 147.54 | J127: 146.99 | L127: 145.83 | N127: 145.67 | O127: 140.88 | Q127: 136.83 | S127: 138.33 | U127: 138.51 | V127: 132.83 | X127: 135.03 | Z127: 135.88 | AB127: 138.68 | AC127: 153.23 | AE127: 152.48 | AG127: 153.1 | AI127: 0
C128: EUR/JPY | F128: 128.59 | G128: 128.59 | H128: 129.38 | J128: 129.88 | L128: 129.38 | N128: 128.43 | O128: 123.29 | Q128: 121.43 | S128: 121.46 | U128: 121.13 | V128: 118.94 | X128: 121.36 | Z128: 122.3 | AB128: 123.72 | AC128: 131.77 | AE128: 130.96 | AG128: 130.84 | AI128: 0
B129: 期末日レート Current rate
C130: USD/JPY | F130: 113 | G130: 113 | H130: 110.54 | J130: 113.57 | L130: 111 | N130: 110.99 | O130: 107.79 | Q130: 107.92 | S130: 109.56 | U130: 108.83 | V130: 107.74 | X130: 105.8 | Z130: 103.5 | AB130: 110.71 | AC130: 110.58 | AE130: 111.92 | AG130: 115.02 | AI130: 0
C131: RMB/JPY | F131: 17.29 | G131: 17.29 | H131: 16.66 | J131: 16.5 | L131: 16.16 | N131: 16.47 | O131: 15.69 | Q131: 15.13 | S131: 15.67 | U131: 15.31 | V131: 15.23 | X131: 15.54 | Z131: 15.88 | AB131: 16.84 | AC131: 17.11 | AE131: 17.3 | AG131: 18.06 | AI131: 0
C132: GBP/JPY | F132: 151.95 | G132: 151.95 | H132: 144.59 | J132: 148.53 | L132: 140.46 | N132: 144.98 | O132: 136.57 | Q132: 132.69 | S132: 143.48 | U132: 133.32 | V132: 132.51 | X132: 136.09 | Z132: 139.82 | AB132: 152.23 | AC132: 153.16 | AE132: 150.43 | AG132: 155.24 | AI132: 0
C133: IDR/JPY | F133: 0.0084 | G133: 0.0084 | H133: 0.0077 | J133: 0.0076 | L133: 0.0077 | N133: 0.0078 | O133: 0.0077 | Q133: 0.0076 | S133: 0.0079 | U133: 0.0067 | V133: 0.0076 | X133: 0.0072 | Z133: 0.0074 | AB133: 0.0077 | AC133: 0.0077 | AE133: 0.0079 | AG133: 0.0081 | AI133: 0
A135: 設備投資・減価償却 Capex and depreciation （百万円 Million yen）
B137: 設備投資 Capex | G137: 11009.44534 | N137: 9945 | U137: 9004 | AB137: 9004
C138: 国内 Domestic | G138: 9338.712073 | N138: 7757 | U138: 7765 | AB138: 7765
C139: 海外 Overseas | G139: 1670.733264 | N139: 2188 | U139: 1239 | AB139: 1239
B140: 減価償却費 Depreciation | G140: 7845712180 | N140: 8023956174 | U140: =SUM(U141:U142) -> 8449437288 | AB140: =SUM(AB141:AB142) -> 8449437288
C141: 国内 Domestic | G141: 6241545320 | N141: 6198345139 | U141: 6416098791 | AB141: 6416098791
C142: 海外 Overseas | G142: 1604166860 | N142: 1825611035 | U142: 2033338497 | AB142: 2033338497
B144: 有形固定資産取得 | F144: 9234477126 | G144: 9234477126 | H144: 3305912994 | J144: 6017792823 | L144: 7404199518 | N144: 9390346115 | O144: 1691308209 | Q144: 3832909793 | S144: 6062414251 | U144: 8392924832 | V144: 2179978590 | X144: 4602682605 | Z144: 8305518035 | AB144: 10715259981 | AC144: 3730609652 | AE144: 6448745740 | AG144: 9833674626 | AI144: 0
B145: 無形固定資産取得 | F145: 318685423 | G145: 318685423 | H145: 144072131 | J145: 279105782 | L145: 463443412 | N145: 555207814 | O145: 172169876 | Q145: 305031518 | S145: 471285065 | U145: 612035081 | V145: 153795386 | X145: 256460299 | Z145: 439483671 | AB145: 626705589 | AC145: 232159080 | AE145: 506420484 | AG145: 716388712 | AI145: 0
A146: 研究開発費 Research and development costs（百万円 Million yen)
B148: 研究開発費 | G148: 2469539399 | N148: 2660631540 | U148: 2745947698 | AB148: 2745947698
A150: 配当状況 Dividends
B152: 1株当たり年間配当金 Annual dividend per share (円 Yen) | G152: 42 | N152: 48 | U152: 50 | AB152: 50
B153: 配当性向 Dividend payout ratio (%) | G153: 32.4 | N153: 33 | U153: 38.1 | AB153: 38.1
B154: 配当金総額 Total dividend amount (百万円 Million yen) | F154: 5620480656 | G154: 5622748656 | H154: 5622748656 | J154: 5622748656 | L154: 5622748656 | N154: 6428206464 | U154: 6696444450 | AB154: 6696444450

Sheet 円 (hidden)
A4: 財務指標 | L4: FY2014 | M4: 2015年3月期 FY2015 | T4: 2016年3月期 FY2016 | AA4: 2017年3月期 FY2017 | AH4: 2018年3月期 FY2018 | AO4: 2019年3月期 FY2019 | AV4: 2020年3月期 FY2019 | BC4: 20**年3月期
S5: FY2015 | Z5: FY2016 | AG5: FY2017 | AH5: Q1 | AI5: Q2 | AJ5: 上期 | AK5: Q3 | AL5: 9ヶ月 | AM5: Q4 | AN5: FY2018 | AO5: Q1 | AP5: Q2 | AQ5: 上期 | AR5: Q3 | AS5: 9ヶ月 | AT5: Q4 | AU5: FY2019 | AV5: Q1 | AW5: Q2 | AX5: 上期 | AY5: Q3 | AZ5: 9ヶ月 | BA5: Q4 | BB5: FY2020 | BC5: 計画
B6: 自己資本利益率 ROE (%) | S6: 13.7 | Z6: 14.6 | AA6: 3.221956157 | AG6: 14.9 | AH6: 1.831097435 | AL6: 9.626359558 | AN6: 12.95781691 | AO6: 3.044295055 | AP6: 6.676763261 | AS6: 10.08163556 | AU6: 13.2
B7: 1株あたり当期純利益 EPS (円 yen) | S7: 105.82 | Z7: 125.88 | AA7: 28.69 | AG7: 139.24 | AH7: 17.12 | AL7: 97.8 | AN7: 129.72 | AO7: 31.54 | AP7: 72.06 | AS7: 112.4 | AU7: 145.39 | AV7: 31.76 | AW7: 65.99
B8: 1株当たり純資産額 | S8: 821.97 | Z8: 905.2 | AG8: 958.6 | AN8: 1043.37 | AO8: 0 | AP8: 0 | AS8: 0 | AU8: 1151.71
B9: 営業活動によるCF | S9: 22266440600 | Z9: 22541679868 | AA9: 6840094363 | AG9: 25958438445 | AH9: 281757072 | AL9: -6766416403 | AN9: 9358968238 | AO9: 5730343440 | AP9: 12283757461 | AS9: 11380668418 | AU9: 27620969848
B10: 投資活動によるCF | S10: -9422099792 | Z10: -14270272595 | AA10: -2137267392 | AG10: -13404126108 | AH10: -108312921 | AL10: -10505692195 | AN10: -6258088694 | AO10: -3992357429 | AP10: -14600111851 | AS10: -19170063947 | AU10: -28347343393
B11: 財務活動によるCF | S11: -2878118521 | Z11: -2859478218 | AA11: -4446515659 | AG11: -14711942372 | AH11: -5424434843 | AL11: -1726103111 | AN11: -5450518221 | AO11: -5389823189 | AP11: -1421811982 | AS11: -3393656906 | AU11: -6227483517
B12: 現金及び現金同等物残高 | S12: 4.257236191e+10 | Z12: 47323583228 | AA12: 44627296366 | AB12: 44627296366 | AC12: 44627296366 | AD12: 44627296366 | AE12: 44627296366 | AF12: 44627296366 | AG12: 44627296366 | AH12: 39427138953 | AI12: 42195201303 | AJ12: 42195201303 | AK12: 42195201303 | AL12: 25900469306 | AM12: 42195201303 | AN12: 42195201303 | AO12: 38581259049 | AP12: 38723215248 | AS12: 31157610051 | AU12: 35425891287
B13: 総資産 | S13: 161968549919 | Z13: 174878549357 | AA13: 181945803864 | AB13: 181945803864 | AC13: 181945803864 | AD13: 181945803864 | AE13: 181945803864 | AF13: 181945803864 | AG13: 181945803864 | AH13: 192034489170 | AI13: 192034489170 | AJ13: 192034489170 | AK13: 192034489170 | AL13: 187584701136 | AM13: 192034489170 | AN13: 192034489170 | AO13: 184994336019 | AP13: 196890619877 | AS13: 197360646748 | AU13: 202750168779
B14: 純資産 | S14: 118800452580 | Z14: 131469689286 | AA14: 135056717053 | AB14: 135056717053 | AC14: 135056717053 | AD14: 135056717053 | AE14: 135056717053 | AF14: 135056717053 | AG14: 135056717053 | AH14: 146667727737 | AI14: 146667727737 | AJ14: 146667727737 | AK14: 146667727737 | AL14: 143300642464 | AM14: 146667727737 | AN14: 146667727737 | AO14: 145411475603 | AP14: 150987272976 | AS14: 155569294711 | AU14: 160490065970
B15: 自己資本比率 | S15: 67.7 | Z15: 69.1 | AA15: 70.4 | AB15: 70.4 | AC15: 70.4 | AD15: 70.4 | AE15: 70.4 | AF15: 70.4 | AG15: 70.4 | AH15: 72.6 | AI15: 72.6 | AJ15: 72.6 | AK15: 72.6 | AL15: 72.36460236 | AM15: 72.6 | AN15: 72.6 | AO15: 74.82315337 | AP15: 73.24586155 | AS15: 75.48639374 | AU15: 75.92154021
A17: 損益計算書 P/L (百万円 Million yen) | F17: FY2014 | M17: 2015年3月期 FY2015 | T17: 2016年3月期 FY2016 | AA17: 2017年3月期 FY2017 | AH17: 2018年3月期 FY2018 | AO17: 2019年3月期 FY2019 | AV17: 2020年3月期 FY2020 | BC17: 2019年3月期
M18: Q1 | N18: Q2 | O18: 上期 | P18: Q3 | Q18: 9ヶ月 | R18: Q4 | S18: FY2015 | T18: Q1 | U18: Q2 | V18: 上期 | W18: Q3 | X18: 9ヶ月 | Y18: Q4 | Z18: FY2016 | AA18: Q1 | AB18: Q2 | AC18: 上期 | AD18: Q3 | AE18: 9ヶ月 | AF18: Q4 | AG18: FY2017 | AH18: Q1 | AI18: Q2 | AJ18: 上期 | AK18: Q3 | AL18: 9ヶ月 | AM18: Q4 | AN18: 通期 | AO18: Q1 | AP18: Q2 | AQ18: 上期 | AR18: Q3 | AS18: 9ヶ月 | AT18: Q4 | AU18: 通期 | AV18: Q1 | AW18: Q2 | AX18: 上期 | AY18: Q3 | AZ18: 9ヶ月 | BA18: Q4 | BB18: 通期 | BC18: 計画
B19: 売上高 Net sales | M19: 52269128304 | N19: 54000913240 | O19: =M19+N19 -> 106270041544 | P19: 58369776806 | Q19: =O19+P19 -> 164639818350 | R19: 57510464031 | S19: 222150282381 | T19: 59831572066 | U19: 61111289166 | V19: =T19+U19 -> 120942861232 | W19: 64224115559 | X19: =V19+W19 -> 185166976791 | Y19: =Z19-X19 -> 60962162562 | Z19: 246129139353 | AA19: 61756959347 | AB19: 61897457020 | AC19: =AA19+AB19 -> 123654416367 | AD19: 65290512936 | AE19: =AC19+AD19 -> 188944929303 | AF19: =AG19-AE19 -> 63475661910 | AG19: 252420591213 | AH19: 56519952177 | AI19: 62302203230 | AJ19: =AH19+AI19 -> 118822155407 | AK19: 67869258266 | AL19: =AJ19+AK19 -> 186691413673 | AM19: =AN19-AL19 -> 64884129461 | AN19: 251575543134 | AO19: 61231784366 | AP19: 59835235808 | AQ19: =AO19+AP19 -> 121067020174 | AR19: =AS19-AQ19 -> 65955177686 | AS19: 187022197860 | AT19: =AU19-AS19 -> 61633085245 | AU19: 248655283105 | AV19: 61912847708 | AW19: =AX19-AV19 -> 63333480281 | AX19: 125246327989 | AY19: =AZ19-AX19 -> 66858128183 | AZ19: 192104456172 | BA19: =BB19-AZ19 -> 74641447706 | BB19: =StravisData取り込み!AB19 -> 266745903878
B20: 売上原価 | M20: 29174707426 | N20: 30324731749 | O20: =M20+N20 -> 59499439175 | P20: 32187445969 | Q20: 91686885144 | R20: 32901982967 | S20: 124588868111 | T20: 34725038490 | U20: 34630539332 | V20: =T20+U20 -> 69355577822 | W20: 35549712807 | X20: 104905290629 | Y20: =Z20-X20 -> 34190328823 | Z20: 139095619452 | AA20: 34646985477 | AB20: 34429607822 | AC20: =AA20+AB20 -> 69076593299 | AD20: 36044916542 | AE20: 105121509841 | AF20: =AG20-AE20 -> 35725650948 | AG20: 140847160789 | AH20: 33390769032 | AI20: 35907702721 | AJ20: =AH20+AI20 -> 69298471753 | AK20: 37316002219 | AL20: =AJ20+AK20 -> 106614473972 | AM20: =AN20-AL20 -> 36056701449 | AN20: 142671175421 | AO20: 34524162494 | AP20: 33209628196 | AQ20: =AO20+AP20 -> 67733790690 | AR20: =AS20-AQ20 -> 35716171526 | AS20: 103449962216 | AT20: =AU20-AS20 -> 34084323865 | AU20: 137534286081 | AV20: 34291757747 | AW20: =AX20-AV20 -> 34949260153 | AX20: 69241017900 | AY20: =AZ20-AX20 -> 36179629303 | AZ20: 105420647203 | BA20: =BB20-AZ20 -> 43514720356 | BB20: =StravisData取り込み!AB22 -> 148935367559
B21: 売上総利益率 Gross profit | M21: 23094420878 | N21: 23676181491 | O21: 46770602369 | P21: 26182330837 | Q21: 72952933206 | R21: 24608481064 | S21: 97561414270 | T21: 25106533576 | U21: 26480749834 | V21: 51587283410 | W21: 28674402752 | X21: 80261686162 | Y21: 26771833739 | Z21: 107033519901 | AA21: 27109973870 | AB21: 27467849198 | AC21: 54577823068 | AD21: 29245596394 | AE21: =AC21+AD21 -> 83823419462 | AF21: 27750010962 | AG21: 111573430424 | AH21: 23129183145 | AI21: 26394500509 | AJ21: 49523683654 | AK21: 30553256047 | AL21: =AJ21+AK21 -> 80076939701 | AM21: 28827428012 | AN21: 108904367713 | AO21: 26707621872 | AP21: 26625607612 | AQ21: 53333229484 | AR21: 30239006160 | AS21: 83572235644 | AT21: 27548761380 | AU21: 111120997024 | AV21: 27621089961 | AW21: 28384220128 | AX21: 56005310089 | AY21: 30678498880 | AZ21: 86683808969 | BA21: 31126727350 | BB21: =StravisData取り込み!AB23 -> 117810536319
B22: 販売管理費 SG&A | M22: 17226681549 | N22: 18076787600 | O22: 35303469149 | P22: 18338182527 | Q22: 53641651676 | R22: 19736526864 | S22: 73378178540 | T22: 19008288399 | U22: 19770655954 | V22: 38778944353 | W22: 19572836033 | X22: 58351780386 | Y22: 20556247497 | Z22: 78908027883 | AA22: 19979419747 | AB22: 20844614579 | AC22: 40824034326 | AD22: 20754665300 | AE22: 61578699626 | AF22: 21153585271 | AG22: 82732284897 | AH22: 19715781446 | AI22: 19469768615 | AJ22: 39185550061 | AK22: 21701118225 | AL22: =AJ22+AK22 -> 60886668286 | AM22: 21188861650 | AN22: 82075529936 | AO22: 20933332905 | AP22: 20658935279 | AQ22: 41592268184 | AR22: 21538484772 | AS22: 63130752956 | AT22: 21025979974 | AU22: 84156732930 | AV22: 21172227858 | AW22: 21574622933 | AX22: 42746850791 | AY22: 22057639992 | AZ22: 64804490783 | BA22: =BB22-AZ22 -> 25942026068 | BB22: =StravisData取り込み!AB24 -> 90746516851
C23: 販売費 Selling | M23: 7361425396 | N23: 7953513969 | O23: 15314939365 | P23: 7857653218 | Q23: 23172592583 | R23: 9094038961 | S23: 32266631544 | T23: 8228736407 | U23: 8679185534 | V23: 16907921941 | W23: 8372667350 | X23: 25280589291 | Y23: 9372338025 | Z23: 34652927316 | AA23: 8848071656 | AB23: 9364721499 | AC23: 18212793155 | AD23: 9660758527 | AE23: 27873551682 | AF23: 10484199733 | AG23: 38357751415 | AH23: 8380770311 | AI23: 8424658313 | AJ23: 16805428624 | AK23: 9904476152 | AL23: =AJ23+AK23 -> 26709904776 | AM23: 10211457050 | AN23: 36921361826 | AO23: 9388826864 | AP23: 9554853731 | AQ23: 18943680595 | AR23: 10047029539 | AS23: 28990710134 | AT23: 10060917261 | AU23: 39051627395 | AV23: 9746212555 | AW23: 10242470075 | AX23: 19988682630 | AY23: 9988180653 | AZ23: 29976863283 | BA23: 11589786741 | BB23: =StravisData取り込み!AB25 -> 41566650024
C24: 物流費 Distribution | M24: 3365599303 | N24: 3469741086 | O24: 6835340389 | P24: 3868303952 | Q24: 10703644341 | R24: 3722162857 | S24: 14425807198 | T24: 3934110875 | U24: 3913820216 | V24: 7847931091 | W24: 4269910228 | X24: 12117841319 | Y24: 4091742378 | Z24: 16209583697 | AA24: 4077733100 | AB24: 4248851125 | AC24: 8326584225 | AD24: 4340216588 | AE24: 12666800813 | AF24: 4207418693 | AG24: 16874219506 | AH24: 4168903581 | AI24: 4115404987 | AJ24: 8284308568 | AK24: 4564903395 | AL24: 12849211963 | AM24: 4495875240 | AN24: 17345087203 | AO24: 4124081078 | AP24: 4079893314 | AQ24: 8203974392 | AR24: 4658681781 | AS24: 12862656173 | AT24: 4365879926 | AU24: 17228536099 | AV24: 4534306880 | AW24: =AX24-AV24 -> 4452443853 | AX24: 8986750733 | AY24: 4785494672 | AZ24: 13772245405 | BA24: 5475523922 | BB24: =StravisData取り込み!AB26 -> 19247769327
C25: 人件費 Labor | M25: 4192770917 | N25: 4487603017 | O25: 8680373934 | P25: 4531371874 | Q25: 13211745808 | R25: 4660805661 | S25: 17872551469 | T25: 4393560045 | U25: 4609075952 | V25: 9002635997 | W25: 4566147824 | X25: 13568783821 | Y25: 4183368484 | Z25: 17752152305 | AA25: 4391749428 | AB25: 4762648066 | AC25: 9154397494 | AD25: 4353716008 | AE25: 13508113502 | AF25: 4064875225 | AG25: 17572988727 | AH25: 4497671202 | AI25: 4390375157 | AJ25: 8888046359 | AK25: 4803691277 | AL25: 13691737636 | AM25: 3995091404 | AN25: 17686829040 | AO25: 4691935449 | AP25: 4435813011 | AQ25: 9127748460 | AR25: 4309483289 | AS25: 13437231749 | AT25: 4195159309 | AU25: 17632391058 | AV25: 4344675808 | AW25: 4547218532 | AX25: 8891894340 | AY25: 4625559647 | AZ25: 13517453987 | BA25: 5803954311 | BB25: =StravisData取り込み!AB27 -> 19321408298
C26: その他 Others | M26: 2306885933 | N26: 2165929528 | O26: 4472815461 | P26: 2080853483 | Q26: 6553668944 | R26: 2259519385 | S26: 8813188329 | T26: 2451881072 | U26: 2568574252 | V26: 5020455324 | W26: 2364110631 | X26: 7384565955 | Y26: 2908798610 | Z26: 10293364565 | AA26: 2661865563 | AB26: 2468393889 | AC26: 5130259452 | AD26: 2399974177 | AE26: 7530233629 | AF26: 2397091620 | AG26: 9927325249 | AH26: 2668436352 | AI26: 2539330158 | AJ26: 5207766510 | AK26: 2428047401 | AL26: 7635813911 | AM26: 2486437956 | AN26: 10122251867 | AO26: 2728489514 | AP26: 2588375223 | AQ26: 5316864737 | AR26: 2523290163 | AS26: 7840154900 | AT26: 2404023478 | AU26: 10244178378 | AV26: 2547032615 | AW26: 2332490473 | AX26: 4879523088 | AY26: 2658405020 | AZ26: 7537928108 | BA26: 3072761094 | BB26: =StravisData取り込み!AB28 -> 10610689202
B27: 営業利益 Operating income | M27: 5867739329 | N27: 5599393891 | O27: 11467133220 | P27: 7844148310 | Q27: 19311281530 | R27: 4871954200 | S27: 24183235730 | T27: 6098245177 | U27: 6710093880 | V27: 12808339057 | W27: 9101566719 | X27: 21909905776 | Y27: 6215586242 | Z27: 28125492018 | AA27: 7130554123 | AB27: 6623234619 | AC27: 13753788742 | AD27: 8490931094 | AE27: 22244719836 | AF27: 6596425691 | AG27: 28841145527 | AH27: 3413401699 | AI27: 6924731894 | AJ27: 10338133593 | AK27: 8852137822 | AL27: 19190271415 | AM27: 7638566362 | AN27: 26828837777 | AO27: 5774288967 | AP27: 5966672333 | AQ27: 11740961300 | AR27: 8700521388 | AS27: 20441482688 | AT27: 6522781406 | AU27: 26964264094 | AV27: 6448862103 | AW27: 6809597195 | AX27: 13258459298 | AY27: 8620858888 | AZ27: 21879318186 | BA27: 5184701282 | BB27: =StravisData取り込み!AB29 -> 27064019468
B28: 経常利益 Ordinary income | M28: 5891717120 | N28: 6326781394 | O28: 12218498514 | P28: 8718039029 | Q28: 20936537543 | R28: 4679182957 | S28: 25615720500 | T28: 6061436718 | U28: 6271773506 | V28: 12333210224 | W28: 8896967509 | X28: 21230177733 | Y28: 5315409508 | Z28: 26545587241 | AA28: 6339457537 | AB28: 6438354932 | AC28: 12777812469 | AD28: 9551044403 | AE28: 22328856872 | AF28: 6297058441 | AG28: 28625915313 | AH28: 3501844356 | AI28: 7055374795 | AJ28: 10557219151 | AK28: 8869641440 | AL28: 19426860591 | AM28: 6752740216 | AN28: 26179600807 | AO28: 6232176196 | AP28: 6327963689 | AQ28: 12560139885 | AR28: 8280116984 | AS28: 20840256869 | AT28: 6591821301 | AU28: 27432078170 | AV28: 6069012507 | AW28: 6750545420 | AX28: 12819557927 | AY28: 8943057323 | AZ28: 21762615250 | BA28: 5759423166 | BB28: =StravisData取り込み!AB30 -> 27522038416
B29: 特別損益 Extraordinary income/loss | M29: -34531785 | N29: -63689115 | O29: -98220900 | P29: -964531567 | Q29: -1062752467 | R29: -335119350 | S29: -1397871817 | T29: -40649348 | U29: -69804968 | V29: -110454316 | W29: 313303883 | X29: 202849567 | Y29: -625398784 | Z29: -422549217 | AA29: -116378566 | AB29: -81117429 | AC29: -197495995 | AD29: -116306904 | AE29: -313802899 | AF29: -611656354 | AG29: -925459253 | AH29: -38067508 | AI29: -37988392 | AJ29: -76055900 | AK29: -49753091 | AL29: -125808991 | AM29: 45347809 | AN29: -80461182 | AO29: 114677063 | AP29: 1506538087 | AQ29: 1621215150 | AR29: -269506562 | AS29: 1351708588 | AT29: -313924034 | AU29: 1037784554 | AV29: -17860707 | AW29: -43930962 | AX29: -61791669 | AY29: -84391257 | AZ29: -146182926 | BA29: -994620526 | BB29: =StravisData取り込み!AB31 -> -1140803452
B30: 非支配株主利益 Non-controlling interests profit | M30: 296814936 | N30: 299811337 | O30: 596626273 | P30: -61997314 | Q30: 534628959 | R30: 256681560 | S30: 791310519 | T30: 485641999 | U30: 323887239 | V30: 809529238 | W30: 365882247 | X30: 1175411485 | Y30: 57291143 | Z30: 1232702628 | AA30: 363754581 | AB30: 121389127 | AC30: 485143708 | AD30: -76131669 | AE30: 409012039 | AF30: -67970237 | AG30: 341041802 | AH30: -40658578 | AI30: 28923424 | AJ30: -11735154 | AK30: -74460998 | AL30: -86196152 | AM30: -172130516 | AN30: -258326668 | AO30: 48376408 | AP30: -1296080 | AQ30: 47080328 | AR30: -61971641 | AS30: -14891313 | AT30: -38801450 | AU30: -53692763 | AV30: 38964865 | AW30: 31997581 | AX30: 70962446 | AY30: 35807681 | AZ30: 106770127 | BA30: 276424894 | BB30: =StravisData取り込み!AB32 -> 383195021
B31: 当期純利益* Net profit* | M31: 3378355052 | N31: 3686392946 | O31: 7064747998 | P31: 4723575272 | Q31: 11788323270 | R31: 2326566284 | S31: 14114889554 | T31: 3482994720 | U31: 4171744360 | V31: 7654739080 | W31: 5737690190 | X31: 13392429270 | Y31: 3406603977 | Z31: 16799033247 | AA31: 3832650477 | AB31: 4151675648 | AC31: 7984326125 | AD31: 6423159173 | AE31: 14407485298 | AF31: 4197568478 | AG31: 18605053776 | AH31: 2287680218 | AI31: 4757858792 | AJ31: 7045539010 | AK31: 6021755367 | AL31: 13067294377 | AM31: 4263606120 | AN31: 17330900497 | AO31: 4213870466 | AP31: 5414972315 | AQ31: 9628842781 | AR31: 5390821716 | AS31: 15019664497 | AT31: 4409913237 | AU31: 19429577734 | AV31: 4245211826 | AW31: 4574943737 | AX31: 8820155563 | AY31: 5860794055 | AZ31: 14680949618 | BA31: 3001439152 | BB31: =StravisData取り込み!AB33 -> 17682388770
B32: *当期純利益は、親会社株主に帰属する当期純利益になります *Profit attributable to owners of parent | AP32: 0 | AW32: 0
A34: 製品別売上高 Sales by product （百万円 Million yen) | F34: FY2014 | M34: 2015年3月期 FY2015 | T34: 2016年3月期 FY2016 | AA34: 2017年3月期 FY2017 | AH34: 2018年3月期 FY2018 | AO34: 2019年3月期 FY2019 | AV34: 2020年3月期 FY2020 | BC34: 2019年3月期
F35: Q1 | G35: Q2 | H35: 上期 | I35: Q3 | J35: 9ヶ月 | K35: Q4 | L35: FY2014 | M35: Q1 | N35: Q2 | O35: 上期 | P35: Q3 | Q35: 9ヶ月 | R35: Q4 | S35: FY2015 | T35: Q1 | U35: Q2 | V35: 上期 | W35: Q3 | X35: 9ヶ月 | Y35: Q4 | Z35: FY2016 | AA35: Q1 | AB35: Q2 | AC35: 上期 | AD35: Q3 | AE35: 9ヶ月 | AF35: Q4 | AG35: FY2017 | AH35: Q1 | AI35: Q2 | AJ35: 上期 | AK35: Q3 | AL35: 9ヶ月 | AM35: Q4 | AO35: Q1 | AP35: Q2 | AQ35: 上期 | AR35: Q3 | AS35: 9ヶ月 | AT35: Q4 | AV35: Q1 | AW35: Q2 | AX35: 上期 | AY35: Q3 | AZ35: 9ヶ月 | BA35: Q4 | BC35: 計画
B36: 国内スナック Domestic snack foods | F36: 36633301776 | G36: 36975430200 | I36: 41702483572 | K36: 39055985410 | L36: 157353352437 | M36: =M47+M51+M54+M55 -> 38760429373 | N36: =N47+N51+N54+N55 -> 40356707030 | O36: =M36+N36 -> 79117136403 | P36: =P47+P51+P54+P55 -> 43761201459 | Q36: =O36+P36 -> 122878337862 | R36: =R47+R51+R54+R55 -> 42023771186 | S36: =S47+S51+S54+S55 -> 164902109048 | T36: =T47+T51+T54+T55 -> 4.133596168e+10 | U36: =U47+U51+U54+U55 -> 42935733858 | V36: =T36+U36 -> 84271695536 | W36: =W47+W51+W54+W55 -> 45617132159 | X36: =V36+W36 -> 129888827695 | Y36: =Y47+Y51+Y54+Y55 -> 43324585356 | Z36: =Z47+Z51+Z54+Z55 -> 173213413051 | AA36: 40817511790 | AB36: 42320362995 | AC36: =AA36+AB36 -> 83137874785 | AD36: 46732735003 | AE36: =AC36+AD36 -> 129870609788 | AF36: 44434734953 | AG36: 174305344741 | AH36: 37898659865 | AI36: 43143731534 | AJ36: =SUM(AH36:AI36) -> 81042391399 | AK36: 48332498883 | AL36: =AJ36+AK36 -> 129374890282 | AM36: =AN36-AL36 -> 46200305407 | AN36: 175575195689 | AO36: 44608786101 | AP36: 43583334024 | AQ36: =AO36+AP36 -> 88192120125 | AR36: =AS36-AQ36 -> 47565345796 | AS36: 135757465921 | AT36: =AU36-AS36 -> 44742244749 | AU36: 180499710670 | AV36: 44634086220 | AW36: =AX36-AV36 -> 44595067971 | AX36: 89229154191 | AY36: =AZ36-AX36 -> 48369464468 | AZ36: 137598618659 | BA36: =BB36-AZ36 -> -137598618659
B37: 国内シリアル Domestic cereals | F37: 2904517511 | G37: 2729841397 | I37: 2624015964 | K37: 3333872623 | L37: 11592247495 | M37: 4217783560 | N37: 4055978165 | O37: =M37+N37 -> 8273761725 | P37: 3872027066 | Q37: 12145788791 | R37: 4200965148 | S37: 16346753939 | T37: 5647502215 | U37: 6284831016 | V37: =T37+U37 -> 11932333231 | W37: 6336834089 | X37: 18269167320 | Y37: 5871186620 | Z37: 24140353940 | AA37: 8676171426 | AB37: 8623155909 | AC37: =AA37+AB37 -> 17299327335 | AD37: 6623468757 | AE37: =AC37+AD37 -> 23922796092 | AF37: 6513507704 | AG37: 30436303796 | AH37: 6400517811 | AI37: 6415685925 | AJ37: =SUM(AH37:AI37) -> 12816203736 | AK37: 5593663614 | AL37: =AJ37+AK37 -> 18409867350 | AM37: =AN37-AL37 -> 5427127904 | AN37: 23836995254 | AO37: 6138150214 | AP37: 6270314023 | AQ37: =AO37+AP37 -> 12408464237 | AR37: =AS37-AQ37 -> 5914523086 | AS37: 18322987323 | AT37: =AU37-AS37 -> 5494069033 | AU37: 23817056356 | AV37: 6209365527 | AW37: =AX37-AV37 -> 6390106713 | AX37: 12599472240 | AY37: =AZ37-AX37 -> 6015524331 | AZ37: 18614996571 | BA37: =BB37-AZ37 -> -18614996571
B38: 国内その他食品*1 Domestic other foods*1 | F38: 3577331312 | G38: 3800158269 | I38: 4138582090 | K38: 3651421840 | L38: 15167493511 | M38: 3754072115 | N38: 3618342008 | O38: 7372414123 | P38: 3963460268 | Q38: 11335874391 | R38: 3873755404 | S38: 15209629795 | T38: 4072390107 | U38: 4056645038 | V38: 8129035145 | W38: 4189603950 | X38: 12318639095 | Y38: 3885107428 | Z38: 16203746523 | AA38: 4101517584 | AB38: 3707570829 | AC38: 7809088413 | AD38: 3777811102 | AE38: 11586899515 | AF38: 3565105346 | AG38: 15152004861 | AH38: 3691392879 | AI38: =3127093355+288481099 -> 3415574454 | AJ38: 7106967333 | AK38: =3313603199+305439198 -> 3619042397 | AL38: 10726009730 | AM38: 3637552293 | AN38: 14363562023 | AO38: 250583950 | AP38: 295639469 | AQ38: 546223419 | AR38: 452733580 | AS38: 998956999 | AT38: 286836764 | AU38: 1285793763 | AV38: 285761263 | AW38: 327677486 | AX38: 613438749 | AY38: 443278142 | AZ38: 1056716891 | BA38: -1056716891
B39: 国内食品計 Domestic foods business | F39: 43115150599 | G39: 43505429866 | I39: 48465081626 | K39: 46041279873 | L39: 181126941964 | M39: 46732285048 | N39: 48031027203 | O39: 94763312251 | P39: 51596688793 | Q39: 146360001044 | R39: 50098491738 | S39: 196458492782 | T39: 5.1055854e+10 | U39: 53277209912 | V39: 104333063912 | W39: 56143570198 | X39: 160476634110 | Y39: 53080879404 | Z39: 213557513514 | AA39: 53595200800 | AB39: 54651089733 | AC39: 108246290533 | AD39: 57134014862 | AE39: 165380305395 | AF39: 54513348003 | AG39: 219893653398 | AH39: 47990570555 | AI39: =AI36+AI37+AI38 -> 52974991913 | AJ39: 100965562468 | AK39: =SUM(AK36:AK38) -> 57545204894 | AL39: 158510767362 | AM39: 55264985604 | AN39: =AN36+AN37+AN38 -> 213775752966 | AO39: 50997520265 | AP39: 50149287516 | AQ39: 101146807781 | AR39: 53932602462 | AS39: 155079410243 | AT39: 50523150546 | AU39: 205602560789 | AV39: =SUM(AV36:AV38) -> 51129213010 | AW39: 51312852170 | AX39: 102442065180 | AY39: 54828266941 | AZ39: 157270332121 | BA39: -157270332121 | BC39: =SUM(BC36:BC38) -> 0
B40: 海外スナック Overseas snack foods | F40: 3644801047 | G40: 3858648876 | I40: 4098394422 | K40: 4190772825 | L40: 15792617170 | M40: 4619584252 | N40: 5250987694 | O40: 9870571946 | P40: 6025395967 | Q40: 15895967913 | R40: 6545127123 | S40: 22441095036 | T40: 7866089963 | U40: 7005833375 | V40: 14871923338 | W40: 7361010642 | X40: 22232933980 | Y40: 7088829126 | Z40: 29321763106 | AA40: 7303050004 | AB40: 6547157146 | AC40: 13850207150 | AD40: 7049684156 | AE40: 20899891306 | AF40: 8078908457 | AG40: 28978799763 | AH40: 7595961298 | AI40: 7959500554 | AJ40: 15555461852 | AK40: 7986536750 | AL40: 23541998602 | AM40: 7724990019 | AN40: 31266988621 | AO40: 8272724645 | AP40: 8026627322 | AQ40: 16299351967 | AR40: 9435035751 | AS40: 25734387718 | AT40: 9444247823 | AU40: 35178635541 | AV40: 8950232330 | AW40: 9908670178 | AX40: 18858902508 | AY40: 9450942339 | AZ40: 28309844847 | BA40: -28309844847
B41: 海外シリアル Overseas cereals | AI41: 524671055 | AJ41: 524671055 | AK41: 1131800422 | AL41: 1656471477 | AM41: 878003752 | AN41: 2534475229 | AO41: 1020089711 | AP41: 1160977274 | AQ41: 2181066985 | AR41: 1815972817 | AS41: 3997039802 | AT41: 1286312951 | AU41: 5283352753 | AV41: 1481872270 | AW41: 1783713782 | AX41: 3265586052 | AY41: 1816837974 | AZ41: 5082424026 | BA41: -5082424026
B42: 海外食品計 Overseas foods business | F42: 3644801047 | G42: 3858648876 | I42: 4098394422 | K42: 4190772825 | L42: 15792617170 | M42: 4619584252 | N42: 5250987694 | O42: 9870571946 | P42: 6025395967 | Q42: 15895967913 | R42: 6545127123 | S42: 22441095036 | T42: 7866089963 | U42: 7005833375 | V42: 14871923338 | W42: 7361010642 | X42: 22232933980 | Y42: 7088829126 | Z42: 29321763106 | AA42: 7303050004 | AB42: 6547157146 | AC42: 13850207150 | AD42: 7049684156 | AE42: 20899891306 | AF42: 8078908457 | AG42: 28978799763 | AH42: 7595961298 | AI42: 8484171609 | AJ42: 16080132907 | AK42: =SUM(AK40:AK41) -> 9118337172 | AL42: 25198470079 | AM42: 8602993771 | AN42: =AN40+AN41 -> 33801463850 | AO42: 9292814356 | AP42: 9187604596 | AQ42: 18480418952 | AR42: 11251008568 | AS42: 29731427520 | AT42: 10730560774 | AU42: 40461988294 | AV42: =SUM(AV40:AV41) -> 10432104600 | AW42: 11692383960 | AX42: 22124488560 | AY42: 11267780313 | AZ42: 33392268873 | BA42: -33392268873 | BC42: =BC40+BC41 -> 0
B43: 食品製造販売事業計 Snacks and other foods business | F43: 46759951646 | G43: 47364078742 | I43: 52563476048 | K43: 50232052698 | L43: 196919559134 | M43: 51351869300 | N43: 53282014897 | O43: 104633884197 | P43: 57622084760 | Q43: 162255968957 | R43: 56643618861 | S43: 218899587818 | T43: 5.892194396e+10 | U43: 60283043287 | V43: 119204987250 | W43: 63504580840 | X43: 182709568090 | Y43: 60169708530 | Z43: 242879276620 | AA43: 60898250804 | AB43: 61198246879 | AC43: 122096497683 | AD43: 64183699018 | AE43: 186280196701 | AF43: 62592256460 | AG43: 248872453161 | AH43: 55586531853 | AI43: =AI39+AI42 -> 61459163522 | AJ43: 117045695375 | AK43: =AK39+AK42 -> 66663542066 | AL43: 183709237441 | AM43: 63867979375 | AN43: =AN39+AN42 -> 247577216816 | AO43: 60290334621 | AP43: 59336892112 | AQ43: 119627226733 | AR43: 65183611030 | AS43: 184810837763 | AT43: 61253711320 | AU43: 246064549083 | AV43: =SUM(AV39,AV42) -> 61561317610 | AW43: 63005236130 | AX43: 124566553740 | AY43: 66096047254 | AZ43: 190662600994 | BA43: -190662600994 | BC43: =BC39+BC42 -> 0
B44: その他事業 Other businesses | F44: 791509330 | G44: 753166458 | I44: 692811775 | K44: 783967830 | L44: 3021455393 | M44: 917259004 | N44: 718898343 | O44: 1636157347 | P44: 747692046 | Q44: 2383849393 | R44: 866845170 | S44: 3250694563 | T44: 909628103 | U44: 828245879 | V44: 1737873982 | W44: 719534719 | X44: 2457408701 | Y44: 792454032 | Z44: 3249862733 | AA44: 858708543 | AB44: 699210141 | AC44: 1557918684 | AD44: 1106813918 | AE44: 2664732602 | AF44: 883405450 | AG44: 3548138052 | AH44: 933420324 | AI44: 843039708 | AJ44: 1776460032 | AK44: 1205716200 | AL44: 2982176232 | AM44: 1016150086 | AN44: 3998326318 | AO44: 941449745 | AP44: 498343696 | AQ44: 1439793441 | AR44: 771566656 | AS44: 2211360097 | AT44: 379373925 | AU44: 2590734022 | AV44: 351530098 | AW44: 328244151 | AX44: 679774249 | AY44: 762080929 | AZ44: 1441855178 | BA44: -1441855178
B45: 売上高合計 Total sales | F45: 47551460976 | G45: 48117245200 | I45: 53256287823 | K45: 51016020528 | L45: 199941014527 | M45: 52269128304 | N45: 54000913240 | O45: 106270041544 | P45: 58369776806 | Q45: 164639818350 | R45: 57510464031 | S45: 222150282381 | T45: 5.983157207e+10 | U45: 61111289166 | V45: 120942861232 | W45: 64224115559 | X45: 185166976791 | Y45: 60962162562 | Z45: 246129139353 | AA45: 61756959347 | AB45: 61897457020 | AC45: 123654416367 | AD45: 65290512936 | AE45: 188944929303 | AF45: 63475661910 | AG45: 252420591213 | AH45: 56519952177 | AI45: 62302203230 | AJ45: 118822155407 | AK45: =AK43+AK44 -> 67869258266 | AL45: 186691413673 | AM45: 64884129461 | AN45: 251575543134 | AO45: 61231784366 | AP45: 59835235808 | AQ45: 121067020174 | AR45: =AS45-AQ45 -> 65955177686 | AS45: 187022197860 | AT45: 61633085245 | AU45: 248655283105 | AV45: =SUM(AV43,AV44) -> 61912847708 | AW45: 63333480281 | AX45: 125246327989 | AY45: =AZ45-AX45 -> 66858128183 | AZ45: 192104456172 | BA45: -192104456172 | BC45: =BC43+BC44 -> 0
C46: ＜国内スナック内訳＞ | AM46: 0 | AO46: 0 | AT46: 0 | AV46: 0 | AW46: 0 | BA46: 0
C47: ポテト系スナック Potato-based snacks | F47: 25804572324 | G47: 27010348659 | I47: 30592046466 | K47: 28481503796 | L47: 111888471245 | M47: 27350705982 | N47: 29251608567 | O47: =M47+N47 -> 56602314549 | P47: 31667477913 | Q47: =O47+P47 -> 88269792462 | R47: 31182990627 | S47: 119452783089 | T47: 29874039692 | U47: 31398238753 | V47: =T47+U47 -> 61272278445 | W47: 33674738680 | X47: =V47+W47 -> 94947017125 | Y47: 32200513109 | Z47: 127147530234 | AA47: 29407224171 | AB47: 30736477978 | AC47: =AA47+AB47 -> 60143702149 | AD47: 34477080428 | AE47: =AC47+AD47 -> 94620782577 | AF47: 32203937700 | AG47: 126824720277 | AH47: 24095805683 | AI47: 31938491913 | AJ47: =AI47+AH47 -> 56034297596 | AK47: 35880563996 | AL47: 91914861592 | AM47: 34390892123 | AN47: 126305753715 | AO47: 32627031567 | AP47: 31977075930 | AQ47: =AO47+AP47 -> 64604107497 | AR47: 35186169548 | AS47: 99790277045 | AT47: 33278316818 | AU47: 133068593863 | AV47: =SUM(AV48:AV50) -> 32342911269 | AW47: 32561669554 | AX47: 64904580823 | AY47: =AZ47-AX47 -> 35847657337 | AZ47: 100752238160 | BA47: -100752238160
D48: ポテトチップス Potato Chips | F48: 15004200436 | G48: 15938569341 | I48: 19288653088 | K48: 17987619086 | L48: 68219041951 | M48: 16169401476 | N48: 17224490143 | O48: 33393891619 | P48: 20184132548 | Q48: 53578024167 | R48: 19473904336 | S48: 73051928503 | T48: 18379607792 | U48: 18802544714 | V48: 37182152506 | W48: 21248146393 | X48: 58430298899 | Y48: 20197219615 | Z48: 78627518514 | AA48: 17482031698 | AB48: 18200520186 | AC48: 35682551884 | AD48: 21524899107 | AE48: 57207450991 | AF48: 19375813589 | AG48: 76583264580 | AH48: 11788242065 | AI48: 19657624265 | AJ48: =AI48+AH48 -> 31445866330 | AK48: 23434389175 | AL48: 54880255505 | AM48: 22127017640 | AN48: 77007273145 | AO48: 20635035470 | AP48: 19332480540 | AQ48: 39967516010 | AR48: 23096207315 | AS48: 63063723325 | AT48: 21065642636 | AU48: 84129365961 | AV48: 20122752256 | AW48: 20253128749 | AX48: 40375881005 | AY48: 23290296777 | AZ48: 63666177782 | BA48: -63666177782
D49: じゃがりこ Jagarico | F49: 7668445568 | G49: 8016982161 | I49: 8167778225 | K49: 7863634395 | L49: 31716840349 | M49: 8172520923 | N49: 8806373456 | O49: 16978894379 | P49: 8459253509 | Q49: 25438147888 | R49: 8785657568 | S49: 34223805456 | T49: 8417512675 | U49: 9018789142 | V49: 17436301817 | W49: 8877184482 | X49: 26313486299 | Y49: 8756447402 | Z49: 35069933701 | AA49: 8569482758 | AB49: 9253832113 | AC49: 17823314871 | AD49: 9532451802 | AE49: 27355766673 | AF49: 9329634396 | AG49: 36685401069 | AH49: 8491358888 | AI49: 8729422674 | AJ49: 17220781562 | AK49: 9315468085 | AL49: 26536249647 | AM49: 9159366335 | AN49: 35695615982 | AO49: 9068730138 | AP49: 9686434799 | AQ49: 18755164937 | AR49: 9289636863 | AS49: 28044801800 | AT49: 9357298077 | AU49: 37402099877 | AV49: 9327356719 | AW49: 9277164961 | AX49: 18604521680 | AY49: 9507764495 | AZ49: 28112286175 | BA49: -28112286175
D50: Jabagee/じゃがポックル Jagabee/Jagapokkuru | F50: 3131926320 | G50: 3054797157 | I50: 3135615153 | K50: 2630250315 | L50: 11952588945 | M50: 3008783583 | N50: 3220744968 | O50: 6229528551 | P50: 3024091856 | Q50: 9253620407 | R50: 2923428723 | S50: 12177049130 | T50: 3076919225 | U50: 3576904897 | V50: 6653824122 | W50: 3549407805 | X50: 10203231927 | Y50: 3246846092 | Z50: 13450078019 | AA50: 3355709715 | AB50: 3282125679 | AC50: 6637835394 | AD50: 3419729519 | AE50: 10057564913 | AF50: 3498489715 | AG50: 13556054628 | AH50: 3816204730 | AI50: =2158363323+1393081651 -> 3551444974 | AJ50: 7367649704 | AK50: =1920790436+1209916300 -> 3130706736 | AL50: 10498356440 | AM50: 3104508148 | AN50: 13602864588 | AO50: 2923265959 | AP50: 2958160591 | AQ50: 5881426550 | AR50: 2800325370 | AS50: 8681751920 | AT50: 2855376105 | AU50: 11537128025 | AV50: 2892802294 | AW50: 3031375844 | AX50: 5924178138 | AY50: 3049596065 | AZ50: 8973774203 | BA50: -8973774203
C51: 小麦系スナック Flour-based snacks | F51: 5452203229 | G51: 5086916620 | I51: 5678773559 | K51: 5638631387 | L51: 21856524795 | M51: 5464553016 | N51: 5230887457 | O51: 10695440473 | P51: 5810807722 | Q51: 16506248195 | R51: 5466028180 | S51: 21972276375 | T51: 5421575385 | U51: 5576027312 | V51: 10997602697 | W51: 5580645055 | X51: 16578247752 | Y51: 5429700043 | Z51: 22007947795 | AA51: 5560318311 | AB51: 5372115506 | AC51: 10932433817 | AD51: 5762451868 | AE51: 16694885685 | AF51: 6100187020 | AG51: 22795072705 | AH51: 6102627925 | AI51: 5193347978 | AJ51: 11295975903 | AK51: 5756878795 | AL51: 17052854698 | AM51: 5352265998 | AN51: 22405120696 | AO51: 5103163556 | AP51: 5156285653 | AQ51: 10259449209 | AR51: 5373518806 | AS51: 15632968015 | AT51: 5142071980 | AU51: 20775039995 | AV51: =SUM(AV52:AV53) -> 5334920155 | AW51: 5460400543 | AX51: 10795320698 | AY51: 5515787293 | AZ51: 16311107991 | BA51: -16311107991
D52: かっぱえびせん Kappa Ebisen | F52: 2754567930 | G52: 2236071410 | I52: 2732512563 | K52: 2897540617 | L52: 10620692520 | M52: 2846981957 | N52: 2455616382 | O52: 5302598339 | P52: 2789396433 | Q52: 8091994772 | R52: 2734572928 | S52: 10826567700 | T52: 2630590830 | U52: 2600122911 | V52: 5230713741 | W52: 2832557293 | X52: 8063271034 | Y52: 2785235803 | Z52: 10848506837 | AA52: 2730396550 | AB52: 2564423665 | AC52: 5294820215 | AD52: 2782627899 | AE52: 8077448114 | AF52: 3052679772 | AG52: 11130127886 | AH52: 2934473844 | AI52: 2333031133 | AJ52: 5267504977 | AK52: 2793407772 | AL52: 8060912749 | AM52: 2646947313 | AN52: 10707860062 | AO52: 2365048455 | AP52: 2274440487 | AQ52: 4639488942 | AR52: 2655775721 | AS52: 7295264663 | AT52: 2410338469 | AU52: 9705603132 | AV52: 2363696858 | AW52: 2586398750 | AX52: 4950095608 | AY52: 2627520410 | AZ52: 7577616018 | BA52: -7577616018
D53: サッポロポテト等 Sapporo potato and others | F53: 2697635299 | G53: 2850845210 | I53: 2946260996 | K53: 2741090770 | L53: 11235832275 | M53: 2617571059 | N53: 2775271075 | O53: 5392842134 | P53: 3021411289 | Q53: 8414253423 | R53: 2731455252 | S53: 11145708675 | T53: 2790984555 | U53: 2975904401 | V53: 5766888956 | W53: 2748087762 | X53: 8514976718 | Y53: 2644464240 | Z53: 11159440958 | AA53: 2829921761 | AB53: 2807691841 | AC53: 5637613602 | AD53: 2979823969 | AE53: 8617437571 | AF53: 3047507248 | AG53: 11664944819 | AH53: 3168154081 | AI53: 2860316845 | AJ53: 6028470926 | AK53: 2963471023 | AL53: 8991941949 | AM53: 2705318685 | AN53: 11697260634 | AO53: 2738115101 | AP53: 2881845166 | AQ53: 5619960267 | AR53: 2717743085 | AS53: 8337703352 | AT53: 2731733511 | AU53: 11069436863 | AV53: 2971223297 | AW53: 2874001793 | AX53: 5845225090 | AY53: 2888266883 | AZ53: 8733491973 | BA53: -8733491973
C54: コーン系・豆系スナック Corn- and bean-based snacks | F54: 3870003149 | G54: 3363628436 | I54: 3943835814 | K54: 3442707380 | L54: 14620174779 | M54: 4502627733 | N54: 4358591359 | O54: 8861219092 | P54: 4921136502 | Q54: 13782355594 | R54: 4019540637 | S54: 17801896231 | T54: 4582991939 | U54: 4596369116 | V54: 9179361055 | W54: 5088066588 | X54: 14267427643 | Y54: 4282622511 | Z54: 18550050154 | AA54: 4703654644 | AB54: 4183840267 | AC54: 8887494911 | AD54: 4254630676 | AE54: 13142125587 | AF54: 4018723182 | AG54: 17160848769 | AH54: 5040137962 | AI54: 3711639341 | AJ54: 8751777303 | AK54: 4202670500 | AL54: 12954447803 | AM54: 3831313253 | AN54: 16785761056 | AO54: 4138577356 | AP54: 3769151150 | AQ54: 7907728506 | AR54: 4247986373 | AS54: 12155714879 | AT54: 3727070163 | AU54: 15882785042 | AV54: 4099204390 | AW54: 3729872255 | AX54: 7829076645 | AY54: 4102855216 | AZ54: 11931931861 | BA54: -11931931861
C55: その他スナック*2 Other snacks*2 | F55: 1506523074 | G55: 1514536485 | I55: 1487827733 | K55: 1493142847 | L55: 6002030139 | M55: 1442542642 | N55: 1515619647 | O55: 2958162289 | P55: 1361779322 | Q55: 4319941611 | R55: 1355211742 | S55: 5675153353 | T55: 1457354662 | U55: 1365098677 | V55: 2822453339 | W55: 1273681836 | X55: 4096135175 | Y55: 1411749693 | Z55: 5507884868 | AA55: 1146314664 | AB55: 2027929244 | AC55: 3174243908 | AD55: 2238572031 | AE55: 5412815939 | AF55: 2111887051 | AG55: 7524702990 | AH55: 2660088295 | AI55: 2300252302 | AJ55: 4960340597 | AK55: 2492385592 | AL55: 7452726189 | AM55: 2625834033 | AN55: 10078560222 | AO55: 2740013622 | AP55: 2680821291 | AQ55: 5420834913 | AR55: 2757671069 | AS55: 8178505982 | AT55: 2594785788 | AU55: 10773291770 | AV55: 2857050406 | AW55: 2843125619 | AX55: 5700176025 | AY55: 2903164622 | AZ55: 8603340647 | BA55: -8603340647
B56: *1 「シリアル、ベーカリー等」の「ベーカリー」と「その他」を「国内その他食品」にまとめて表記 *1 "Bread" and "Others" of "Cereals, Bread and Others" have been summarized in "Other domestic foods".
B57: *2 「その他新規スナック等」の名称を「その他スナック」に変更 *2 "Other new snacks" have been restated as "Other snacks".
A59: 海外国別売上高 Sales by country | M59: 2015年3月期 FY2015 | T59: 2016年3月期 FY2016 | AA59: 2017年3月期 FY2017 | AH59: 2018年3月期 FY2018 | AO59: 2019年3月期 FY2019 | AV59: 2020年3月期 FY2020 | BC59: 2019年3月期
M60: Q1 | N60: Q2 | O60: 上期 | P60: Q3 | Q60: 9ヶ月 | R60: Q4 | S60: FY2015 | T60: Q1 | U60: Q2 | V60: 上期 | W60: Q3 | X60: 9ヶ月 | Y60: Q4 | Z60: FY2016 | AA60: Q1 | AB60: Q2 | AC60: 上期 | AD60: Q3 | AE60: 9ヶ月 | AF60: Q4 | AG60: FY2017 | AH60: Q1 | AI60: Q2 | AJ60: 上期 | AK60: Q3 | AL60: 9ヶ月 | AM60: Q4 | AO60: Q1 | AP60: Q2 | AQ60: 上期 | AR60: Q3 | AS60: 9ヶ月 | AT60: Q4 | AV60: Q1 | AW60: Q2 | AX60: 上期 | AY60: Q3 | AZ60: 9ヶ月 | BA60: Q4 | BC60: 計画
B61: 北米 North America | E61: M JPY | M61: =M62 -> 1996793824 | N61: 2247466989 | O61: 4244260813 | P61: 2645306892 | Q61: 6889567705 | R61: 2779205843 | S61: 9668773548 | T61: 3364878985 | U61: 2835972657 | V61: 6200851642 | W61: 3281150706 | X61: 9482002348 | Y61: 3035778183 | Z61: 12517780531 | AA61: =AA62 -> 3162824076 | AB61: 2405977236 | AC61: 5568801312 | AD61: 2556614632 | AE61: 8125415944 | AF61: 3480952682 | AG61: 11606368626 | AH61: =G62 -> 1010674632 | AI61: 2287870971 | AJ61: 3298545603 | AK61: 2237007250 | AL61: 5535552853 | AM61: =AN61-AL61 -> 4308383367 | AN61: 9843936220 | AO61: 2759866911 | AP61: 2418526198 | AQ61: 5178393109 | AR61: 2144713728 | AS61: 7323106837 | AT61: =AU61-AS61 -> 2618892524 | AU61: 9941999361 | AV61: 2258283443 | AW61: =AX61-AV61 -> 2625824745 | AX61: 4884108188 | AY61: 2226238032 | AZ61: 7110346220 | BA61: =BB61-AZ61 -> 7331710958 | BB61: =StravisData取り込み!AB64 -> 14442057178 | BC61: 12297144205
C62: 北米 North America | E62: M JPY | F62: 933574852 | G62: 1010674632 | I62: 1249522651 | K62: 1812606720 | L62: 5006378855 | M62: 1996793824 | N62: 2247466989 | O62: =M62+N62 -> 4244260813 | P62: 2645306892 | Q62: =O62+P62 -> 6889567705 | R62: 2779205843 | S62: 9668773548 | T62: 3364878985 | U62: 2835972657 | V62: =T62+U62 -> 6200851642 | W62: 3281150706 | X62: =V62+W62 -> 9482002348 | Y62: 3035778183 | Z62: 12517780531 | AA62: 3162824076 | AB62: 2405977236 | AC62: =AA62+AB62 -> 5568801312 | AD62: 2556614632 | AE62: =AC62+AD62 -> 8125415944 | AF62: 3480952682 | AG62: 11606368626 | AH62: 2714629649 | AI62: 2287870971 | AJ62: =G62+AI62 -> 3298545603 | AK62: 2237007250 | AL62: =AJ62+AK62 -> 5535552853 | AM62: =AN62-AL62 -> 4308383367 | AN62: 9843936220 | AO62: 2759866911 | AP62: 2418526198 | AQ62: =AO62+AP62 -> 5178393109 | AR62: =AS62-AQ62 -> 2144713728 | AS62: 7323106837 | AT62: 2618892524 | AU62: 9941999361 | AV62: 2258283443 | AW62: =AX62-AV62 -> 2625824745 | AX62: 4884108188 | AY62: =AZ62-AX62 -> 2226238032 | AZ62: 7110346220 | BB62: =StravisData取り込み!AB65 -> 14442057178 | BC62: 12297144205
E63: K USD | F63: 9395115.006 | G63: 10308783 | I63: 12203323 | K63: 17661504.01 | L63: 49568725.01 | M63: 19599206.02 | N63: 21335840.55 | O63: =M63+N63 -> 40935046.57 | P63: 22803578.01 | Q63: =O63+P63 -> 63738624.57 | R63: 23304711.01 | S63: 87043335.58 | T63: 27733281.01 | U63: 23302534.97 | V63: =T63+U63 -> 51035815.98 | W63: 27009801.66 | X63: =V63+W63 -> 78045617.65 | Y63: 26138989.35 | Z63: 104184607 | AA63: 28998112 | AB63: 23330410.01 | AC63: =AA63+AB63 -> 52328522.01 | AD63: 22997481 | AE63: =AC63+AD63 -> 75326003 | AF63: 31134908 | AG63: 106460911 | AH63: 24322459 | AI63: 20575231 | AJ63: =G63+AI63 -> 30884014 | AK63: 19850613 | AL63: =AJ63+AK63 -> 50734627 | AM63: 38101545.01 | AN63: 88836172.01 | AO63: 25389759.99 | AP63: 21660877.02 | AQ63: =AO63+AP63 -> 47050637.01 | AR63: 19030456.99 | AS63: 66081094 | AT63: =AU63-AS63 -> 23737312.01 | AU63: 89818406.01 | AV63: 20531716 | AW63: 24276616 | AX63: 44808332 | AY63: 20364410.62 | AZ63: 65172742.62 | BA63: =BB63-AZ63 -> 70867735.69 | BB63: =StravisData取り込み!AB66 -> 136040478.3 | BC63: 108824285
B64: 中華圏 Greater China | E64: M JPY | M64: =M65+M67+M69 -> 1437201725 | N64: 1470523910 | O64: 2907725635 | P64: 1352996141 | Q64: 4260721776 | R64: 1467816243 | S64: 5728538019 | T64: 1375160235 | U64: 1516185321 | V64: 2891345556 | W64: 1243912093 | X64: 4135257649 | Y64: 1275555961 | Z64: 5410813610 | AA64: =AA65+AA67+AA69 -> 1353826086 | AB64: 1256997881 | AC64: 2610823967 | AD64: 1395635347 | AE64: 4006459314 | AF64: 1210713305 | AG64: 5217172619 | AH64: =G65+G67+G69 -> 1494094380 | AI64: 2113052874 | AJ64: 3607147254 | AK64: 2862128287 | AL64: 6469275541 | AM64: 2249184736 | AN64: 8718460277 | AO64: 2574436879 | AP64: 2603183498 | AQ64: =AQ65+AQ67+AQ69 -> 5177620377 | AR64: =AR65+AR67+AR69 -> 3578012858 | AS64: 8755633235 | AT64: 2583961450 | AU64: 11339594685 | AV64: 2789359327 | AW64: 3341948535 | AX64: 6131307862 | AY64: =AY65+AY67+AY69 -> 3540174804 | AZ64: 9671482666 | BA64: 5459771370 | BB64: =StravisData取り込み!AB67 -> 15131254036 | BC64: 12945951874
C65: 中国 China | E65: M JPY | F65: 577383627 | G65: 597384571 | I65: 891210151 | K65: 452475272 | L65: 2518453621 | M65: 489078959 | N65: 639483557 | O65: =M65+N65 -> 1128562516 | P65: 530749294 | Q65: =O65+P65 -> 1659311810 | R65: 568227024 | S65: 2227538834 | T65: 491882516 | U65: 601012722 | V65: =T65+U65 -> 1092895238 | W65: 389117983 | X65: =V65+W65 -> 1482013221 | Y65: 427216052 | Z65: 1909229273 | AA65: 391349676 | AB65: 425342544 | AC65: =AA65+AB65 -> 816692220 | AD65: 387676273 | AE65: =AC65+AD65 -> 1204368493 | AF65: 361145268 | AG65: 1565513761 | AH65: 367223577 | AI65: 454468359 | AJ65: =G65+AI65 -> 1051852930 | AK65: 437531338 | AL65: =AJ65+AK65 -> 1489384268 | AM65: 147027528 | AN65: 1636411796 | AO65: 532674965 | AP65: 853646644 | AQ65: =AO65+AP65 -> 1386321609 | AR65: =AS65-AQ65 -> 1377922313 | AS65: 2764243922 | AT65: 1053919696 | AU65: 3818163618 | AV65: 1025755141 | AW65: =AX65-AV65 -> 1611782332 | AX65: 2637537473 | AY65: =AZ65-AX65 -> 1783707426 | AZ65: 4421244899 | BA65: 5461593552 | BB65: =StravisData取り込み!AB68 -> 9882838451 | BC65: 4141076717
E66: K RMB | F66: 35701161.73 | G66: 37311919.15 | I66: 53932626.97 | K66: 26819093.5 | L66: 153764801.4 | M66: 29942700.64 | N66: 36990110.17 | O66: =M66+N66 -> 66932810.81 | P66: 28385950.51 | Q66: 95318761.32 | R66: 29652600.05 | S66: 124971361.4 | T66: 25147367.89 | U66: 31129420.88 | V66: =T66+U66 -> 56276788.77 | W66: 20224427.39 | X66: =V66+W66 -> 76501216.17 | Y66: 24450024.21 | Z66: 100951240.4 | AA66: 23532752.62 | AB66: 27161984.81 | AC66: =AA66+AB66 -> 50694737.43 | AD66: 24017948.24 | AE66: =AC66+AD66 -> 74712685.67 | AF66: 21983655.33 | AG66: 96696341 | AH66: 22542883 | AI66: 27377646 | AJ66: 64689565.15 | AK66: 25708495 | AL66: 90398060.15 | AM66: 7356527.426 | AN66: 97754587.57 | AO66: 31407721.99 | AP66: 51705084.3 | AQ66: =AO66+AP66 -> 83112806.29 | AR66: =AS66-AQ66 -> 83910995.64 | AS66: 167023801.9 | AT66: 64099903.76 | AU66: 231123705.7 | AV66: 63632452.92 | AW66: 103830243.8 | AX66: 167462696.7 | AY66: =AZ66-AX66 -> 114145258.7 | AZ66: 281607955.4 | BA66: 351096170.8 | BB66: =StravisData取り込み!AB69 -> 632704126.2 | BC66: 242878399
C67: 香港* Hong Kong* | E67: M JPY | F67: 613238533 | G67: 659301388 | I67: 628074602 | K67: 598562929 | L67: 2499177452 | M67: 744680984 | N67: 675373850 | O67: 1420054834 | P67: 747353003 | Q67: 2167407837 | R67: 763002149 | S67: 2930409986 | T67: 769227162 | U67: 827230773 | V67: 1596457935 | W67: 815180700 | X67: 2411638635 | Y67: 827997981 | Z67: 3239636616 | AA67: 958255861 | AB67: 831724800 | AC67: 1789980661 | AD67: 980775425 | AE67: 2770756086 | AF67: 830643671 | AG67: 3601399757 | AH67: 905253215 | AI67: 1547163746 | AJ67: 2206465134 | AK67: 2264833636 | AL67: 4471298770 | AM67: 1989795400 | AN67: 6461094170 | AO67: 1803528089 | AP67: 1649613219 | AQ67: 3453141308 | AR67: 2125312224 | AS67: 5578453532 | AT67: 1504870309 | AU67: 7083323841 | AV67: 1763604186 | AW67: 1730166203 | AX67: 3493770389 | AY67: 1756467378 | AZ67: 5250237767 | BA67: -1822182 | BB67: =StravisData取り込み!AB70 -> 5248415585 | BC67: 7825524729
E68: K HKD | F68: 47890103.72 | G68: 52127654.24 | I68: 47738078.26 | K68: 45268719.95 | L68: 193024556.2 | M68: 56690243.87 | N68: 49652014.66 | O68: 106342258.5 | P68: 49849028.81 | Q68: 156191287.4 | R68: 49598211.95 | S68: 205789499.3 | T68: 49151895.34 | U68: 52727998.41 | V68: 101879893.7 | W68: 52021742.18 | X68: 153901635.9 | Y68: 55242109.46 | Z68: 209143745.4 | AA68: 68203264.13 | AB68: 62356959.14 | AC68: 130560223.3 | AD68: 68774746.95 | AE68: 199334970.2 | AF68: 56992413.78 | AG68: 256327384 | AH68: 63171891 | AI68: 108565990 | AJ68: 160693644.2 | AK68: 157449180 | AL68: 318142824.2 | AM68: 137184460.5 | AN68: 455327284.7 | AO68: 130218634.6 | AP68: 115906904.1 | AQ68: 246125538.7 | AR68: 148669474.2 | AS68: 394795012.9 | AT68: 107212346.5 | AU68: 502007359.4 | AV68: 125702365.4 | AW68: 125648022.3 | AX68: 251350387.7 | AY68: 125551103.1 | AZ68: 376901490.8 | BA68: 6474373.688 | BB68: =StravisData取り込み!AB71 -> 383375864.5 | BC68: 539319416
C69: 台湾 Taiwan | E69: M JPY | F69: 237583939 | G69: 237408421 | I69: 143426700 | K69: 196180422 | L69: 814599482 | M69: 203441782 | N69: 155666503 | O69: 359108285 | P69: 74893844 | Q69: 434002129 | R69: 136587070 | S69: 570589199 | T69: 114050557 | U69: 87941826 | V69: 201992383 | W69: 39613410 | X69: 241605793 | Y69: 20341928 | Z69: 261947721 | AA69: 4220549 | AB69: -69463 | AC69: 4151086 | AD69: 27183649 | AE69: 31334735 | AF69: 18924366 | AG69: 50259101 | AH69: 65765579 | AI69: 111420769 | AJ69: 348829190 | AK69: 159763313 | AL69: 508592503 | AM69: 112361808 | AN69: 620954311 | AO69: 238233825 | AP69: 99923635 | AQ69: 338157460 | AR69: 74778321 | AS69: 412935781 | AT69: 25171445 | AU69: 438107226 | AV69: 0 | AW69: 0 | AX69: 0 | AY69: 0 | AZ69: 0 | BB69: =StravisData取り込み!#REF! ->  | BC69: 979350428
E70: K TWD | F70: 71374331.96 | G70: 72352014.27 | I70: 41479150.34 | K70: 58126520.09 | L70: 243332016.7 | M70: 60012325.07 | N70: 44848644.86 | O70: 104860969.9 | P70: 19821906.46 | Q70: 124682876.4 | R70: 36134475.86 | S70: 160817352.2 | T70: 29020497.96 | U70: 23445056.06 | V70: 52465554.03 | W70: 10397220.47 | X70: 62862774.5 | Y70: 7364496.547 | Z70: 70227271.05 | AA70: 1248683.136 | AB70: 1643.972339 | AC70: 1250327.108 | AD70: 8047813.841 | AE70: 9298140.95 | AF70: 5312062.05 | AG70: 14610203 | AH70: 17822650 | AI70: 30325814.13 | AJ70: 102677828.4 | AK70: 42919011 | AL70: 145596839.4 | AM70: 22683461.68 | AN70: 168280301.1 | AO70: 65448853.02 | AP70: 27451548.08 | AQ70: 92900401.1 | AR70: 20543494.78 | AS70: 113443895.9 | AT70: 7246799.989 | AU70: 120690695.9 | AV70: 0 | AW70: 0 | AX70: 0 | AY70: 0 | AZ70: 0 | BB70: =StravisData取り込み!#REF! ->  | BC70: 261160114
B71: 欧州 Europe | E71: M JPY | M71: =M72+M74 -> 0 | N71: 0 | O71: 0 | P71: 0 | Q71: 0 | R71: 0 | S71: 0 | T71: 113950 | U71: 8404714 | V71: 8518664 | W71: 71346407 | X71: 79865071 | Y71: 214995289 | Z71: 294860360 | AA71: =AA72+AA74 -> 244480508 | AB71: 216854097 | AC71: 461334605 | AD71: 207901486 | AE71: 669236091 | AF71: 350536023 | AG71: 1019772114 | AH71: =G72+G74 -> 0 | AI71: 367628146 | AJ71: 367628146 | AK71: 351517622 | AL71: 719145768 | AM71: =AN71-AL71 -> 685402528 | AN71: 1404548296 | AO71: 401305615 | AP71: 425846123 | AQ71: =AQ72+AQ74 -> 827151738 | AR71: =AS71-AQ71 -> 1686121348 | AS71: 2513273086 | AT71: =AU71-AS71 -> 1680454635 | AU71: 4193727721 | AW71: =AX71-AV71 -> 2931355439 | AX71: 2931355439 | AY71: =AZ71-AX71 -> 1570088755 | AZ71: 4501444194 | BA71: =BB71-AZ71 -> 2005753502 | BB71: =StravisData取り込み!AB72 -> 6507197696 | BC71: 2336077981
C72: UK United Kingdom | E72: M JPY | O72: =M72+N72 -> 0 | Q72: 0 | T72: 113950 | U72: 8404714 | V72: =T72+U72 -> 8518664 | W72: 71346407 | X72: =V72+W72 -> 79865071 | Y72: 214995289 | Z72: 294860360 | AA72: 232235839 | AB72: 199481841 | AC72: =AA72+AB72 -> 431717680 | AD72: 195224498 | AE72: =AC72+AD72 -> 626942178 | AF72: 320167752 | AG72: 947109930 | AH72: 321814932 | AI72: 367363148 | AJ72: =G72+AI72 -> 367363148 | AK72: 351517622 | AL72: =AJ72+AK72 -> 718880770 | AM72: 672090829 | AN72: 1390971599 | AO72: 401305615 | AP72: 425846123 | AQ72: =AO72+AP72 -> 827151738 | AR72: =AS72-AQ72 -> 1686121348 | AS72: 2513273086 | AT72: 1680454635 | AU72: 4193727721 | AV72: 1436127354 | AW72: 1495228085 | AX72: 2931355439 | AY72: =AZ72-AX72 -> 1570088755 | AZ72: 4501444194 | BA72: 2005753502 | BB72: =StravisData取り込み!AB73 -> 6507197696 | BC72: 2336077981
E73: K GBP | O73: 0 | Q73: 0 | T73: 612.5026876 | U73: 45034.60909 | V73: 45647.11178 | W73: 384596.0164 | X73: 430243.1282 | Y73: 1202246.962 | Z73: 1632490.09 | AA73: 1492326.43 | AB73: 1453345.513 | AC73: 2945671.943 | AD73: 1416878.874 | AE73: 4362550.818 | AF73: 2259206.182 | AG73: 6621757 | AH73: 2251713 | AI73: 2521649 | AJ73: 2521649 | AK73: 2343479 | AL73: 4865128 | AM73: 4580557 | AN73: 9445685 | AO73: 2719978.413 | AP73: 2907286.966 | AQ73: 5627265.379 | AR73: 11607001.14 | AS73: 17234266.52 | AT73: 11554967.51 | AU73: 28789234.03 | AV73: 10193976.11 | AW73: 11229362.63 | AX73: 21423338.73 | AY73: 11118005.83 | AZ73: 32541344.57 | BA73: 14381050.13 | BB73: =StravisData取り込み!AB74 -> 46922394.69 | BC73: 15633259
C74: スペイン Spain | E74: M JPY | O74: 0 | Q74: 0 | V74: 0 | X74: 0 | AA74: 12244669 | AB74: 17372256 | AC74: 29616925 | AD74: 12676988 | AE74: 42293913 | AF74: 30368271 | AG74: 72662184 | AH74: 13311699 | AI74: 264998 | AJ74: 264998 | AK74: 0 | AL74: 264998 | AM74: 13311699 | AN74: 13576697 | AO74: 0 | AP74: 0 | AQ74: 0 | AR74: 0 | AS74: 0 | AT74: 0 | AU74: =StravisData取り込み!U89 -> 0 | AV74: 0 | AW74: 0 | AX74: 0 | AY74: 0 | AZ74: 0 | BA74: 0 | BB74: =StravisData取り込み!AB89 -> 0 | BC74: 0
E75: K EUR | O75: 0 | Q75: 0 | V75: 0 | X75: 0 | AA75: 99989.13114 | AB75: 148641.8712 | AC75: 248631.0024 | AD75: 106421.9946 | AE75: 355052.997 | AF75: 253660.003 | AG75: 608713 | AH75: 108102 | AI75: -879 | AJ75: -879 | AK75: 0 | AL75: -879 | AM75: 108102 | AN75: 107223 | AO75: 0 | AP75: 0 | AQ75: 0 | AR75: 0 | AS75: 0 | AT75: 0 | AU75: =StravisData取り込み!U90 -> 0 | AV75: 0 | AW75: 0 | AX75: 0 | AY75: 0 | AZ75: 0 | BA75: 0 | BB75: =StravisData取り込み!AB90 -> 0 | BC75: 0
C76: インドネシア Indonesia | E76: M JPY | O76: =M76+N76 -> 0 | Q76: =O76+P76 -> 0 | U76: 0 | V76: =T76+U76 -> 0 | X76: =V76+W76 -> 0 | Y76: 0 | AB76: 103419669 | AC76: =AA76+AB76 -> 103419669 | AD76: 494059518 | AE76: =AC76+AD76 -> 597479187 | AF76: 548427358 | AG76: 1145906545 | AH76: 705503482 | AI76: 881567054 | AJ76: 881567054 | AK76: 809040512 | AL76: 1690607566 | AM76: 1274734202 | AN76: 2965341768 | AO76: 897075822 | AP76: 958248748 | AQ76: =AO76+AP76 -> 1855324570 | AR76: =AS76-AQ76 -> 1012976686 | AS76: 2868301256 | AT76: 986651208 | AU76: 3854952464 | AV76: 1200121982 | AW76: 1235837555 | AX76: 2435959537 | AY76: =AZ76-AX76 -> 957243678 | AZ76: 3393203215 | BA76: 662472595 | BB76: =StravisData取り込み!AB76 -> 4055675810 | BC76: 5298182400
E77: M IDR | O77: =M77+N77 -> 0 | Q77: =O77+P77 -> 0 | V77: =T77+U77 -> 0 | X77: =V77+W77 -> 0 | AB77: 12927458625 | AC77: =AA77+AB77 -> 12927458625 | AD77: 6.083540397e+10 | AE77: =AC77+AD77 -> 7.376286259e+10 | AF77: 6.598183802e+10 | AG77: 139744700609 | AH77: 85000419518 | AI77: 106212898072 | AJ77: 106212898072 | AK77: 97474760482 | AL77: 203687658554 | AM77: 1.579393863e+11 | AN77: 3.616270449e+11 | AO77: 1.150097208e+11 | AP77: 1.259415221e+11 | AQ77: =AO77+AP77 -> 2.409512429e+11 | AR77: =AS77-AQ77 -> 1.315554138e+11 | AS77: 3.725066566e+11 | AT77: 1.281365205e+11 | AU77: 5.006431771e+11 | AV77: 1.558599977e+11 | AW77: 1.604983838e+11 | AX77: 3.163583814e+11 | AY77: =AZ77-AX77 -> 1.243173608e+11 | AZ77: 4.406757422e+11 | BA77: 1.148962866e+11 | BB77: =StravisData取り込み!AB77 -> 5.555720288e+11 | BC77: 630736000000
AO78: =AO79+AO81+AO85+AO87+AO83 -> 2660129129 | AP78: =AP79+AP81+AP85+AP87+AP83 -> 2781800029 | AQ78: 5441929158 | AR78: =AR79+AR81+AR85+AR87 -> 2829183948 | AS78: 7913959447 | AT78: 2860600957 | AU78: 10774560404 | AV78: =AV79+AV81+AV85+AV87 -> 2748212494 | AW78: =AW79+AW81+AW85+AW87 -> 2993545040 | AY78: =AZ78-AX78 -> 0
C79: 韓国 South Korea | E79: M JPY | F79: 667837189 | G79: 679290944 | I79: 579458087 | K79: 498462362 | L79: 2425048582 | M79: 545302874 | N79: 824603509 | O79: =M79+N79 -> 1369906383 | P79: 1201324808 | Q79: 2571231191 | R79: 1504266621 | S79: 4075497812 | T79: 1832827255 | U79: 1406148522 | V79: =T79+U79 -> 3238975777 | W79: 1421641649 | X79: =V79+W79 -> 4660617426 | Y79: 1411787010 | Z79: 6072404436 | AA79: 1448945612 | AB79: 1427678956 | AC79: =AA79+AB79 -> 2876624568 | AD79: 1182053067 | AE79: =AC79+AD79 -> 4058677635 | AF79: 1278202669 | AG79: 5336880304 | AH79: 1256330551 | AI79: 1451987447 | AJ79: =G79+AI79 -> 2131278391 | AK79: 1381639627 | AL79: =AJ79+AK79 -> 3512918018 | AM79: 1770345265 | AN79: 5283263283 | AO79: 1062233236 | AP79: 1129295001 | AQ79: =AO79+AP79 -> 2191528237 | AR79: =AS79-AQ79 -> 1206488497 | AS79: 3398016734 | AT79: 1238156911 | AU79: 4636173645 | AV79: 959729265 | AW79: =AX79-AV79 -> 983386155 | AX79: 1943115420 | AY79: 905995779 | AZ79: 2849111199 | BA79: 1350375086 | BB79: =StravisData取り込み!AB79 -> 4199486285 | BC79: 5202000400
E80: M KRW | F80: 7549344170 | G80: 7617276960 | I80: 6000891853 | K80: 5194732124 | L80: 2.636224511e+10 | M80: 5451923928 | N80: 8065243811 | O80: 1.351716774e+10 | P80: 1.120146118e+10 | Q80: 2.471862892e+10 | R80: 1.386646289e+10 | S80: 3.858509181e+10 | T80: 1.660169615e+10 | U80: 1.358447139e+10 | V80: 3.018616754e+10 | W80: 1.332372679e+10 | X80: 4.350989433e+10 | Y80: 1.465489911e+10 | Z80: 5.816479345e+10 | AA80: 1.53652769e+10 | AB80: 1.543370134e+10 | AC80: 3.079897824e+10 | AD80: 1.242442575e+10 | AE80: 4.322340399e+10 | AF80: 1.289521119e+10 | AG80: 56118615184 | AH80: 12690207585 | AI80: 14721917900 | AJ80: =G80+AI80 -> 2.233919486e+10 | AK80: 13405814884 | AL80: =AJ80+AK80 -> 3.574500974e+10 | AM80: 1.692959926e+10 | AN80: 5.2674609e+10 | AO80: 1.058001231e+10 | AP80: 1.124795818e+10 | AQ80: 2.182797049e+10 | AR80: =AS80-AQ80 -> 1.205056126e+10 | AS80: 3.387853174e+10 | AT80: 1.252961285e+10 | AU80: 4.640814459e+10 | AV80: 1.011305864e+10 | AW80: =AX80-AV80 -> 1.082568511e+10 | AX80: 20938743750 | AY80: 9663954413 | AZ80: 3.060269816e+10 | BA80: 1.524322198e+10 | BB80: =StravisData取り込み!AB80 -> 4.584592014e+10 | BC80: 51556000000
C81: タイ Thailand | E81: M JPY | F81: 615182907 | G81: 674588920 | I81: 606702231 | K81: 632485120 | L81: 2528959178 | M81: 640285829 | N81: 708393286 | O81: =M81+N81 -> 1348679115 | P81: 825768126 | Q81: 2174447241 | R81: 721706939 | S81: 2896154180 | T81: 714897691 | U81: 764348390 | V81: =T81+U81 -> 1479246081 | W81: 822028842 | X81: =V81+W81 -> 2301274923 | Y81: 754577561 | Z81: 3055852484 | AA81: 633211758 | AB81: 698632022 | AC81: =AA81+AB81 -> 1331843780 | AD81: 758596848 | AE81: =AC81+AD81 -> 2090440628 | AF81: 784487647 | AG81: 2874928275 | AH81: 732688719 | AI81: 819425794 | AJ81: =G81+AI81 -> 1494014714 | AK81: 916729857 | AL81: =AJ81+AK81 -> 2410744571 | AM81: 914938960 | AN81: 3325683531 | AO81: 817798187 | AP81: 771534251 | AQ81: =AO81+AP81 -> 1589332438 | AR81: =AS81-AQ81 -> 911593428 | AS81: 2500925866 | AT81: 859003382 | AU81: 3359929248 | AV81: 908711638 | AW81: 948659612 | AX81: 1857371250 | AY81: 1024257458 | AZ81: 2881628708 | BA81: 650532682 | BB81: =StravisData取り込み!AB81 -> 3532161390 | BC81: 3608937428
E82: K THB | F82: 186973202.3 | G82: 217828547.3 | I82: 190192061.4 | K82: 201449472.7 | L82: 796443283.7 | M82: 204215503.4 | N82: 216160452 | O82: 420375955.4 | P82: 233353643.5 | Q82: 653729598.9 | R82: 196961553.3 | S82: 850691152.2 | T82: 195862381.1 | U82: 222003743.5 | V82: 417866124.6 | W82: 235538350.1 | X82: 653404474.7 | Y82: 237514616.8 | Z82: 890919091.5 | AA82: 205588233.1 | AB82: 233964169.5 | AC82: 439552402.6 | AD82: 243598129.4 | AE82: 683150532 | AF82: 244245685 | AG82: 927396217 | AH82: 225442682 | AI82: 246324647 | AJ82: 464153194.3 | AK82: 269627376 | AL82: 733780570.3 | AM82: 258960782.2 | AN82: 992741352.5 | AO82: 241238403.2 | AP82: 227591224.5 | AQ82: 468829627.7 | AR82: 266736803.4 | AS82: 735566431.2 | AT82: 246869021.5 | AU82: 982435452.6 | AV82: 261876552.7 | AW82: 270321513.2 | AX82: 532198065.9 | AY82: 284127347.1 | AZ82: 816325413 | BA82: 219499041.5 | BB82: =StravisData取り込み!AB82 -> 1035824455 | BC82: 1058339421
C83: フィリピン Philippines | E83: M JPY | O83: 0 | Q83: 0 | R83: 72131477 | S83: 72131477 | T83: 219695012 | U83: 116203417 | V83: 335898429 | W83: 163660684 | X83: 499559113 | Y83: 93818478 | Z83: 593377591 | AA83: 122214269 | AB83: 116278495 | AC83: 238492764 | AD83: 134263219 | AE83: 372755983 | AF83: 116515101 | AG83: 489271084 | AH83: 115750941 | AI83: 125409232 | AJ83: =AI83+AH83 -> 241160173 | AK83: 120921835 | AL83: =AJ83+AK83 -> 362082008 | AM83: =AN83-AL83 -> 156965612 | AN83: 519047620 | AO83: 183418388 | AP83: 173735271 | AQ83: 357153659 | AR83: 0 | AS83: 357153659 | AT83: 0 | AU83: 357153659 | AW83: 0 | AY83: 0 | BA83: 0 | BB83: =StravisData取り込み!AB87 -> 0 | BC83: 573232023
E84: K PHP | O84: 0 | Q84: 0 | R84: 26536471.64 | S84: 26536471.64 | T84: 80474363.37 | U84: 44394941.09 | V84: 124869304.5 | W84: 61526572.93 | X84: 186395877.4 | Y84: 40951858.62 | Z84: 227347736 | AA84: 52228320.09 | AB84: 52834571.54 | AC84: 105062891.6 | AD84: 59873384.03 | AE84: 164936275.7 | AF84: 51555354.34 | AG84: 216491630 | AH84: 51906251 | AI84: 57215999.23 | AJ84: =AI84+AH84 -> 109122250.2 | AK84: 53977753 | AL84: =AJ84+AK84 -> 163100003.2 | AM84: 73908042.44 | AN84: 237008045.7 | AO84: 88181917.31 | AP84: 82705000.87 | AQ84: 170886918.2 | AR84: 0 | AS84: 170886918.2 | AT84: -1619781.215 | AU84: 169267137 | AW84: 0 | AY84: 0 | BA84: 0 | BB84: =StravisData取り込み!AB88 -> 0 | BC84: 259381005
C85: シンガポール Singapore | E85: M JPY | O85: 0 | Q85: 0 | T85: 358516835 | U85: 358570354 | V85: 717087189 | W85: 357270261 | X85: 1074357450 | Y85: 302316644 | Z85: 1376674094 | AA85: 337547695 | AB85: 321318790 | AC85: 658866485 | AD85: 320560039 | AE85: 979426524 | AF85: 293326087 | AG85: 1272752611 | AH85: 324433860 | AI85: 342428066 | AJ85: 342428066 | AK85: 328466803 | AL85: 670894869 | AM85: 632817931 | AN85: 1303712800 | AO85: 351037485 | AP85: 347506861 | AQ85: 698544346 | AR85: 339257927 | AS85: 1037802273 | AT85: 303726816 | AU85: 1341529089 | AV85: 338470487 | AW85: 352807096 | AX85: 691277583 | AY85: 360558328 | AZ85: 1051835911 | BA85: 512163295 | BB85: =StravisData取り込み!AB83 -> 1563999206 | BC85: 1413720000
E86: K SPD | O86: 0 | Q86: 0 | T86: 3979099.168 | U86: 4108958.457 | V86: 8088057.625 | W86: 4063121.358 | X86: 12151178.98 | Y86: 3716433.904 | Z86: 15867612.89 | AA86: 4197832.297 | AB86: 4209293.963 | AC86: 8407126.26 | AD86: 4093531.353 | AE86: 12500657.61 | AF86: 3659227.387 | AG86: 16159885 | AH86: 4039266 | AI86: 4193597 | AJ86: 4193597 | AK86: 3937945 | AL86: 8131542 | AM86: 7814064.654 | AN86: 15945606.65 | AO86: 4316742.314 | AP86: 4245948.86 | AQ86: 8562691.174 | AR86: 4144573.097 | AS86: 12707264.27 | AT86: 3718952.075 | AU86: 16426216.35 | AV86: 4193662.334 | AW86: 4496187.861 | AX86: 8689850.195 | AY86: 4489399.41 | AZ86: 13179249.61 | BA86: 6962401.47 | BB86: =StravisData取り込み!AB84 -> 20141651.08 | BC86: 17000000
C87: オーストラリア Australia | E87: M JPY | O87: 0 | Q87: 0 | V87: 0 | X87: 0 | AC87: 0 | AE87: 0 | AF87: 15747585 | AG87: 15747585 | AH87: 73255094 | AI87: 94802025 | AJ87: 94802025 | AK87: 110885379 | AL87: 205687404 | AM87: 231782651 | AN87: 437470055 | AO87: 245641833 | AP87: 359728645 | AQ87: 605370478 | AR87: =AS87-AQ87 -> 371844096 | AS87: 977214574 | AT87: 459713848 | AU87: 1436928422 | AV87: 541301104 | AW87: 708692177 | AX87: 1249993281 | AY87: 683223479 | AZ87: 1933216760 | BA87: 1741680032 | BB87: =StravisData取り込み!AB85 -> 3674896792 | BC87: 853483549
E88: K AUD | O88: 0 | Q88: 0 | V88: 0 | X88: 0 | AC88: 0 | AE88: 0 | AF88: 192114 | AG88: 192114 | AH88: 866514 | AI88: 1087865 | AJ88: 1087865 | AK88: 1281988 | AL88: 2369853 | AM88: 2730648.982 | AN88: 5100501.982 | AO88: 2997825.641 | AP88: 4405506.608 | AQ88: 7403332.249 | AR88: =AS88-AQ88 -> 4603235.806 | AS88: 12006568.06 | AT88: 5770599.111 | AU88: 17777167.17 | AV88: 7028971.614 | AW88: 9571204.76 | AX88: 16600176.37 | AY88: 9073352.975 | AZ88: 25673529.35 | BA88: 22750463.17 | BB88: =StravisData取り込み!AB86 -> 48423992.52 | BC88: 9815796
B89: その他アジア・豪州 Other Asian regions and Australia | E89: M JPY | M89: =M81+M83+M85+M76+M87 -> 640285829 | N89: 708393286 | O89: 1348679115 | P89: 825768126 | Q89: 2174447241 | R89: 793838416 | S89: 2968285657 | T89: 1293109538 | U89: 1239122161 | V89: 2532231699 | W89: 1342959787 | X89: 3875191486 | Y89: 1150712683 | Z89: 5025904169 | AA89: 1092973722 | AB89: 1239648976 | AC89: 2332622698 | AD89: 1707479624 | AE89: 4040102322 | AF89: 1758503778 | AG89: 5798606100 | AH89: =G81+G83+G85+G76+G87 -> 674588920 | AI89: =AI81+AI83+AI85+AI76+AI87 -> 2263632171 | AJ89: =AJ81+AJ83+AJ85+AJ76+AJ87 -> 3053972032 | AK89: =AK81+AK83+AK85+AK76+AK87 -> 2286044386 | AL89: =AL81+AL83+AL85+AL76+AL87 -> 5340016418 | AM89: =AN89-AL89 -> 3211239356 | AN89: 8551255774 | AO89: 2494971715 | AP89: 2610753776 | AQ89: =AQ81+AQ83+AQ85+AQ76+AQ87 -> 5105725491 | AR89: =AR81+AR83+AR85+AR76+AR87 -> 2635672137 | AS89: 7741397628 | AT89: =AU89-AS89 -> 3390316435 | AU89: 11131714063 | AW89: =AX89-AV89 -> 0 | AY89: =AY81+AY83+AY85+AY79+AY87 -> 2974035044 | AZ89: =AZ81+AZ83+AZ85+AZ79+AZ87 -> 8715792578 | BA89: 4254751095 | BB89: =StravisData取り込み!AB78 -> 12970543673 | BC89: =BC81+BC83+BC85+BC76+BC87 -> 11747555400
B90: *香港のうち、カルビーイーコマースの採用通貨はJPY *Within Hong Kong, Calbee E-commerce uses JPY
A92: 国内営業利益、海外営業利益 Domestic operating income, Overseas operating income | M92: 2015年3月期 FY2015 | T92: 2016年3月期 FY2016 | AA92: 2017年3月期 FY2017 | AH92: 2018年3月期 FY2018 | AO92: 2019年3月期 FY2019 | AV92: 2020年3月期 FY2020 | BC92: 2019年3月期
M93: Q1 | N93: Q2 | O93: 上期 | P93: Q3 | Q93: 9ヶ月 | R93: Q4 | S93: FY2015 | T93: Q1 | U93: Q2 | V93: 上期 | W93: Q3 | X93: 9ヶ月 | Y93: Q4 | Z93: FY2016 | AA93: Q1 | AB93: Q2 | AC93: 上期 | AD93: Q3 | AE93: 9ヶ月 | AF93: Q4 | AG93: FY2017 | AH93: Q1 | AI93: Q2 | AJ93: 上期 | AK93: Q3 | AL93: 9ヶ月 | AM93: Q4 | AO93: Q1 | AP93: Q2 | AQ93: 上期 | AR93: Q3 | AS93: 9ヶ月 | AT93: Q4 | AV93: Q1 | AW93: Q2 | AX93: 上期 | AY93: Q3 | AZ93: 9ヶ月 | BA93: Q4 | BC93: 計画
B94: 国内営業利益 Domestic operating income | M94: 5255692951 | N94: 5010568531 | O94: =M94+N94 -> 10266261482 | P94: 7064853303 | Q94: =O94+P94 -> 17331114785 | R94: 4479913881 | S94: 21811028666 | T94: 4926500316 | U94: 6058577228 | V94: =T94+U94 -> 10985077544 | W94: 8260242475 | X94: =V94+W94 -> 19245320019 | Y94: 5965578758 | Z94: 25210898777 | AA94: 6520195393 | AB94: 6386272751 | AC94: =AA94+AB94 -> 12906468144 | AD94: 8645225960 | AE94: =AC94+AD94 -> 21551694104 | AF94: 6444566709 | AG94: 27996260813 | AH94: 3504901501 | AI94: 7095220777 | AJ94: =G94+AI94 -> 7095220777 | AK94: 9284944619 | AL94: =AJ94+AK94 -> 16380165396 | AM94: =AN94-AL94 -> 11897252259 | AN94: 28277417655 | AO94: 5790561089 | AP94: 5991013997 | AQ94: =AO94+AP94 -> 11781575086 | AR94: =AS94-AQ94 -> 8871716099 | AS94: 20653291185 | AT94: =AU94-AS94 -> 6416593160 | AU94: 27069884345 | AV94: 6135018640 | AW94: =AX94-AV94 -> 6462088339 | AX94: 12597106979 | AY94: =AZ94-AX94 -> 8523255683 | AZ94: 21120362662 | BA94: =BB94-AZ94 -> 3582087667 | BB94: =StravisData取り込み!AB95 -> 24702450329
B95: 海外営業利益 Overseas operating income | M95: 612046378 | N95: 588825360 | O95: =M95+N95 -> 1200871738 | P95: 779295007 | Q95: 1980166745 | R95: 392040319 | S95: 2372207064 | T95: 1171744861 | U95: 651516652 | V95: =T95+U95 -> 1823261513 | W95: 841324244 | X95: =V95+W95 -> 2664585757 | Y95: 250007484 | Z95: 2914593241 | AA95: 610358730 | AB95: 236961868 | AC95: =AA95+AB95 -> 847320598 | AD95: -154294866 | AE95: =AC95+AD95 -> 693025732 | AF95: 151858982 | AG95: 844884714 | AH95: -91499802 | AI95: -170488883 | AJ95: =G95+AI95 -> -170488883 | AK95: =AK96+AK97+AK104+AK110+AK111 -> -226109648 | AL95: =AJ95+AK95 -> -396598531 | AM95: =AN95-AL95 -> -1051981347 | AN95: -1448579878 | AO95: -16272122 | AP95: -24341664 | AQ95: =AO95+AP95 -> -40613786 | AR95: =AS95-AQ95 -> -172194711 | AS95: -212808497 | AT95: 107188246 | AU95: -105620251 | AV95: 313843463 | AW95: =AX95-AV95 -> 347508856 | AX95: 661352319 | AY95: =AZ95-AX95 -> 97603205 | AZ95: 758955524 | BA95: =BB95-AZ95 -> 1602613615 | BB95: =StravisData取り込み!AB96 -> 2361569139
C96: 北米 North America | M96: 666474600 | N96: 574500919 | O96: 1240975519 | P96: 755538751 | Q96: 1996514270 | R96: 834662882 | S96: 2831177152 | T96: 959860036 | U96: 594021335 | V96: 1553881371 | W96: 805875372 | X96: 2359756743 | Y96: 488477523 | Z96: 2848234266 | AA96: 607619506 | AB96: 224972114 | AC96: 832591620 | AD96: 227770655 | AE96: 1060362275 | AF96: 482721978 | AG96: 1543084253 | AH96: 53577310 | AI96: -249292346 | AJ96: -249292346 | AK96: -231779392 | AL96: =AJ96+AK96 -> -481071738 | AM96: -225645255 | AN96: -706716993 | AO96: 159244464 | AP96: 20888285 | AQ96: 180132749 | AR96: =AS96-AQ96 -> -123411420 | AS96: 56721329 | AT96: 14825083 | AU96: 71546412 | AV96: -21111829 | AW96: =AX96-AV96 -> 25219573 | AX96: 4107744 | AY96: =AZ96-AX96 -> -416927406 | AZ96: -412819662 | BA96: 1035986031 | BB96: =StravisData取り込み!AB97 -> 623166369
C97: 中華圏 Greater China | M97: -32979050 | N97: -54493081 | O97: -87472131 | P97: -91956155 | Q97: -179428286 | R97: -454421704 | S97: -633849990 | T97: -51822152 | U97: 35182089 | V97: -16640063 | W97: 98628797 | X97: 81988734 | Y97: 70068104 | Z97: 152056838 | AA97: 143044575 | AB97: 109396396 | AC97: 252440971 | AD97: 170789674 | AE97: 423230645 | AF97: 73738634 | AG97: 496969279 | AH97: 94988979 | AI97: =SUM(AI98:AI100) -> 237121572 | AJ97: 237121572 | AK97: =SUM(AK98:AK100) -> 139034494 | AL97: 376156066 | AM97: -215014924 | AN97: 161141142 | AO97: -58866923 | AP97: 156807716 | AQ97: 97940793 | AR97: 238379986 | AS97: 336320779 | AT97: 24802881 | AU97: 361123660 | AV97: 176175077 | AW97: 233748675 | AX97: 409923752 | AY97: =SUM(AY98:AY100) -> 324395470 | AZ97: 734319222 | BA97: -118396458 | BB97: =StravisData取り込み!AB98 -> 615922764
D98: 中国 | M98: -119692337 | N98: -101807580 | O98: -221499917 | P98: -32924611 | Q98: -254424528 | R98: -485297982 | S98: -739722510 | T98: -76532365 | U98: -15154992 | V98: -91687357 | W98: 110040981 | X98: 18353624 | Y98: -1747831 | Z98: 16605793 | AA98: 59608543 | AB98: 70124514 | AC98: 129733057 | AD98: 92896885 | AE98: 222629942 | AF98: 21646668 | AG98: 244276610 | AH98: 49953482 | AI98: 75941102 | AJ98: 75941102 | AK98: 55619679 | AL98: 131560781 | AM98: 26886511 | AN98: 158447292 | AO98: -15030691 | AP98: 13825917 | AQ98: -1204774 | AR98: 119626321 | AS98: 118421547 | AT98: -16046112 | AU98: 102375435 | AV98: 23949486 | AW98: 113266974 | AX98: 137216460 | AY98: =AZ98-AX98 -> 198712388 | AZ98: 335928848 | BA98: -57888780 | BB98: =StravisData取り込み!AB99 -> 278040068
D99: 香港 | M99: 82633860 | N99: 53370144 | O99: 136004004 | P99: 34842747 | Q99: 170846751 | R99: 77388479 | S99: 248235230 | T99: 73452170 | U99: 89514149 | V99: 162966319 | W99: 101855026 | X99: 264821345 | Y99: 119278159 | Z99: 384099504 | AA99: 118960864 | AB99: 37151127 | AC99: 156111991 | AD99: 91637022 | AE99: 247749013 | AF99: 87122514 | AG99: 334871527 | AH99: 65781574 | AI99: 187807904 | AJ99: 187807904 | AK99: 161888149 | AL99: 349696053 | AM99: 4656863 | AN99: 354352916 | AO99: 132051194 | AP99: 134184298 | AQ99: =AO99+AP99 -> 266235492 | AR99: 128648883 | AS99: 394884375 | AT99: 36545984 | AU99: 431430359 | AV99: 152240199 | AW99: 120553467 | AX99: 272793666 | AY99: =AZ99-AX99 -> 125689117 | AZ99: 398482783 | BA99: -60600087 | BB99: =StravisData取り込み!AB100 -> 337882696
D100: 台湾 | M100: 4079427 | N100: -6055645 | O100: -1976218 | P100: -93874291 | Q100: -95850509 | R100: -46512201 | S100: -142362710 | T100: -48741957 | U100: -39177068 | V100: -87919025 | W100: -113267210 | X100: -201186235 | Y100: -47462224 | Z100: -248648459 | AA100: -35524832 | AB100: 2120755 | AC100: -33404077 | AD100: -13744233 | AE100: -47148310 | AF100: -35030548 | AG100: -82178858 | AH100: -20746077 | AI100: -26627434 | AJ100: -26627434 | AK100: -78473334 | AL100: -105100768 | AM100: -246558298 | AN100: -351659066 | AO100: -175887426 | AP100: 8797501 | AQ100: =AO100+AP100 -> -167089925 | AR100: -9895218 | AS100: -176985143 | AT100: 4303009 | AU100: -172682134 | AV100: -14608 | AW100: -71766 | AX100: -86374 | AY100: =AZ100-AX100 -> -6035 | AZ100: -92409 | BA100: 92409 | BB100: =StravisData取り込み!AB101 -> 0
C101: UK | O101: =M101+N101 -> 0 | Q101: =O101+P101 -> 0 | T101: 113950 | U101: -201780238 | V101: =T101+U101 -> -201666288 | W101: -205608894 | X101: =V101+W101 -> -407275182 | Y101: -276035937 | Z101: -683311119 | AA101: -188452424 | AB101: -102728232 | AC101: =AA101+AB101 -> -291180656 | AD101: -136673046 | AE101: =AC101+AD101 -> -427853702 | AF101: -99101439 | AG101: -526955141 | AH101: -138813062 | AI101: -55752990 | AJ101: =G101+AI101 -> -55752990 | AK101: -91048411 | AL101: =AJ101+AK101 -> -146801401 | AM101: =AN101-AL101 -> -249615643 | AN101: -396417044 | AO101: -109685208 | AP101: -142919911 | AQ101: =AO101+AP101 -> -252605119 | AR101: -133103940 | AS101: -385709059 | AT101: -58439619 | AU101: -444148678 | AV101: 9616453 | AW101: =AX101-AV101 -> 27826732 | AX101: 37443185 | AY101: -32238114 | AZ101: 5205071 | BA101: =BB101-AZ101 -> 149498275 | BB101: =StravisData取り込み!AB102 -> 154703346
C102: インドネシア | M102: -579357 | N102: -2376787 | O102: =M102+N102 -> -2956144 | Q102: =O102+P102 -> -2956144 | V102: =T102+U102 -> 0 | X102: =V102+W102 -> 0 | AB102: -56342774 | AC102: =AA102+AB102 -> -56342774 | AD102: -300014859 | AE102: =AC102+AD102 -> -356357633 | AF102: -216637677 | AG102: -572995310 | AH102: -159962085 | AI102: -160000153 | AJ102: =G102+AI102 -> -160000153 | AK102: -206515213 | AL102: =AJ102+AK102 -> -366515366 | AM102: =AN102-AL102 -> -353861052 | AN102: -720376418 | AO102: -153923191 | AP102: -152479340 | AQ102: =AO102+AP102 -> -306402531 | AR102: -292058482 | AS102: -598461013 | AT102: -187403483 | AU102: -785864496 | AV102: -144186192 | AW102: =AX102-AV102 -> -135639263 | AX102: -279825455 | AY102: -119625789 | AZ102: -399451244 | BA102: =BB102-AZ102 -> -102230398 | BB102: =StravisData取り込み!AB103 -> -501681642
C103: その他アジア・豪州 Other Asian reagions and Australia | AO103: =SUM(AO104:AO109) -> 146958736 | AP103: =SUM(AP104:AP109) -> 93361586 | AQ103: =AO103+AP103 -> 240320322 | AR103: 137999145 | AS103: 378319467 | AT103: =SUM(AT104:AT109) -> 313403384 | AU103: =SUM(AU104:AU109) -> 691722851 | AV103: =SUM(AV104:AV109) -> 293349954 | AW103: =SUM(AW104:AW109) -> 196353139 | AX103: 489703093 | AY103: 341999044 | AZ103: 831702137
D104: 韓国 South Korea | M104: -16685429 | N104: 55515563 | O104: 38830134 | P104: 74575673 | Q104: 113405807 | R104: 107089449 | S104: 220495256 | T104: 251053561 | U104: 140418926 | V104: 391472487 | W104: 104812802 | X104: 496285289 | Y104: -10314100 | Z104: 485971189 | AA104: 46954012 | AB104: 19100918 | AC104: 66054930 | AD104: -95240988 | AE104: -29186058 | AF104: -43395536 | AG104: -72581594 | AH104: 8962413 | AI104: 816241 | AJ104: 816241 | AK104: -57909869 | AL104: -57093628 | AM104: 14966735 | AN104: -42126893 | AO104: -14181275 | AP104: -8705666 | AQ104: -22886941 | AR104: 6082265 | AS104: -16804676 | AT104: =AU104-AS104 -> 48338053 | AU104: 31533377 | AV104: 7568558 | AW104: 372077 | AX104: 7940635 | AY104: 7824820 | AZ104: 15765455 | BA104: 79091018 | BB104: =StravisData取り込み!AB105 -> 94856473
D105: タイ | M105: -4184386 | N105: 15678746 | O105: 11494360 | P105: 41136738 | Q105: 52631098 | R105: 78838599 | S105: 131469697 | T105: 14628466 | U105: 89551022 | V105: 104179488 | W105: 56014207 | X105: 160193695 | Y105: 11825101 | Z105: 172018796 | AA105: 80754257 | AB105: 108446967 | AC105: 189201224 | AD105: 66254379 | AE105: 255455603 | AF105: 58651489 | AG105: 314107092 | AH105: 135144303 | AI105: 94434740 | AJ105: 94434740 | AK105: 57244837 | AL105: 151679577 | AM105: 270104447 | AN105: 421784024 | AO105: 144832940 | AP105: 75766705 | AQ105: 220599645 | AR105: 54192569 | AS105: 274792214 | AT105: =AU105-AS105 -> 199688131 | AU105: 474480345 | AV105: 161822582 | AW105: 72449672 | AX105: 234272254 | AY105: 156883860 | AZ105: 391156114 | BA105: 200861345 | BB105: =StravisData取り込み!AB106 -> 592017459
D106: フィリピン | O106: 0 | Q106: 0 | R106: -174128907 | S106: -177085051 | T106: -39275779 | U106: -18830659 | V106: -58106438 | W106: -36231606 | X106: -94338044 | Y106: -88833570 | Z106: -183171614 | AA106: -40717780 | AB106: -38739159 | AC106: -79456939 | AD106: -66236135 | AE106: -145693074 | AF106: -44378344 | AG106: -190071418 | AH106: -68876201 | AI106: -50511963 | AJ106: -50511963 | AK106: -58375602 | AL106: -108887565 | AM106: -91816982 | AN106: -200704547 | AO106: -9182272 | AP106: -27165125 | AQ106: -36347397 | AR106: 0 | AS106: -36347397 | AT106: =AU106-AS106 -> 0 | AU106: -36347397 | AV106: 0 | AW106: 0 | AX106: 0 | AY106: =AZ106-AX106 -> 0 | AZ106: 0 | BA106: 0 | BB106: =StravisData取り込み!AB107 -> 0
D107: シンガポール | O107: 0 | Q107: 0 | T107: 37186779 | U107: 12954177 | V107: 50140956 | W107: 17833566 | X107: 67974522 | Y107: 54820363 | Z107: 122794885 | AA107: 4803556 | AB107: 21356927 | AC107: 26160483 | AD107: 55245331 | AE107: 81405814 | AF107: 18496104 | AG107: 99901918 | AH107: 21886091 | AI107: 22097466 | AJ107: 22097466 | AK107: 17379217 | AL107: 39476683 | AM107: 29145167 | AN107: 68621850 | AO107: 19897294 | AP107: 26774806 | AQ107: 46672100 | AR107: 12900776 | AS107: 59572876 | AT107: =AU107-AS107 -> 13030404 | AU107: 72603280 | AV107: 28860918 | AW107: 26692576 | AX107: 55553494 | AY107: =AZ107-AX107 -> 25921105 | AZ107: 81474599 | BA107: 75505457 | BB107: =StravisData取り込み!AB108 -> 156980056
D108: オーストラリア | O108: 0 | Q108: 0 | V108: 0 | X108: 0 | AC108: 0 | AE108: 0 | AF108: -22312642 | AG108: -22312642 | AH108: -3024021 | AI108: -5262522 | AJ108: -5262522 | AK108: -836858 | AL108: -6099380 | AM108: 11836838 | AN108: 5737458 | AO108: 5592049 | AP108: 26690866 | AQ108: 32282915 | AR108: 64823535 | AS108: 97106450 | AT108: =AU108-AS108 -> 52346796 | AU108: 149453246 | AV108: 95097896 | AW108: 96838814 | AX108: 191936710 | AY108: =AZ108-AX108 -> 151369259 | AZ108: 343305969 | BA108: 282298345 | BB108: =StravisData取り込み!AB109 -> 625604314
D109: スペイン | O109: 0 | Q109: 0 | V109: 0 | X109: 0 | AA109: -43646972 | AB109: -48501289 | AC109: -92148261 | AD109: -76189877 | AE109: -168338138 | AF109: -55923585 | AG109: -224261723 | AH109: -35383529 | AI109: -4138928 | AJ109: -4138928 | AK109: 181936 | AL109: -3956992 | AM109: -35565465 | AN109: -39522457 | AO109: 0 | AP109: 0 | AQ109: 0 | AR109: 0 | AS109: 0 | AT109: 0 | AU109: 0 | AW109: 0 | BA109: 0 | BB109: =StravisData取り込み!AB111 -> 0
C110: その他アジア・豪州 Other Asian reagions and Australia | M110: -4763743 | N110: 13301959 | O110: =M110+N110 -> 8538216 | P110: 41136738 | Q110: =O110+P110 -> 49674954 | R110: -95290308 | S110: -45615354 | T110: 12539466 | U110: 83674540 | V110: =T110+U110 -> 96214006 | W110: 37616167 | X110: =V110+W110 -> 133830173 | Y110: -22188106 | Z110: 111642067 | AA110: 44840033 | AB110: 34721961 | AC110: =AA110+AB110 -> 79561994 | AD110: -244751284 | AE110: =AC110+AD110 -> -165189290 | AF110: -206181070 | AG110: -371370360 | AH110: -74831913 | AI110: =SUM(AI105:AI108) -> 60757721 | AJ110: =G110+AI110 -> 60757721 | AK110: =SUM(AK105:AK108) -> 15411594 | AL110: =AJ110+AK110 -> 76169315 | AM110: =AN110-AL110 -> -501106948 | AN110: -424937633 | AO110: 7216820 | AP110: -50412088 | AQ110: =AO110+AP110 -> -43195268 | AR110: -160141602 | AS110: -203336870 | AT110: =AU110-AS110 -> 77661848 | AU110: -125675022 | AW110: =AX110-AV110 -> 0 | AY110: =SUM(AY105:AY108) -> 334174224 | BA110: =BB110-AZ110 -> 1469458302 | BB110: =StravisData取り込み!AB104 -> 1469458302
C111: 欧州 Europe | M111: 0 | N111: 0 | O111: =M111+N111 -> 0 | P111: 0 | Q111: =O111+P111 -> 0 | R111: 0 | S111: 0 | T111: 113950 | U111: -201780238 | V111: =T111+U111 -> -201666288 | W111: -205608894 | X111: =V111+W111 -> -407275182 | Y111: -276035937 | Z111: -683311119 | AA111: -232099396 | AB111: -151229521 | AC111: =AA111+AB111 -> -383328917 | AD111: -212862923 | AE111: =AC111+AD111 -> -596191840 | AF111: -155025024 | AG111: -751216864 | AH111: -174196591 | AI111: =SUM(AI101:AI109) -> -158318109 | AJ111: =G111+AI111 -> -158318109 | AK111: =AK101+AK109 -> -90866475 | AL111: =AJ111+AK111 -> -249184584 | AM111: =AN111-AL111 -> -186754917 | AN111: -435939501 | AO111: -109685208 | AP111: -142919911 | AQ111: =AO111+AP111 -> -252605119 | AR111: -133103940 | AS111: -385709059 | AT111: =AU111-AS111 -> 132580630 | AU111: -253128429 | AV111: 9616453 | AW111: =AX111-AV111 -> -9616453 | AY111: =AY101+AY109 -> -32238114 | BA111: =BB111-AZ111 -> 0 | BB111: =StravisData取り込み!AB110 -> 0
B112: 連結営業利益 | M112: 5867739329 | N112: 5599393891 | O112: 11467133220 | P112: 7844148310 | Q112: 19311281530 | R112: 4871954200 | S112: 24183235730 | T112: 6098245177 | U112: 6710093880 | V112: 12808339057 | W112: 9101566719 | X112: 21909905776 | Y112: 6215586242 | Z112: 28125492018 | AA112: 7130554123 | AB112: 6623234619 | AC112: 13753788742 | AD112: 8490931094 | AE112: 22244719836 | AF112: 6596425691 | AG112: 28841145527 | AH112: 3413401699
A114: 為替レート Exchange rate | M114: 2015年3月期 FY2015 | T114: 2016年3月期 FY2016 | AA114: 2017年3月期 FY2017 | AH114: 2018年3月期 FY2018 | AO114: 2019年3月期 FY2019 | AV114: 2020年3月期 FY2020 | BC114: 2019年3月期
M115: Q1 | N115: Q2 | P115: Q3 | R115: Q4 | S115: FY2015 | T115: Q1 | U115: Q2 | W115: Q3 | Y115: Q4 | Z115: FY2016 | AA115: Q1 | AB115: Q2 | AD115: Q3 | AF115: Q4 | AG115: FY2017 | AH115: Q1 | AI115: Q2 | AJ115: 上期 | AK115: Q3 | AL115: 9ヶ月 | AM115: Q4 | AO115: Q1 | AP115: Q2 | AQ115: 上期 | AR115: Q3 | AS115: 9ヶ月 | AT115: Q4 | AV115: Q1 | AW115: Q2 | AX115: 上期 | AY115: Q3 | AZ115: 9ヶ月 | BA115: Q4 | BC115: 計画
B116: 期中平均レート Average rate during the period
C117: USD/JPY | M117: 102.13 | N117: 103.51 | P117: 107.27 | R117: 110.03 | S117: 110.03 | T117: 121.33 | U117: 121.5 | W117: 121.48 | Y117: 120.15 | Z117: 120.15 | AA117: 109.07 | AB117: 106.42 | AD117: 107.87 | AF117: 109.02 | AG117: 109.02 | AH117: 111.61 | AJ117: 111.42 | AL117: 111.81 | AN117: 110.81 | AO117: 108.7 | AP117: 110.06 | AR117: =StravisData取り込み!U117 -> 109.1 | AS117: 110.82 | AU117: 110.69 | AV117: 109.99 | AY117: =StravisData取り込み!AB117 -> 106.16 | BB117: =StravisData取り込み!AB117 -> 106.16
C118: RMB/JPY | M118: 16.39 | N118: 16.69 | P118: 17.33 | R118: 17.73 | S118: 17.73 | T118: 19.56 | U118: 19.42 | W118: 19.24 | Y118: 18.87 | Z118: 18.87 | AA118: 16.63 | AB118: 16.11 | AD118: 16.12 | AF118: 16.19 | AG118: 16.19 | AH118: 16.29 | AJ118: 16.46 | AL118: 16.65 | AN118: 16.74 | AO118: 16.96 | AP118: 16.68 | AR118: =StravisData取り込み!U118 -> 15.66 | AS118: 16.55 | AU118: 16.52 | AV118: 16.12 | AY118: =StravisData取り込み!AB118 -> 15.62 | BB118: =StravisData取り込み!AB118 -> 15.62
C119: HKD/JPY | M119: 13.17 | N119: 13.34 | P119: 13.83 | R119: 14.18 | S119: 14.18 | T119: 15.65 | U119: 15.67 | W119: 15.67 | Y119: 15.49 | Z119: 15.49 | AA119: 14.05 | AB119: 13.71 | AD119: 13.9 | AF119: 14.05 | AG119: 14.05 | AH119: 14.33 | AJ119: 14.28 | AL119: 14.33 | AN119: 14.19 | AO119: 13.85 | AP119: 14.03 | AR119: =StravisData取り込み!U119 -> 13.95 | AS119: 14.13 | AU119: 14.11 | AV119: 14.03 | AY119: =StravisData取り込み!AB119 -> 13.69 | BB119: =StravisData取り込み!AB119 -> 13.69
C120: TWD/JPY | M120: 3.38 | N120: 3.43 | P120: 3.52 | R120: 3.58 | S120: 3.58 | T120: 3.93 | U120: 3.85 | W120: 3.81 | Y120: 3.73 | Z120: 3.73 | AA120: 3.38 | AB120: 3.32 | AD120: 3.37 | AF120: 3.44 | AG120: 3.44 | AH120: 3.69 | AJ120: 3.68 | AL120: 3.7 | AN120: 3.69 | AO120: 3.64 | AP120: 3.64 | AR120: =StravisData取り込み!U120 -> 3.54 | AS120: 3.64 | AU120: 3.63 | AV120: 3.53 | AY120: =StravisData取り込み!AB120 -> 3.66 | BB120: =StravisData取り込み!AB120 -> 3.66
C121: KRW/JPY | M121: 0.0991 | N121: 0.1004 | P121: 0.1024 | R121: 0.1038 | S121: 0.1038 | T121: 0.1104 | U121: 0.1073 | W121: 0.1067 | Y121: 0.1044 | Z121: 0.1044 | AA121: 0.0943 | AB121: 0.0934 | AD121: 0.0939 | AF121: 0.0951 | AG121: 0.0951 | AH121: 0.099 | AJ121: 0.0988 | AL121: 0.1002 | AN121: 0.1003 | AO121: 0.1004 | AP121: 0.1004 | AR121: =StravisData取り込み!U121 -> 0.0925 | AS121: 0.1003 | AU121: 0.0999 | AV121: 0.0949 | AY121: =StravisData取り込み!AB121 -> 0.0916 | BB121: =StravisData取り込み!AB121 -> 0.0916
C122: THB/JPY | M122: 3.14 | N122: 3.2 | P122: 3.3 | R122: 3.39 | S122: 3.39 | T122: 3.65 | U122: 3.54 | W122: 3.49 | Y122: 3.43 | Z122: 3.43 | AA122: 3.08 | AB122: 3.03 | AD122: 3.06 | AF122: 3.1 | AG122: 3.1 | AH122: 3.25 | AJ122: 3.29 | AL122: 3.33 | AN122: 3.35 | AO122: 3.39 | AP122: 3.39 | AR122: =StravisData取り込み!U122 -> 3.5 | AS122: 3.4 | AU122: 3.42 | AV122: 3.47 | AY122: =StravisData取り込み!AB122 -> 3.41 | BB122: =StravisData取り込み!AB122 -> 3.41
C123: PHP/JPY | M123: － | N123: － | P123: － | R123: 2.5 | S123: 2.5 | T123: 2.73 | U123: 2.69 | W123: 2.66 | Y123: 2.61 | Z123: 2.61 | AA123: 2.34 | AB123: 2.27 | AD123: 2.26 | AF123: 2.26 | AG123: 2.26 | AH123: 2.23 | AJ123: 2.21 | AL123: 2.22 | AN123: 2.19 | AO123: 2.08 | AP123: 2.09 | AR123: =StravisData取り込み!U123 -> 2.14 | AS123: 2.11 | AU123: 2.11 | AV123: 2.12 | AY123: =StravisData取り込み!AB123 -> 2.18 | BB123: =StravisData取り込み!AB123 -> 2.18
C124: SGD/JPY | M124: － | N124: － | P124: － | R124: － | S124: － | T124: 90.1 | U124: 88.66 | W124: 87.93 | Y124: 86.76 | Z124: 86.76 | AA124: 80.41 | AB124: 78.37 | AD124: 78.35 | AF124: 78.76 | AG124: 78.76 | AH124: 80.32 | AJ124: 81 | AL124: 81.78 | AN124: 81.76 | AO124: 81.32 | AP124: 81.58 | AR124: =StravisData取り込み!U124 -> 79.47 | AS124: 81.67 | AU124: 81.67 | AV124: 80.71 | AY124: =StravisData取り込み!AB124 -> 77.65 | BB124: =StravisData取り込み!AB124 -> 77.65
C125: IDR/JPY | M125: － | N125: － | P125: － | R125: － | S125: － | T125: － | U125: － | W125: 0.0089 | Y125: 0.0088 | Z125: 0.0088 | AA125: 0.0082 | AB125: 0.008 | AD125: 0.0081 | AF125: 0.0082 | AG125: 0.0082 | AH125: 0.0083 | AJ125: 0.0083 | AL125: 0.0083 | AN125: 0.0082 | AO125: 0.0078 | AP125: 0.0077 | AR125: =StravisData取り込み!U125 -> 0.0076 | AS125: 0.0077 | AU125: 0.0077 | AV125: 0.0077 | AY125: =StravisData取り込み!AB125 -> 0.0073 | BB125: =StravisData取り込み!AB125 -> 0.0073
C126: AUD/JPY | M126: － | N126: － | P126: － | R126: － | S126: － | T126: － | U126: － | W126: － | Y126: － | Z126: － | AA126: － | AB126: － | AD126: － | AF126: 81.97 | AG126: 81.97 | AH126: 84.54 | AJ126: 85.99 | AL126: 86.19 | AN126: 85.77 | AO126: 81.94 | AP126: 81.77 | AR126: =StravisData取り込み!U126 -> 74.18 | AS126: 81.39 | AU126: 80.83 | AV126: 77.01 | AY126: =StravisData取り込み!AB126 -> 75.89 | BB126: =StravisData取り込み!AB126 -> 75.89
C127: GBP/JPY | M127: － | N127: － | P127: － | R127: － | S127: － | T127: 186.04 | U127: 186.62 | W127: 185.51 | Y127: 180.62 | Z127: 180.62 | AA127: 155.62 | AB127: 146.56 | AD127: 143.71 | AF127: 143.03 | AG127: 143.03 | AH127: 142.92 | AJ127: 144.38 | AL127: 146.23 | AN127: 147.26 | AO127: 147.54 | AP127: 146.99 | AR127: =StravisData取り込み!U127 -> 138.51 | AS127: 145.83 | AU127: 145.67 | AV127: 140.88 | AY127: =StravisData取り込み!AB127 -> 138.68 | BB127: =StravisData取り込み!AB127 -> 138.68
C128: EUR/JPY | M128: － | N128: － | P128: － | R128: － | S128: － | T128: － | U128: － | W128: － | Y128: － | Z128: － | AA128: 122.46 | AB128: 119.12 | AD128: 119.12 | AF128: 119.37 | AG128: 119.37 | AH128: 123.14 | AJ128: 126.62 | AL128: 128.59 | AN128: 126.62 | AO128: 129.38 | AP128: 129.88 | AR128: =StravisData取り込み!U128 -> 121.13 | AS128: 129.38 | AU128: 128.43 | AV128: 123.29 | AY128: =StravisData取り込み!AB128 -> 123.72 | BB128: =StravisData取り込み!AB128 -> 123.72
B129: 期末日レート Current rate
C130: USD/JPY | R130: 110.03 | T130: 122.45 | U130: 119.96 | W130: 120.61 | Z130: 112.68 | AA130: 102.91 | AB130: 101.12 | AD130: 116.49 | AG130: 112.19 | AH130: 112 | AJ130: 112.73 | AL130: 113 | AN130: 106.24 | AO130: 110.54 | AP130: 113.57 | AR130: =StravisData取り込み!U130 -> 108.83 | AS130: 111 | AU130: 110.99 | AV130: 107.79 | AY130: =StravisData取り込み!AB130 -> 110.71 | BB130: =StravisData取り込み!AB130 -> 110.71
C131: GBP/JPY | R131: － | T131: 192.72 | U131: 181.86 | W131: 178.78 | Z131: 161.92 | AA131: 138.41 | AB131: 131 | AD131: 143 | AG131: 140.08 | AH131: 145.79 | AJ131: 151.37 | AL131: 151.95 | AN131: 148.84 | AO131: 144.59 | AP131: 148.53 | AR131: =StravisData取り込み!U132 -> 133.32 | AS131: 140.46 | AU131: 144.98 | AV131: 136.57 | AY131: =StravisData取り込み!AB132 -> 152.23 | BB131: =StravisData取り込み!AB132 -> 152.23
C132: RMB/JPY | AV132: 15.69
C133: IDR/JPY | AV133: 0.0077
A135: 設備投資・減価償却 Capex and depreciation （百万円 Million yen） | M135: 2015年3月期 FY2015 | T135: 2016年3月期 FY2016 | AA135: 2017年3月期 FY2017 | AH135: 2018年3月期 FY2018 | AO135: 2019年3月期 FY2019 | AV135: 2020年3月期 FY2020 | BC135: 2019年3月期
M136: Q1 | N136: Q2 | P136: Q3 | R136: Q4 | S136: FY2015 | T136: Q1 | U136: Q2 | W136: Q3 | Y136: Q4 | Z136: FY2016 | AA136: Q1 | AB136: Q2 | AD136: Q3 | AF136: Q4 | AG136: FY2017 | AH136: Q1 | AI136: Q2 | AJ136: 上期 | AK136: Q3 | AL136: 9ヶ月 | AM136: Q4 | AO136: Q1 | AP136: Q2 | AQ136: 上期 | AR136: Q3 | AS136: 9ヶ月 | AT136: Q4 | AV136: Q1 | AW136: Q2 | AX136: 上期 | AY136: Q3 | AZ136: 9ヶ月 | BA136: Q4 | BC136: 計画
B137: 設備投資 Capex | S137: =S144+S145 -> 15290880160 | Z137: =Z144 -> 21229511127 | AG137: 9763084062 | AH137: 1495 | AN137: 11009445337 | AU137: 9945000000 | BC137: 12000000000
C138: 国内 Domestic | S138: =S137-S139 -> 10856880160 | Z138: 14070570399 | AG138: 7200453433 | AH138: 967 | AN138: 9338712073 | AU138: 7757000000 | BC138: =BC137-BC139 -> 9049000000
C139: 海外 Overseas | S139: 4434000000 | Z139: 7158940728 | AG139: 2562630629 | AH139: 527 | AN139: 1670733264 | AU139: 2188000000 | BC139: 2951000000
B140: 減価償却費 Depreciation | S140: 6232346501 | Z140: 7570265674 | AG140: 7297107638 | AH140: 1932 | AN140: 7845712180 | AU140: 8023956174 | BC140: 8000000000
C141: 国内 Domestic | Z141: 5993488321 | AG141: 5664053417 | AN141: 6241545320 | AU141: 6198345139
C142: 海外 Overseas | Z142: =Z140-Z141 -> 1576777353 | AG142: =AG140-AG141 -> 1633054221 | AN142: 1604166860 | AU142: 1825611035
A144: @ | B144: 有形固定資産取得 | S144: 14318918353 | T144: 6197365248 | Z144: 21229511127 | AN144: 10583571350 | AO144: 3305912994 | AP144: 6017792823 | AS144: 7404199518 | AU144: 9390346115
A145: @ | B145: 無形固定資産取得 | S145: 971961807 | T145: 716310506 | AN145: 425873987 | AO145: 144072131 | AP145: 279105782 | AS145: 463443412 | AU145: 555207814
A146: 研究開発費 Research and development costs（百万円 Million yen) | L146: FY2014 | M146: 2015年3月期 FY2015 | T146: 2016年3月期 FY2016 | AA146: 2017年3月期 FY2017 | AH146: 2018年3月期 FY2018 | AO146: 2019年3月期 FY2019 | AV146: 2020年3月期 FY2020 | BC146: 2019年3月期
S147: FY2015 | Z147: FY2016 | AG147: FY2017 | AH147: Q1 | AI147: Q2 | AJ147: 上期 | AK147: Q3 | AL147: 9ヶ月 | AM147: Q4 | AO147: Q1 | AP147: Q2 | AQ147: 上期 | AR147: Q3 | AS147: 9ヶ月 | AT147: Q4 | AV147: Q1 | AW147: Q2 | AX147: 上期 | AY147: Q3 | AZ147: 9ヶ月 | BA147: Q4 | BC147: 計画
B148: 研究開発費 | S148: 2052000000 | Z148: 2195239994 | AG148: 2168303035 | AN148: 2469539399 | AU148: 2660631540
A150: 配当状況 Dividends | L150: FY2014 | M150: 2015年3月期 FY2015 | T150: 2016年3月期 FY2016 | AA150: 2017年3月期 FY2017 | AH150: 2018年3月期 FY2018 | AO150: 2019年3月期 FY2019 | AV150: 2020年3月期 FY2020 | BC150: 2019年3月期
S151: FY2015 | Z151: FY2016 | AG151: FY2017 | AH151: Q1 | AI151: Q2 | AJ151: 上期 | AK151: Q3 | AL151: 9ヶ月 | AM151: Q4 | AO151: Q1 | AP151: Q2 | AQ151: 上期 | AR151: Q3 | AS151: 9ヶ月 | AT151: Q4 | AV151: Q1 | AW151: Q2 | AX151: 上期 | AY151: Q3 | AZ151: 9ヶ月 | BA151: Q4 | BC151: 計画
B152: 1株当たり年間配当金 Annual dividend per share (円 Yen) | S152: 28 | Z152: 35 | AG152: 42 | AN152: 42 | AU152: 48
B153: 配当性向 Dividend payout ratio (%) | S153: 26.46124424 | Z153: 27.80425802 | AG153: 30.16427017 | AN153: 32.4 | AU153: 33
B154: 配当金総額 Total dividend amount (百万円 Million yen) | S154: 3741611104 | Z154: 4681913880 | AG154: 5620480656 | AN154: 5622748656 | AO154: 5622748656 | AU154: 6428206464

Sheet のれん202103 (hidden)
B1: のれん
F2: 201901M | G2: 201902M | H2: 201903M | I2: 201904M | J2: 201905M | K2: 201906M | L2: 201907M | M2: 201908M | N2: 201909M | O2: 201910M | P2: 201911M | Q2: 201912M
C4: 2020年3月期 | D4: 追加分 | E4: 償却 | F4: 月次償却額 | R4: のれん償却費 | S4: 2020年3月期
C5: a | E5: 年数 | F5: 4月 | G5: 5月 | H5: 6月 | I5: 7月 | J5: 8月 | K5: 9月 | L5: 10月 | M5: 11月 | N5: 12月 | O5: 1月 | P5: 2月 | Q5: 3月 | R5: b | S5: a + b + c
A6: 連結分 | B6: 9120 ポテトかいつか | C6: =C7 -> 11294371975 | E6: 15年 | F6: -61224313 | G6: -61224387 | H6: =-61224313-4566519 -> -65790832 | R6: =SUM(F6:Q6) -> -188239532 | S6: =+C6+R6 -> 11106132443
B7: 2020.4取得 | C7: =11020380828+273991147 -> 11294371975
A8: 単体分 | B8: 9120 ポテトかいつか | C8: =3222193409+18001080 -> 3240194489 | E8: 15年 | F8: -18001080 | G8: -18001080 | H8: -18001080 | R8: =SUM(F8:Q8) -> -54003240 | S8: =+C8+R8 -> 3186191249 | V8: SGD
B9: 2020.4取得 | C9: 3240194489 | V9: CR
T10: 為替による増減 | V10: AR
B14: 992800 Seabrook | C14: =[6]のれん202003!R14 -> 4720286453 | E14: 15年 | F14: =F15*F16 -> -29030468.05 | G14: =G15*G16 -> -29030502.58 | H14: -29030468.05 | I14: 0 | J14: 0 | K14: 0 | L14: 0 | M14: 0 | N14: 0 | O14: 0 | P14: 0 | Q14: 0 | R14: =SUM(F14:Q14) -> -87091438.68 | S14: =S15*W21 -> 4604726218 | T14: =S14-(C14+R14) -> -28468796.57 | V14: USD
B15: 外貨ﾍﾞｰｽ(GBP) | C15: =[6]のれん202003!R15 -> 35405688.97 | F15: -218553.55 | G15: -218553.81 | H15: -218553.55 | R15: =SUM(F15:Q15) -> -655660.91 | S15: =SUM(C15:Q15) -> 34750028.06 | V15: CR | W15: 107.74
B16: 2018.10取得 | C16: =C14/C15 -> 133.32 | E16: Rate | F16: =$W$22 -> 132.83 | G16: 132.83 | H16: 132.83 | I16: 132.83 | J16: 132.83 | K16: 132.83 | L16: 132.83 | M16: 132.83 | N16: 132.83 | O16: 132.83 | P16: 132.83 | Q16: 132.83 | T16: 為替による増減 | V16: AR | W16: 107.74
B17: 992900 Warnock | C17: =[6]のれん202003!R17 -> 6233390080 | E17: 15年 | F17: =F18*F19 -> -35262608.15 | G17: =G18*G19 -> -35453457.71 | H17: =H18*H19 -> -35289866.37 | I17: 0 | J17: 0 | K17: 0 | L17: 0 | M17: 0 | N17: 0 | O17: 0 | P17: 0 | Q17: 0 | R17: =SUM(F17:Q17) -> -106005932.2 | S17: =S18*W15 -> 6069859357 | T17: =S17-(C17+R17) -> -57524791.07
B18: 外貨ﾍﾞｰｽ(USD) | C18: =[6]のれん202003!R18 -> 57276395.11 | D18: 45540 | F18: -327293.56 | G18: =-327293.95-1771 -> -329064.95 | H18: -327546.56 | R18: =SUM(F18:Q18) -> -983905.07 | S18: =SUM(C18:Q18) -> 56338030.04
B19: 2019.11取得 | C19: 108.88 | E19: Rate | F19: =$W$16 -> 107.74 | G19: 107.74 | H19: 107.74 | I19: 107.74 | J19: 107.74 | K19: 107.74 | L19: 107.74 | M19: 107.74 | N19: 107.74 | O19: 107.74 | P19: 107.74 | Q19: 107.74
B20: 合計 | C20: =C6+C14+C11 -> 1.601465843e+10 | F20: =F6+F8+F11+F14+F17 -> -143518469.2 | G20: -143709427.3 | H20: -148112246.4 | I20: 0 | J20: 0 | K20: 0 | L20: 0 | M20: 0 | N20: 0 | O20: 0 | P20: 0 | Q20: 0 | R20: -435340142.9 | S20: 2.496690927e+10 | V20: GBP
Q21: T/B | R21: -435340143 | S21: 24966909267 | V21: CR | W21: 132.51
R22: =R20-R21 -> 0.0829000473 | S22: =S20-S21 -> -0.2597999573 | V22: AR | W22: 132.83
B23: 連結ベース | C23: 発生額
B24: =B6 -> 9120 ポテトかいつか | C24: =C6+C8 -> 14534566464 | F24: =F6+F8 -> -79225393 | G24: -79225467 | H24: -83791912 | I24: 0 | J24: 0 | K24: 0 | L24: 0 | M24: 0 | N24: 0 | O24: 0 | P24: 0 | Q24: 0 | R24: -242242772 | S24: 14292323692

Sheet のれん202106 (hidden)
A1: 版コード | B1: 期間コード | C1: 通貨コード | D1: 補助通貨区分 | E1: 仕訳グループコード | F1: 仕訳タイプコード | G1: 仕訳タイプ略称 | H1: 仕訳No | I1: 自動仕訳区分 | J1: 自動仕訳区分略称 | K1: 自動仕訳タスク略称 | L1: 摘要 | M1: 会社１コード | N1: 会社１略称 | O1: 会社２コード | P1: 会社２略称 | Q1: 読込会社１コード | R1: 読込会社１略称 | S1: 読込会社２コード | T1: 読込会社２略称 | U1: 繰越対象区分 | V1: 繰越対象区分略称 | W1: 繰越元版コード | X1: 繰越元期間コード | Y1: 税効果対象区分 | Z1: 税効果対象区分略称 | AA1: 強制セグメント認識区分 | AB1: 強制セグメント認識区分略称 | AC1: 会社コード | AD1: 勘定コード | AE1: 勘定略称 | AF1: 仕訳金額 | AG1: 表示DC区分 | AH1: 合計判定区分 | AI1: 計上会社区分 | AJ1: 固定資産番号 | AK1: 自動仕訳タスクコード | AL1: 繰越元版略称 | AM1: 繰越元期間略称 | AN1: 参照元仕訳タイプ略称 | AO1: 繰越集約先仕訳タイプ略称 | AP1: 更新日時 | AQ1: 更新IP/更新ユーザID | AR1: 固定資産税効果フラグ | AS1: 承認状況 | AT1: 承認者 | AU1: 承認日時
A2: 10 | B2: 202103T | C2: JPY00 | D2: 0 | E2: 20 | F2: D70 | G2: 投資資本(のれん) | H2: 24 | I2: 1 | J2: 自動仕訳 | K2: 資本連結期首仕訳 | L2: 【直接仕訳-連結】のれん償却(直接) | M2: 912000 | N2: Kaitsuka | O2: 900000 | P2: ｶﾙﾋﾞｰ | Q2: 912000 | R2: Kaitsuka | S2: 912000 | T2: Kaitsuka | U2: 4 | V2: 資本連結仕訳 | W2: 10 | X2: 202102T | Y2: 0 | Z2: 対象外 | AA2: 9 | AB2: 強制認識しない | AC2: 900000 | AD2: 527700 | AE2: のれん償却額 | AF2: 62746486 | AG2: D | AH2: 0 | AI2: 2 | AK2: $NJE | AL2: 制度実績 | AM2: 2021年5月(累) | AP2: 2021-07-05T22:06:27 | AQ2: 10.32.1.157/CLB0027 | AR2: 0 | AS2: 承認依頼前
A3: 10 | B3: 202103T | C3: JPY00 | D3: 0 | E3: 20 | F3: D70 | G3: 投資資本(のれん) | H3: 24 | I3: 1 | J3: 自動仕訳 | K3: 資本連結期首仕訳 | L3: 【直接仕訳-連結】のれん償却(直接) | M3: 912000 | N3: Kaitsuka | O3: 900000 | P3: ｶﾙﾋﾞｰ | Q3: 912000 | R3: Kaitsuka | S3: 912000 | T3: Kaitsuka | U3: 4 | V3: 資本連結仕訳 | W3: 10 | X3: 202102T | Y3: 0 | Z3: 対象外 | AA3: 9 | AB3: 強制認識しない | AC3: 900000 | AD3: 123300 | AE3: のれん | AF3: 62746486 | AG3: C | AH3: 0 | AI3: 2 | AK3: $NJE | AL3: 制度実績 | AM3: 2021年5月(累) | AP3: 2021-07-05T22:06:27 | AQ3: 10.32.1.157/CLB0027 | AR3: 0 | AS3: 承認依頼前
A4: 10 | B4: 202103T | C4: JPY00 | D4: 0 | E4: 20 | F4: D70 | G4: 投資資本(のれん) | H4: 25 | I4: 1 | J4: 自動仕訳 | K4: 資本連結期首仕訳 | L4: 【直接仕訳-連結】のれん償却(直接) | M4: 913000 | N4: K-Farm | O4: 912000 | P4: Kaitsuka | Q4: 913000 | R4: K-Farm | S4: 913000 | T4: K-Farm | U4: 4 | V4: 資本連結仕訳 | W4: 10 | X4: 202102T | Y4: 0 | Z4: 対象外 | AA4: 9 | AB4: 強制認識しない | AC4: 912000 | AD4: 527700 | AE4: のれん償却額 | AF4: 142966 | AG4: D | AH4: 0 | AI4: 2 | AK4: $NJE | AL4: 制度実績 | AM4: 2021年5月(累) | AP4: 2021-07-05T22:06:27 | AQ4: 10.32.1.157/CLB0027 | AR4: 0 | AS4: 承認依頼前
A5: 10 | B5: 202103T | C5: JPY00 | D5: 0 | E5: 20 | F5: D70 | G5: 投資資本(のれん) | H5: 25 | I5: 1 | J5: 自動仕訳 | K5: 資本連結期首仕訳 | L5: 【直接仕訳-連結】のれん償却(直接) | M5: 913000 | N5: K-Farm | O5: 912000 | P5: Kaitsuka | Q5: 913000 | R5: K-Farm | S5: 913000 | T5: K-Farm | U5: 4 | V5: 資本連結仕訳 | W5: 10 | X5: 202102T | Y5: 0 | Z5: 対象外 | AA5: 9 | AB5: 強制認識しない | AC5: 912000 | AD5: 123300 | AE5: のれん | AF5: 142966 | AG5: C | AH5: 0 | AI5: 2 | AK5: $NJE | AL5: 制度実績 | AM5: 2021年5月(累) | AP5: 2021-07-05T22:06:27 | AQ5: 10.32.1.157/CLB0027 | AR5: 0 | AS5: 承認依頼前
A6: 10 | B6: 202103T | C6: JPY00 | D6: 0 | E6: 20 | F6: D70 | G6: 投資資本(のれん) | H6: 26 | I6: 1 | J6: 自動仕訳 | K6: 資本連結期首仕訳 | L6: 【直接仕訳-連結】のれん償却(直接) | M6: 991700 | N6: CGUK | O6: 900000 | P6: ｶﾙﾋﾞｰ | Q6: 991700 | R6: CGUK | S6: 991700 | T6: CGUK | U6: 4 | V6: 資本連結仕訳 | W6: 10 | X6: 202102T | Y6: 0 | Z6: 対象外 | AA6: 9 | AB6: 強制認識しない | AC6: 900000 | AD6: 527700 | AE6: のれん償却額 | AF6: 33239809 | AG6: D | AH6: 0 | AI6: 2 | AK6: $NJE | AL6: 制度実績 | AM6: 2021年5月(累) | AP6: 2021-07-05T22:06:27 | AQ6: 10.32.1.157/CLB0027 | AR6: 0 | AS6: 承認依頼前
A7: 10 | B7: 202103T | C7: JPY00 | D7: 0 | E7: 20 | F7: D70 | G7: 投資資本(のれん) | H7: 26 | I7: 1 | J7: 自動仕訳 | K7: 資本連結期首仕訳 | L7: 【直接仕訳-連結】のれん償却(直接) | M7: 991700 | N7: CGUK | O7: 900000 | P7: ｶﾙﾋﾞｰ | Q7: 991700 | R7: CGUK | S7: 991700 | T7: CGUK | U7: 4 | V7: 資本連結仕訳 | W7: 10 | X7: 202102T | Y7: 0 | Z7: 対象外 | AA7: 9 | AB7: 強制認識しない | AC7: 900000 | AD7: 123300 | AE7: のれん | AF7: 33239809 | AG7: C | AH7: 0 | AI7: 2 | AK7: $NJE | AL7: 制度実績 | AM7: 2021年5月(累) | AP7: 2021-07-05T22:06:27 | AQ7: 10.32.1.157/CLB0027 | AR7: 0 | AS7: 承認依頼前
A8: 10 | B8: 202103T | C8: JPY00 | D8: 0 | E8: 20 | F8: D70 | G8: 投資資本(のれん) | H8: 27 | I8: 1 | J8: 自動仕訳 | K8: 資本連結期首仕訳 | L8: 【直接仕訳-連結】のれん換算(直接) | M8: 991700 | N8: CGUK | O8: 900000 | P8: ｶﾙﾋﾞｰ | Q8: 991700 | R8: CGUK | S8: 991700 | T8: CGUK | U8: 4 | V8: 資本連結仕訳 | W8: 10 | X8: 202102T | Y8: 0 | Z8: 対象外 | AA8: 9 | AB8: 強制認識しない | AC8: 900000 | AD8: 123300 | AE8: のれん | AF8: 9148656 | AG8: C | AH8: 0 | AI8: 2 | AK8: $NJE | AL8: 制度実績 | AM8: 2021年5月(累) | AP8: 2021-07-05T22:06:27 | AQ8: 10.32.1.157/CLB0027 | AR8: 0 | AS8: 承認依頼前
A9: 10 | B9: 202103T | C9: JPY00 | D9: 0 | E9: 20 | F9: D70 | G9: 投資資本(のれん) | H9: 27 | I9: 1 | J9: 自動仕訳 | K9: 資本連結期首仕訳 | L9: 【直接仕訳-連結】のれん換算(直接) | M9: 991700 | N9: CGUK | O9: 900000 | P9: ｶﾙﾋﾞｰ | Q9: 991700 | R9: CGUK | S9: 991700 | T9: CGUK | U9: 4 | V9: 資本連結仕訳 | W9: 10 | X9: 202102T | Y9: 0 | Z9: 対象外 | AA9: 9 | AB9: 強制認識しない | AC9: 900000 | AD9: 323000 | AE9: 為替換算調整勘定 | AF9: 9148656 | AG9: D | AH9: 0 | AI9: 2 | AK9: $NJE | AL9: 制度実績 | AM9: 2021年5月(累) | AP9: 2021-07-05T22:06:27 | AQ9: 10.32.1.157/CLB0027 | AR9: 0 | AS9: 承認依頼前
A10: 10 | B10: 202103T | C10: JPY00 | D10: 0 | E10: 20 | F10: D70 | G10: 投資資本(のれん) | H10: 28 | I10: 1 | J10: 自動仕訳 | K10: 資本連結期首仕訳 | L10: 【直接仕訳-連結】のれん償却(直接) | M10: 992900 | N10: WFP | O10: 990200 | P10: CAI | Q10: 992900 | R10: WFP | S10: 992900 | T10: WFP | U10: 4 | V10: 資本連結仕訳 | W10: 10 | X10: 202102T | Y10: 0 | Z10: 対象外 | AA10: 9 | AB10: 強制認識しない | AC10: 990200 | AD10: 527700 | AE10: のれん償却額 | AF10: 35971163 | AG10: D | AH10: 0 | AI10: 2 | AK10: $NJE | AL10: 制度実績 | AM10: 2021年5月(累) | AP10: 2021-07-05T22:06:27 | AQ10: 10.32.1.157/CLB0027 | AR10: 0 | AS10: 承認依頼前
A11: 10 | B11: 202103T | C11: JPY00 | D11: 0 | E11: 20 | F11: D70 | G11: 投資資本(のれん) | H11: 28 | I11: 1 | J11: 自動仕訳 | K11: 資本連結期首仕訳 | L11: 【直接仕訳-連結】のれん償却(直接) | M11: 992900 | N11: WFP | O11: 990200 | P11: CAI | Q11: 992900 | R11: WFP | S11: 992900 | T11: WFP | U11: 4 | V11: 資本連結仕訳 | W11: 10 | X11: 202102T | Y11: 0 | Z11: 対象外 | AA11: 9 | AB11: 強制認識しない | AC11: 990200 | AD11: 123300 | AE11: のれん | AF11: 35971163 | AG11: C | AH11: 0 | AI11: 2 | AK11: $NJE | AL11: 制度実績 | AM11: 2021年5月(累) | AP11: 2021-07-05T22:06:27 | AQ11: 10.32.1.157/CLB0027 | AR11: 0 | AS11: 承認依頼前
A12: 10 | B12: 202103T | C12: JPY00 | D12: 0 | E12: 20 | F12: D70 | G12: 投資資本(のれん) | H12: 29 | I12: 1 | J12: 自動仕訳 | K12: 資本連結期首仕訳 | L12: 【直接仕訳-連結】のれん換算(直接) | M12: 992900 | N12: WFP | O12: 990200 | P12: CAI | Q12: 992900 | R12: WFP | S12: 992900 | T12: WFP | U12: 4 | V12: 資本連結仕訳 | W12: 10 | X12: 202102T | Y12: 0 | Z12: 対象外 | AA12: 9 | AB12: 強制認識しない | AC12: 990200 | AD12: 123300 | AE12: のれん | AF12: 94742880 | AG12: C | AH12: 0 | AI12: 2 | AK12: $NJE | AL12: 制度実績 | AM12: 2021年5月(累) | AP12: 2021-07-05T22:06:27 | AQ12: 10.32.1.157/CLB0027 | AR12: 0 | AS12: 承認依頼前
A13: 10 | B13: 202103T | C13: JPY00 | D13: 0 | E13: 20 | F13: D70 | G13: 投資資本(のれん) | H13: 29 | I13: 1 | J13: 自動仕訳 | K13: 資本連結期首仕訳 | L13: 【直接仕訳-連結】のれん換算(直接) | M13: 992900 | N13: WFP | O13: 990200 | P13: CAI | Q13: 992900 | R13: WFP | S13: 992900 | T13: WFP | U13: 4 | V13: 資本連結仕訳 | W13: 10 | X13: 202102T | Y13: 0 | Z13: 対象外 | AA13: 9 | AB13: 強制認識しない | AC13: 990200 | AD13: 323000 | AE13: 為替換算調整勘定 | AF13: 94742880 | AG13: D | AH13: 0 | AI13: 2 | AK13: $NJE | AL13: 制度実績 | AM13: 2021年5月(累) | AP13: 2021-07-05T22:06:27 | AQ13: 10.32.1.157/CLB0027 | AR13: 0 | AS13: 承認依頼前
A14: 10 | B14: 202103T | C14: JPY00 | D14: 0 | E14: 20 | F14: D70 | G14: 投資資本(のれん) | H14: 30 | I14: 1 | J14: 自動仕訳 | K14: 資本連結期首仕訳 | L14: 【直接仕訳-連結】のれん償却(直接) | M14: 912000 | N14: Kaitsuka | O14: 900000 | P14: ｶﾙﾋﾞｰ | Q14: 912000 | R14: Kaitsuka | S14: 912000 | T14: Kaitsuka | U14: 4 | V14: 資本連結仕訳 | W14: 10 | X14: 202102T | Y14: 0 | Z14: 対象外 | AA14: 9 | AB14: 強制認識しない | AC14: 900000 | AD14: 527700 | AE14: のれん償却額 | AF14: 62746561 | AG14: D | AH14: 0 | AI14: 2 | AK14: $NJE | AL14: 制度実績 | AM14: 2021年5月(累) | AP14: 2021-07-05T22:06:27 | AQ14: 10.32.1.157/CLB0027 | AR14: 0 | AS14: 承認依頼前
A15: 10 | B15: 202103T | C15: JPY00 | D15: 0 | E15: 20 | F15: D70 | G15: 投資資本(のれん) | H15: 30 | I15: 1 | J15: 自動仕訳 | K15: 資本連結期首仕訳 | L15: 【直接仕訳-連結】のれん償却(直接) | M15: 912000 | N15: Kaitsuka | O15: 900000 | P15: ｶﾙﾋﾞｰ | Q15: 912000 | R15: Kaitsuka | S15: 912000 | T15: Kaitsuka | U15: 4 | V15: 資本連結仕訳 | W15: 10 | X15: 202102T | Y15: 0 | Z15: 対象外 | AA15: 9 | AB15: 強制認識しない | AC15: 900000 | AD15: 123300 | AE15: のれん | AF15: 62746561 | AG15: C | AH15: 0 | AI15: 2 | AK15: $NJE | AL15: 制度実績 | AM15: 2021年5月(累) | AP15: 2021-07-05T22:06:27 | AQ15: 10.32.1.157/CLB0027 | AR15: 0 | AS15: 承認依頼前
A16: 10 | B16: 202103T | C16: JPY00 | D16: 0 | E16: 20 | F16: D70 | G16: 投資資本(のれん) | H16: 31 | I16: 1 | J16: 自動仕訳 | K16: 資本連結期首仕訳 | L16: 【直接仕訳-連結】のれん償却(直接) | M16: 913000 | N16: K-Farm | O16: 912000 | P16: Kaitsuka | Q16: 913000 | R16: K-Farm | S16: 913000 | T16: K-Farm | U16: 4 | V16: 資本連結仕訳 | W16: 10 | X16: 202102T | Y16: 0 | Z16: 対象外 | AA16: 9 | AB16: 強制認識しない | AC16: 912000 | AD16: 527700 | AE16: のれん償却額 | AF16: 142966 | AG16: D | AH16: 0 | AI16: 2 | AK16: $NJE | AL16: 制度実績 | AM16: 2021年5月(累) | AP16: 2021-07-05T22:06:27 | AQ16: 10.32.1.157/CLB0027 | AR16: 0 | AS16: 承認依頼前
A17: 10 | B17: 202103T | C17: JPY00 | D17: 0 | E17: 20 | F17: D70 | G17: 投資資本(のれん) | H17: 31 | I17: 1 | J17: 自動仕訳 | K17: 資本連結期首仕訳 | L17: 【直接仕訳-連結】のれん償却(直接) | M17: 913000 | N17: K-Farm | O17: 912000 | P17: Kaitsuka | Q17: 913000 | R17: K-Farm | S17: 913000 | T17: K-Farm | U17: 4 | V17: 資本連結仕訳 | W17: 10 | X17: 202102T | Y17: 0 | Z17: 対象外 | AA17: 9 | AB17: 強制認識しない | AC17: 912000 | AD17: 123300 | AE17: のれん | AF17: 142966 | AG17: C | AH17: 0 | AI17: 2 | AK17: $NJE | AL17: 制度実績 | AM17: 2021年5月(累) | AP17: 2021-07-05T22:06:27 | AQ17: 10.32.1.157/CLB0027 | AR17: 0 | AS17: 承認依頼前
A18: 10 | B18: 202103T | C18: JPY00 | D18: 0 | E18: 20 | F18: D70 | G18: 投資資本(のれん) | H18: 32 | I18: 1 | J18: 自動仕訳 | K18: 資本連結期首仕訳 | L18: 【直接仕訳-連結】のれん償却(直接) | M18: 991700 | N18: CGUK | O18: 900000 | P18: ｶﾙﾋﾞｰ | Q18: 991700 | R18: CGUK | S18: 991700 | T18: CGUK | U18: 4 | V18: 資本連結仕訳 | W18: 10 | X18: 202102T | Y18: 0 | Z18: 対象外 | AA18: 9 | AB18: 強制認識しない | AC18: 900000 | AD18: 527700 | AE18: のれん償却額 | AF18: 33495557 | AG18: D | AH18: 0 | AI18: 2 | AK18: $NJE | AL18: 制度実績 | AM18: 2021年5月(累) | AP18: 2021-07-05T22:06:27 | AQ18: 10.32.1.157/CLB0027 | AR18: 0 | AS18: 承認依頼前
A19: 10 | B19: 202103T | C19: JPY00 | D19: 0 | E19: 20 | F19: D70 | G19: 投資資本(のれん) | H19: 32 | I19: 1 | J19: 自動仕訳 | K19: 資本連結期首仕訳 | L19: 【直接仕訳-連結】のれん償却(直接) | M19: 991700 | N19: CGUK | O19: 900000 | P19: ｶﾙﾋﾞｰ | Q19: 991700 | R19: CGUK | S19: 991700 | T19: CGUK | U19: 4 | V19: 資本連結仕訳 | W19: 10 | X19: 202102T | Y19: 0 | Z19: 対象外 | AA19: 9 | AB19: 強制認識しない | AC19: 900000 | AD19: 123300 | AE19: のれん | AF19: 33495557 | AG19: C | AH19: 0 | AI19: 2 | AK19: $NJE | AL19: 制度実績 | AM19: 2021年5月(累) | AP19: 2021-07-05T22:06:27 | AQ19: 10.32.1.157/CLB0027 | AR19: 0 | AS19: 承認依頼前
A20: 10 | B20: 202103T | C20: JPY00 | D20: 0 | E20: 20 | F20: D70 | G20: 投資資本(のれん) | H20: 33 | I20: 1 | J20: 自動仕訳 | K20: 資本連結期首仕訳 | L20: 【直接仕訳-連結】のれんPL換算(直接) | M20: 991700 | N20: CGUK | O20: 900000 | P20: ｶﾙﾋﾞｰ | Q20: 991700 | R20: CGUK | S20: 991700 | T20: CGUK | U20: 4 | V20: 資本連結仕訳 | W20: 10 | X20: 202102T | Y20: 0 | Z20: 対象外 | AA20: 9 | AB20: 強制認識しない | AC20: 900000 | AD20: 527700 | AE20: のれん償却額 | AF20: 255708 | AG20: D | AH20: 0 | AI20: 2 | AK20: $NJE | AL20: 制度実績 | AM20: 2021年5月(累) | AP20: 2021-07-05T22:06:27 | AQ20: 10.32.1.157/CLB0027 | AR20: 0 | AS20: 承認依頼前
A21: 10 | B21: 202103T | C21: JPY00 | D21: 0 | E21: 20 | F21: D70 | G21: 投資資本(のれん) | H21: 33 | I21: 1 | J21: 自動仕訳 | K21: 資本連結期首仕訳 | L21: 【直接仕訳-連結】のれんPL換算(直接) | M21: 991700 | N21: CGUK | O21: 900000 | P21: ｶﾙﾋﾞｰ | Q21: 991700 | R21: CGUK | S21: 991700 | T21: CGUK | U21: 4 | V21: 資本連結仕訳 | W21: 10 | X21: 202102T | Y21: 0 | Z21: 対象外 | AA21: 9 | AB21: 強制認識しない | AC21: 900000 | AD21: 123300 | AE21: のれん | AF21: 255708 | AG21: C | AH21: 0 | AI21: 2 | AK21: $NJE | AL21: 制度実績 | AM21: 2021年5月(累) | AP21: 2021-07-05T22:06:27 | AQ21: 10.32.1.157/CLB0027 | AR21: 0 | AS21: 承認依頼前
A22: 10 | B22: 202103T | C22: JPY00 | D22: 0 | E22: 20 | F22: D70 | G22: 投資資本(のれん) | H22: 34 | I22: 1 | J22: 自動仕訳 | K22: 資本連結期首仕訳 | L22: 【直接仕訳-連結】のれん換算(直接) | M22: 991700 | N22: CGUK | O22: 900000 | P22: ｶﾙﾋﾞｰ | Q22: 991700 | R22: CGUK | S22: 991700 | T22: CGUK | U22: 4 | V22: 資本連結仕訳 | W22: 10 | X22: 202102T | Y22: 0 | Z22: 対象外 | AA22: 9 | AB22: 強制認識しない | AC22: 900000 | AD22: 123300 | AE22: のれん | AF22: 118604688 | AG22: D | AH22: 0 | AI22: 2 | AK22: $NJE | AL22: 制度実績 | AM22: 2021年5月(累) | AP22: 2021-07-05T22:06:27 | AQ22: 10.32.1.157/CLB0027 | AR22: 0 | AS22: 承認依頼前
A23: 10 | B23: 202103T | C23: JPY00 | D23: 0 | E23: 20 | F23: D70 | G23: 投資資本(のれん) | H23: 34 | I23: 1 | J23: 自動仕訳 | K23: 資本連結期首仕訳 | L23: 【直接仕訳-連結】のれん換算(直接) | M23: 991700 | N23: CGUK | O23: 900000 | P23: ｶﾙﾋﾞｰ | Q23: 991700 | R23: CGUK | S23: 991700 | T23: CGUK | U23: 4 | V23: 資本連結仕訳 | W23: 10 | X23: 202102T | Y23: 0 | Z23: 対象外 | AA23: 9 | AB23: 強制認識しない | AC23: 900000 | AD23: 323000 | AE23: 為替換算調整勘定 | AF23: 118604688 | AG23: C | AH23: 0 | AI23: 2 | AK23: $NJE | AL23: 制度実績 | AM23: 2021年5月(累) | AP23: 2021-07-05T22:06:27 | AQ23: 10.32.1.157/CLB0027 | AR23: 0 | AS23: 承認依頼前
A24: 10 | B24: 202103T | C24: JPY00 | D24: 0 | E24: 20 | F24: D70 | G24: 投資資本(のれん) | H24: 35 | I24: 1 | J24: 自動仕訳 | K24: 資本連結期首仕訳 | L24: 【直接仕訳-連結】のれん償却(直接) | M24: 992900 | N24: WFP | O24: 990200 | P24: CAI | Q24: 992900 | R24: WFP | S24: 992900 | T24: WFP | U24: 4 | V24: 資本連結仕訳 | W24: 10 | X24: 202102T | Y24: 0 | Z24: 対象外 | AA24: 9 | AB24: 強制認識しない | AC24: 990200 | AD24: 527700 | AE24: のれん償却額 | AF24: 35964655 | AG24: D | AH24: 0 | AI24: 2 | AK24: $NJE | AL24: 制度実績 | AM24: 2021年5月(累) | AP24: 2021-07-05T22:06:27 | AQ24: 10.32.1.157/CLB0027 | AR24: 0 | AS24: 承認依頼前
A25: 10 | B25: 202103T | C25: JPY00 | D25: 0 | E25: 20 | F25: D70 | G25: 投資資本(のれん) | H25: 35 | I25: 1 | J25: 自動仕訳 | K25: 資本連結期首仕訳 | L25: 【直接仕訳-連結】のれん償却(直接) | M25: 992900 | N25: WFP | O25: 990200 | P25: CAI | Q25: 992900 | R25: WFP | S25: 992900 | T25: WFP | U25: 4 | V25: 資本連結仕訳 | W25: 10 | X25: 202102T | Y25: 0 | Z25: 対象外 | AA25: 9 | AB25: 強制認識しない | AC25: 990200 | AD25: 123300 | AE25: のれん | AF25: 35964655 | AG25: C | AH25: 0 | AI25: 2 | AK25: $NJE | AL25: 制度実績 | AM25: 2021年5月(累) | AP25: 2021-07-05T22:06:27 | AQ25: 10.32.1.157/CLB0027 | AR25: 0 | AS25: 承認依頼前
A26: 10 | B26: 202103T | C26: JPY00 | D26: 0 | E26: 20 | F26: D70 | G26: 投資資本(のれん) | H26: 36 | I26: 1 | J26: 自動仕訳 | K26: 資本連結期首仕訳 | L26: 【直接仕訳-連結】のれんPL換算(直接) | M26: 992900 | N26: WFP | O26: 990200 | P26: CAI | Q26: 992900 | R26: WFP | S26: 992900 | T26: WFP | U26: 4 | V26: 資本連結仕訳 | W26: 10 | X26: 202102T | Y26: 0 | Z26: 対象外 | AA26: 9 | AB26: 強制認識しない | AC26: 990200 | AD26: 527700 | AE26: のれん償却額 | AF26: 6551 | AG26: C | AH26: 0 | AI26: 2 | AK26: $NJE | AL26: 制度実績 | AM26: 2021年5月(累) | AP26: 2021-07-05T22:06:27 | AQ26: 10.32.1.157/CLB0027 | AR26: 0 | AS26: 承認依頼前
A27: 10 | B27: 202103T | C27: JPY00 | D27: 0 | E27: 20 | F27: D70 | G27: 投資資本(のれん) | H27: 36 | I27: 1 | J27: 自動仕訳 | K27: 資本連結期首仕訳 | L27: 【直接仕訳-連結】のれんPL換算(直接) | M27: 992900 | N27: WFP | O27: 990200 | P27: CAI | Q27: 992900 | R27: WFP | S27: 992900 | T27: WFP | U27: 4 | V27: 資本連結仕訳 | W27: 10 | X27: 202102T | Y27: 0 | Z27: 対象外 | AA27: 9 | AB27: 強制認識しない | AC27: 990200 | AD27: 123300 | AE27: のれん | AF27: 6551 | AG27: D | AH27: 0 | AI27: 2 | AK27: $NJE | AL27: 制度実績 | AM27: 2021年5月(累) | AP27: 2021-07-05T22:06:27 | AQ27: 10.32.1.157/CLB0027 | AR27: 0 | AS27: 承認依頼前
A28: 10 | B28: 202103T | C28: JPY00 | D28: 0 | E28: 20 | F28: D70 | G28: 投資資本(のれん) | H28: 37 | I28: 1 | J28: 自動仕訳 | K28: 資本連結期首仕訳 | L28: 【直接仕訳-連結】のれん換算(直接) | M28: 992900 | N28: WFP | O28: 990200 | P28: CAI | Q28: 992900 | R28: WFP | S28: 992900 | T28: WFP | U28: 4 | V28: 資本連結仕訳 | W28: 10 | X28: 202102T | Y28: 0 | Z28: 対象外 | AA28: 9 | AB28: 強制認識しない | AC28: 990200 | AD28: 123300 | AE28: のれん | AF28: 44048479 | AG28: D | AH28: 0 | AI28: 2 | AK28: $NJE | AL28: 制度実績 | AM28: 2021年5月(累) | AP28: 2021-07-05T22:06:27 | AQ28: 10.32.1.157/CLB0027 | AR28: 0 | AS28: 承認依頼前
A29: 10 | B29: 202103T | C29: JPY00 | D29: 0 | E29: 20 | F29: D70 | G29: 投資資本(のれん) | H29: 37 | I29: 1 | J29: 自動仕訳 | K29: 資本連結期首仕訳 | L29: 【直接仕訳-連結】のれん換算(直接) | M29: 992900 | N29: WFP | O29: 990200 | P29: CAI | Q29: 992900 | R29: WFP | S29: 992900 | T29: WFP | U29: 4 | V29: 資本連結仕訳 | W29: 10 | X29: 202102T | Y29: 0 | Z29: 対象外 | AA29: 9 | AB29: 強制認識しない | AC29: 990200 | AD29: 323000 | AE29: 為替換算調整勘定 | AF29: 44048479 | AG29: C | AH29: 0 | AI29: 2 | AK29: $NJE | AL29: 制度実績 | AM29: 2021年5月(累) | AP29: 2021-07-05T22:06:27 | AQ29: 10.32.1.157/CLB0027 | AR29: 0 | AS29: 承認依頼前
A30: 10 | B30: 202103T | C30: JPY00 | D30: 0 | E30: 20 | F30: D70 | G30: 投資資本(のれん) | H30: 38 | I30: 1 | J30: 自動仕訳 | K30: 資本連結 | L30: 【直接仕訳-連結】のれん償却(直接) | M30: 912000 | N30: Kaitsuka | O30: 900000 | P30: ｶﾙﾋﾞｰ | Q30: 912000 | R30: Kaitsuka | S30: 912000 | T30: Kaitsuka | U30: 4 | V30: 資本連結仕訳 | Y30: 0 | Z30: 対象外 | AA30: 9 | AB30: 強制認識しない | AC30: 900000 | AD30: 527700 | AE30: のれん償却額 | AF30: 62476447 | AG30: D | AH30: 0 | AI30: 2 | AK30: $NEQ | AP30: 2021-07-12T12:39:52 | AQ30: 10.204.14.194/CLB0037 | AR30: 0 | AS30: 承認依頼前
A31: 10 | B31: 202103T | C31: JPY00 | D31: 0 | E31: 20 | F31: D70 | G31: 投資資本(のれん) | H31: 38 | I31: 1 | J31: 自動仕訳 | K31: 資本連結 | L31: 【直接仕訳-連結】のれん償却(直接) | M31: 912000 | N31: Kaitsuka | O31: 900000 | P31: ｶﾙﾋﾞｰ | Q31: 912000 | R31: Kaitsuka | S31: 912000 | T31: Kaitsuka | U31: 4 | V31: 資本連結仕訳 | Y31: 0 | Z31: 対象外 | AA31: 9 | AB31: 強制認識しない | AC31: 900000 | AD31: 123300 | AE31: のれん | AF31: 62476447 | AG31: C | AH31: 0 | AI31: 2 | AK31: $NEQ | AP31: 2021-07-12T12:39:52 | AQ31: 10.204.14.194/CLB0037 | AR31: 0 | AS31: 承認依頼前
A32: 10 | B32: 202103T | C32: JPY00 | D32: 0 | E32: 20 | F32: D70 | G32: 投資資本(のれん) | H32: 39 | I32: 1 | J32: 自動仕訳 | K32: 資本連結 | L32: 【直接仕訳-連結】のれん償却(直接) | M32: 913000 | N32: K-Farm | O32: 912000 | P32: Kaitsuka | Q32: 913000 | R32: K-Farm | S32: 913000 | T32: K-Farm | U32: 4 | V32: 資本連結仕訳 | Y32: 0 | Z32: 対象外 | AA32: 9 | AB32: 強制認識しない | AC32: 912000 | AD32: 527700 | AE32: のれん償却額 | AF32: 142966 | AG32: D | AH32: 0 | AI32: 2 | AK32: $NEQ | AP32: 2021-07-12T12:39:52 | AQ32: 10.204.14.194/CLB0037 | AR32: 0 | AS32: 承認依頼前
A33: 10 | B33: 202103T | C33: JPY00 | D33: 0 | E33: 20 | F33: D70 | G33: 投資資本(のれん) | H33: 39 | I33: 1 | J33: 自動仕訳 | K33: 資本連結 | L33: 【直接仕訳-連結】のれん償却(直接) | M33: 913000 | N33: K-Farm | O33: 912000 | P33: Kaitsuka | Q33: 913000 | R33: K-Farm | S33: 913000 | T33: K-Farm | U33: 4 | V33: 資本連結仕訳 | Y33: 0 | Z33: 対象外 | AA33: 9 | AB33: 強制認識しない | AC33: 912000 | AD33: 123300 | AE33: のれん | AF33: 142966 | AG33: C | AH33: 0 | AI33: 2 | AK33: $NEQ | AP33: 2021-07-12T12:39:52 | AQ33: 10.204.14.194/CLB0037 | AR33: 0 | AS33: 承認依頼前
A34: 10 | B34: 202103T | C34: JPY00 | D34: 0 | E34: 20 | F34: D70 | G34: 投資資本(のれん) | H34: 40 | I34: 1 | J34: 自動仕訳 | K34: 資本連結 | L34: 【直接仕訳-連結】のれん償却(直接) | M34: 991700 | N34: CGUK | O34: 900000 | P34: ｶﾙﾋﾞｰ | Q34: 991700 | R34: CGUK | S34: 991700 | T34: CGUK | U34: 4 | V34: 資本連結仕訳 | Y34: 0 | Z34: 対象外 | AA34: 9 | AB34: 強制認識しない | AC34: 900000 | AD34: 527700 | AE34: のれん償却額 | AF34: 33488960 | AG34: D | AH34: 0 | AI34: 2 | AK34: $NEQ | AP34: 2021-07-12T12:39:52 | AQ34: 10.204.14.194/CLB0037 | AR34: 0 | AS34: 承認依頼前
A35: 10 | B35: 202103T | C35: JPY00 | D35: 0 | E35: 20 | F35: D70 | G35: 投資資本(のれん) | H35: 40 | I35: 1 | J35: 自動仕訳 | K35: 資本連結 | L35: 【直接仕訳-連結】のれん償却(直接) | M35: 991700 | N35: CGUK | O35: 900000 | P35: ｶﾙﾋﾞｰ | Q35: 991700 | R35: CGUK | S35: 991700 | T35: CGUK | U35: 4 | V35: 資本連結仕訳 | Y35: 0 | Z35: 対象外 | AA35: 9 | AB35: 強制認識しない | AC35: 900000 | AD35: 123300 | AE35: のれん | AF35: 33488960 | AG35: C | AH35: 0 | AI35: 2 | AK35: $NEQ | AP35: 2021-07-12T12:39:52 | AQ35: 10.204.14.194/CLB0037 | AR35: 0 | AS35: 承認依頼前
A36: 10 | B36: 202103T | C36: JPY00 | D36: 0 | E36: 20 | F36: D70 | G36: 投資資本(のれん) | H36: 41 | I36: 1 | J36: 自動仕訳 | K36: 資本連結 | L36: 【直接仕訳-連結】のれんPL換算(直接) | M36: 991700 | N36: CGUK | O36: 900000 | P36: ｶﾙﾋﾞｰ | Q36: 991700 | R36: CGUK | S36: 991700 | T36: CGUK | U36: 4 | V36: 資本連結仕訳 | Y36: 0 | Z36: 対象外 | AA36: 9 | AB36: 強制認識しない | AC36: 900000 | AD36: 527700 | AE36: のれん償却額 | AF36: 13113 | AG36: C | AH36: 0 | AI36: 2 | AK36: $NEQ | AP36: 2021-07-12T12:39:52 | AQ36: 10.204.14.194/CLB0037 | AR36: 0 | AS36: 承認依頼前
A37: 10 | B37: 202103T | C37: JPY00 | D37: 0 | E37: 20 | F37: D70 | G37: 投資資本(のれん) | H37: 41 | I37: 1 | J37: 自動仕訳 | K37: 資本連結 | L37: 【直接仕訳-連結】のれんPL換算(直接) | M37: 991700 | N37: CGUK | O37: 900000 | P37: ｶﾙﾋﾞｰ | Q37: 991700 | R37: CGUK | S37: 991700 | T37: CGUK | U37: 4 | V37: 資本連結仕訳 | Y37: 0 | Z37: 対象外 | AA37: 9 | AB37: 強制認識しない | AC37: 900000 | AD37: 123300 | AE37: のれん | AF37: 13113 | AG37: D | AH37: 0 | AI37: 2 | AK37: $NEQ | AP37: 2021-07-12T12:39:52 | AQ37: 10.204.14.194/CLB0037 | AR37: 0 | AS37: 承認依頼前
A38: 10 | B38: 202103T | C38: JPY00 | D38: 0 | E38: 20 | F38: D70 | G38: 投資資本(のれん) | H38: 42 | I38: 1 | J38: 自動仕訳 | K38: 資本連結 | L38: 【直接仕訳-連結】のれん換算(直接) | M38: 991700 | N38: CGUK | O38: 900000 | P38: ｶﾙﾋﾞｰ | Q38: 991700 | R38: CGUK | S38: 991700 | T38: CGUK | U38: 4 | V38: 資本連結仕訳 | Y38: 0 | Z38: 対象外 | AA38: 9 | AB38: 強制認識しない | AC38: 900000 | AD38: 123300 | AE38: のれん | AF38: 95988757 | AG38: C | AH38: 0 | AI38: 2 | AK38: $NEQ | AP38: 2021-07-12T12:39:52 | AQ38: 10.204.14.194/CLB0037 | AR38: 0 | AS38: 承認依頼前
A39: 10 | B39: 202103T | C39: JPY00 | D39: 0 | E39: 20 | F39: D70 | G39: 投資資本(のれん) | H39: 42 | I39: 1 | J39: 自動仕訳 | K39: 資本連結 | L39: 【直接仕訳-連結】のれん換算(直接) | M39: 991700 | N39: CGUK | O39: 900000 | P39: ｶﾙﾋﾞｰ | Q39: 991700 | R39: CGUK | S39: 991700 | T39: CGUK | U39: 4 | V39: 資本連結仕訳 | Y39: 0 | Z39: 対象外 | AA39: 9 | AB39: 強制認識しない | AC39: 900000 | AD39: 123300 | AE39: のれん | AF39: 17066853 | AG39: D | AH39: 0 | AI39: 2 | AK39: $NEQ | AP39: 2021-07-12T12:39:52 | AQ39: 10.204.14.194/CLB0037 | AR39: 0 | AS39: 承認依頼前
A40: 10 | B40: 202103T | C40: JPY00 | D40: 0 | E40: 20 | F40: D70 | G40: 投資資本(のれん) | H40: 42 | I40: 1 | J40: 自動仕訳 | K40: 資本連結 | L40: 【直接仕訳-連結】のれん換算(直接) | M40: 991700 | N40: CGUK | O40: 900000 | P40: ｶﾙﾋﾞｰ | Q40: 991700 | R40: CGUK | S40: 991700 | T40: CGUK | U40: 4 | V40: 資本連結仕訳 | Y40: 0 | Z40: 対象外 | AA40: 9 | AB40: 強制認識しない | AC40: 900000 | AD40: 323000 | AE40: 為替換算調整勘定 | AF40: 78921904 | AG40: D | AH40: 0 | AI40: 2 | AK40: $NEQ | AP40: 2021-07-12T12:39:52 | AQ40: 10.204.14.194/CLB0037 | AR40: 0 | AS40: 承認依頼前
A41: 10 | B41: 202103T | C41: JPY00 | D41: 0 | E41: 20 | F41: D70 | G41: 投資資本(のれん) | H41: 43 | I41: 1 | J41: 自動仕訳 | K41: 資本連結 | L41: 【直接仕訳-連結】のれん換算(直接) | M41: 991900 | N41: CMS | O41: 900000 | P41: ｶﾙﾋﾞｰ | Q41: 991900 | R41: CMS | S41: 991900 | T41: CMS | U41: 4 | V41: 資本連結仕訳 | Y41: 0 | Z41: 対象外 | AA41: 9 | AB41: 強制認識しない | AC41: 900000 | AD41: 123300 | AE41: のれん | AF41: 1954164 | AG41: C | AH41: 0 | AI41: 2 | AK41: $NEQ | AP41: 2021-07-12T12:39:52 | AQ41: 10.204.14.194/CLB0037 | AR41: 0 | AS41: 承認依頼前
A42: 10 | B42: 202103T | C42: JPY00 | D42: 0 | E42: 20 | F42: D70 | G42: 投資資本(のれん) | H42: 43 | I42: 1 | J42: 自動仕訳 | K42: 資本連結 | L42: 【直接仕訳-連結】のれん換算(直接) | M42: 991900 | N42: CMS | O42: 900000 | P42: ｶﾙﾋﾞｰ | Q42: 991900 | R42: CMS | S42: 991900 | T42: CMS | U42: 4 | V42: 資本連結仕訳 | Y42: 0 | Z42: 対象外 | AA42: 9 | AB42: 強制認識しない | AC42: 900000 | AD42: 123300 | AE42: のれん | AF42: 1954164 | AG42: D | AH42: 0 | AI42: 2 | AK42: $NEQ | AP42: 2021-07-12T12:39:52 | AQ42: 10.204.14.194/CLB0037 | AR42: 0 | AS42: 承認依頼前
A43: 10 | B43: 202103T | C43: JPY00 | D43: 0 | E43: 20 | F43: D70 | G43: 投資資本(のれん) | H43: 44 | I43: 1 | J43: 自動仕訳 | K43: 資本連結 | L43: 【直接仕訳-連結】のれん償却(直接) | M43: 992900 | N43: WFP | O43: 990200 | P43: CAI | Q43: 992900 | R43: WFP | S43: 992900 | T43: WFP | U43: 4 | V43: 資本連結仕訳 | Y43: 0 | Z43: 対象外 | AA43: 9 | AB43: 強制認識しない | AC43: 990200 | AD43: 527700 | AE43: のれん償却額 | AF43: 36026846 | AG43: D | AH43: 0 | AI43: 2 | AK43: $NEQ | AP43: 2021-07-12T12:39:52 | AQ43: 10.204.14.194/CLB0037 | AR43: 0 | AS43: 承認依頼前
A44: 10 | B44: 202103T | C44: JPY00 | D44: 0 | E44: 20 | F44: D70 | G44: 投資資本(のれん) | H44: 44 | I44: 1 | J44: 自動仕訳 | K44: 資本連結 | L44: 【直接仕訳-連結】のれん償却(直接) | M44: 992900 | N44: WFP | O44: 990200 | P44: CAI | Q44: 992900 | R44: WFP | S44: 992900 | T44: WFP | U44: 4 | V44: 資本連結仕訳 | Y44: 0 | Z44: 対象外 | AA44: 9 | AB44: 強制認識しない | AC44: 990200 | AD44: 123300 | AE44: のれん | AF44: 36026846 | AG44: C | AH44: 0 | AI44: 2 | AK44: $NEQ | AP44: 2021-07-12T12:39:52 | AQ44: 10.204.14.194/CLB0037 | AR44: 0 | AS44: 承認依頼前
A45: 10 | B45: 202103T | C45: JPY00 | D45: 0 | E45: 20 | F45: D70 | G45: 投資資本(のれん) | H45: 45 | I45: 1 | J45: 自動仕訳 | K45: 資本連結 | L45: 【直接仕訳-連結】のれんPL換算(直接) | M45: 992900 | N45: WFP | O45: 990200 | P45: CAI | Q45: 992900 | R45: WFP | S45: 992900 | T45: WFP | U45: 4 | V45: 資本連結仕訳 | Y45: 0 | Z45: 対象外 | AA45: 9 | AB45: 強制認識しない | AC45: 990200 | AD45: 527700 | AE45: のれん償却額 | AF45: 124468 | AG45: D | AH45: 0 | AI45: 2 | AK45: $NEQ | AP45: 2021-07-12T12:39:52 | AQ45: 10.204.14.194/CLB0037 | AR45: 0 | AS45: 承認依頼前
A46: 10 | B46: 202103T | C46: JPY00 | D46: 0 | E46: 20 | F46: D70 | G46: 投資資本(のれん) | H46: 45 | I46: 1 | J46: 自動仕訳 | K46: 資本連結 | L46: 【直接仕訳-連結】のれんPL換算(直接) | M46: 992900 | N46: WFP | O46: 990200 | P46: CAI | Q46: 992900 | R46: WFP | S46: 992900 | T46: WFP | U46: 4 | V46: 資本連結仕訳 | Y46: 0 | Z46: 対象外 | AA46: 9 | AB46: 強制認識しない | AC46: 990200 | AD46: 123300 | AE46: のれん | AF46: 124468 | AG46: C | AH46: 0 | AI46: 2 | AK46: $NEQ | AP46: 2021-07-12T12:39:52 | AQ46: 10.204.14.194/CLB0037 | AR46: 0 | AS46: 承認依頼前
A47: 10 | B47: 202103T | C47: JPY00 | D47: 0 | E47: 20 | F47: D70 | G47: 投資資本(のれん) | H47: 46 | I47: 1 | J47: 自動仕訳 | K47: 資本連結 | L47: 【直接仕訳-連結】のれん換算(直接) | M47: 992900 | N47: WFP | O47: 990200 | P47: CAI | Q47: 992900 | R47: WFP | S47: 992900 | T47: WFP | U47: 4 | V47: 資本連結仕訳 | Y47: 0 | Z47: 対象外 | AA47: 9 | AB47: 強制認識しない | AC47: 990200 | AD47: 123300 | AE47: のれん | AF47: 48345890 | AG47: D | AH47: 0 | AI47: 2 | AK47: $NEQ | AP47: 2021-07-12T12:39:52 | AQ47: 10.204.14.194/CLB0037 | AR47: 0 | AS47: 承認依頼前
A48: 10 | B48: 202103T | C48: JPY00 | D48: 0 | E48: 20 | F48: D70 | G48: 投資資本(のれん) | H48: 46 | I48: 1 | J48: 自動仕訳 | K48: 資本連結 | L48: 【直接仕訳-連結】のれん換算(直接) | M48: 992900 | N48: WFP | O48: 990200 | P48: CAI | Q48: 992900 | R48: WFP | S48: 992900 | T48: WFP | U48: 4 | V48: 資本連結仕訳 | Y48: 0 | Z48: 対象外 | AA48: 9 | AB48: 強制認識しない | AC48: 990200 | AD48: 123300 | AE48: のれん | AF48: 5171962 | AG48: C | AH48: 0 | AI48: 2 | AK48: $NEQ | AP48: 2021-07-12T12:39:52 | AQ48: 10.204.14.194/CLB0037 | AR48: 0 | AS48: 承認依頼前
A49: 10 | B49: 202103T | C49: JPY00 | D49: 0 | E49: 20 | F49: D70 | G49: 投資資本(のれん) | H49: 46 | I49: 1 | J49: 自動仕訳 | K49: 資本連結 | L49: 【直接仕訳-連結】のれん換算(直接) | M49: 992900 | N49: WFP | O49: 990200 | P49: CAI | Q49: 992900 | R49: WFP | S49: 992900 | T49: WFP | U49: 4 | V49: 資本連結仕訳 | Y49: 0 | Z49: 対象外 | AA49: 9 | AB49: 強制認識しない | AC49: 990200 | AD49: 323000 | AE49: 為替換算調整勘定 | AF49: 43173928 | AG49: C | AH49: 0 | AI49: 2 | AK49: $NEQ | AP49: 2021-07-12T12:39:52 | AQ49: 10.204.14.194/CLB0037 | AR49: 0 | AS49: 承認依頼前
A50: 10 | B50: 202103T | C50: JPY00 | D50: 0 | E50: 20 | F50: D70 | G50: 投資資本(のれん) | AD50: 123300 | AE50: のれん | AF50: 396945894 | AG50: C | AH50: 1 | AI50: 2 | AK50: $NJE | AL50: 制度実績 | AM50: 2021年5月(累) | AR50: 0
A51: 10 | B51: 202103T | C51: JPY00 | D51: 0 | E51: 20 | F51: D70 | G51: 投資資本(のれん) | AD51: 123300 | AE51: のれん | AF51: 23013655 | AG51: D | AH51: 1 | AI51: 2 | AK51: $NJE | AL51: 制度実績 | AM51: 2021年5月(累) | AR51: 0
A52: 10 | B52: 202103T | C52: JPY00 | D52: 0 | E52: 20 | F52: D70 | G52: 投資資本(のれん) | AD52: 323000 | AE52: 為替換算調整勘定 | AF52: 23013655 | AG52: C | AH52: 1 | AI52: 2 | AK52: $NJE | AL52: 制度実績 | AM52: 2021年5月(累) | AR52: 0
A53: 10 | B53: 202103T | C53: JPY00 | D53: 0 | E53: 20 | F53: D70 | G53: 投資資本(のれん) | AD53: 527700 | AE53: のれん償却額 | AF53: 396945894 | AG53: D | AH53: 1 | AI53: 2 | AK53: $NJE | AL53: 制度実績 | AM53: 2021年5月(累) | AR53: 0
A54: 10 | B54: 202103T | C54: JPY00 | D54: 0 | E54: 20 | AD54: 123300 | AE54: のれん | AF54: 396945894 | AG54: C | AH54: 2 | AI54: 2 | AK54: $NJE | AL54: 制度実績 | AM54: 2021年5月(累) | AR54: 0
A55: 10 | B55: 202103T | C55: JPY00 | D55: 0 | E55: 20 | AD55: 123300 | AE55: のれん | AF55: 23013655 | AG55: D | AH55: 2 | AI55: 2 | AK55: $NJE | AL55: 制度実績 | AM55: 2021年5月(累) | AR55: 0
A56: 10 | B56: 202103T | C56: JPY00 | D56: 0 | E56: 20 | AD56: 323000 | AE56: 為替換算調整勘定 | AF56: 23013655 | AG56: C | AH56: 2 | AI56: 2 | AK56: $NJE | AL56: 制度実績 | AM56: 2021年5月(累) | AR56: 0
A57: 10 | B57: 202103T | C57: JPY00 | D57: 0 | E57: 20 | AD57: 527700 | AE57: のれん償却額 | AF57: 396945894 | AG57: D | AH57: 2 | AI57: 2 | AK57: $NJE | AL57: 制度実績 | AM57: 2021年5月(累) | AR57: 0
AF59: =SUBTOTAL(9,AF2:AF58) -> 100493147

Sheet (2109)のれん202203 (hidden)
B1: のれん
F2: 202101M | G2: 202102M | H2: 202103M | I2: 202104M | J2: 202105M | K2: 202106M | L2: 202107M | M2: 202108M | N2: 202109M | O2: 202110M | P2: 202111M | Q2: 202112M
C4: 2021年3月期 | D4: 追加分 | E4: 償却 | F4: 月次償却額 | R4: のれん償却費 | S4: 2022年3月期
C5: a | E5: 年数 | F5: 4月 | G5: 5月 | H5: 6月 | I5: 7月 | J5: 8月 | K5: 9月 | L5: 10月 | M5: 11月 | N5: 12月 | O5: 1月 | P5: 2月 | Q5: 3月 | R5: b | S5: a + b + c
A6: 連結分 | B6: 9120 ポテトかいつか | C6: =C7 -> 10541413844 | E6: 15年 | F6: -62746486 | G6: -62746561 | H6: =-62746486 -> -62746486 | I6: =-62746486 -> -62746486 | J6: =-62746561 -> -62746561 | K6: =-62746486 -> -62746486 | R6: =SUM(F6:Q6) -> -376479066 | S6: =+C6+R6 -> 10164934778
B7: 2020.4取得 | C7: =[7]のれん202103!S6 -> 10541413844
A8: 単体分 | B8: 9120 ポテトかいつか | C8: =[7]のれん202103!S8 -> 3024181529 | E8: 15年 | F8: -18001080 | G8: -18001080 | H8: -18001080 | I8: -18001080 | J8: -18001080 | K8: -18001080 | R8: =SUM(F8:Q8) -> -108006480 | S8: =+C8+R8 -> 2916175049
B9: 2020.4取得 | C9: =C8 -> 3024181529
B11: 9913 かいつかファーム | C11: =[7]のれん202103!S11 -> 51731578.27 | E11: 15年 | F11: -307926 | G11: -307926 | H11: -307926 | I11: -307926 | J11: -307926 | K11: -307926 | R11: =SUM(F11:Q11) -> -1847556 | S11: =+C11+R11 -> 49884022.27
B12: 2020.4取得
T13: 為替による増減
B14: 992800 Seabrook | C14: =[7]のれん202103!S14 -> 4990562991 | E14: 15年 | F14: =F15*F16 -> -33325045.3 | G14: =G15*G16 -> -33325084.95 | H14: -33325045.3 | I14: -33325045.3 | J14: -33325084.95 | K14: -33325045.3 | L14: 0 | M14: 0 | N14: 0 | O14: 0 | P14: 0 | Q14: =Q15*Q16 -> 0 | R14: =SUM(F14:Q14) -> -199950351.1 | S14: =S15*W21 -> 4734291368 | T14: =S14-(C14+R14) -> -56321271.86 | V14: USD
B15: 外貨ﾍﾞｰｽ(GBP) | C15: =[7]のれん202103!S15 -> 32783045.33 | F15: -218553.55 | G15: -218553.81 | H15: -218553.55 | I15: -218553.55 | J15: -218553.81 | K15: -218553.55 | R15: =SUM(F15:Q15) -> -1311321.82 | S15: =SUM(C15:Q15) -> 31471723.51 | V15: CR | W15: 111.92
B16: 2018.10取得 | C16: =C14/C15 -> 152.23 | E16: Rate | F16: =$W$22 -> 152.48 | G16: 152.48 | H16: 152.48 | I16: 152.48 | J16: 152.48 | K16: 152.48 | L16: 152.48 | M16: 152.48 | N16: 152.48 | O16: 152.48 | P16: 152.48 | Q16: 152.48 | T16: 為替による増減 | V16: AR | W16: 110.18
B17: 992900 Warnock | C17: =[7]のれん202103!S17 -> 5910819064 | E17: 15年 | F17: =F18*F19 -> -36089079.98 | G17: =G18*G19 -> -36089122.95 | H17: =H18*H19 -> -36089079.98 | I17: -36089079.98 | J17: -36089122.95 | K17: -36089079.98 | L17: 0 | M17: 0 | N17: 0 | O17: 0 | P17: 0 | Q17: 0 | R17: =SUM(F17:Q17) -> -216534565.8 | S17: =S18*W15 -> 5755466943 | T17: =S17-(C17+R17) -> 61182445.5
B18: 外貨ﾍﾞｰｽ(USD) | C18: =[7]のれん202103!S18 -> 53390109.87 | F18: -327546.56 | G18: -327546.95 | H18: -327546.56 | I18: -327546.56 | J18: -327546.95 | K18: -327546.56 | R18: =SUM(F18:Q18) -> -1965280.14 | S18: =SUM(C18:Q18) -> 51424829.73
B19: 2019.11取得 | C19: 108.88 | E19: Rate | F19: =$W$16 -> 110.18 | G19: 110.18 | H19: 110.18 | I19: 110.18 | J19: 110.18 | K19: 110.18 | L19: 110.18 | M19: 110.18 | N19: 110.18 | O19: 110.18 | P19: 110.18 | Q19: 110.18
B20: 合計 | C20: =C6+C14+C11 -> 1.558370841e+10 | F20: =F6+F8+F11+F14+F17 -> -150469617.3 | G20: -150469774.9 | H20: -150469617.3 | I20: -150469617.3 | J20: -150469774.9 | K20: -150469617.3 | L20: 0 | M20: 0 | N20: 0 | O20: 0 | P20: 0 | Q20: 0 | R20: -902818018.9 | S20: 2.362075216e+10 | V20: GBP
Q21: T/B | R21: -902818020 | S21: 23620752164 | V21: CR | W21: 150.43
R22: =R20-R21 -> 1.061199903 | S22: =S20-S21 -> -3.742435455 | V22: AR | W22: 152.48
B23: 連結ベース | C23: 発生額 | R23: 125032111
B24: =B6 -> 9120 ポテトかいつか | C24: =C6+C8 -> 13565595373 | F24: =F6+F8 -> -80747566 | G24: -80747641 | H24: -80747566 | I24: -80747566 | J24: -80747641 | K24: -80747566 | L24: 0 | M24: 0 | N24: 0 | O24: 0 | P24: 0 | Q24: 0 | R24: -484485546 | S24: 13081109827

Sheet (2112)のれん202203 (hidden)
B1: のれん
F2: 202101M | G2: 202102M | H2: 202103M | I2: 202104M | J2: 202105M | K2: 202106M | L2: 202107M | M2: 202108M | N2: 202109M | O2: 202110M | P2: 202111M | Q2: 202112M
C4: 2021年3月期 | D4: 追加分 | E4: 償却 | F4: 月次償却額 | R4: のれん償却費 | S4: 2022年3月期
C5: a | E5: 年数 | F5: 4月 | G5: 5月 | H5: 6月 | I5: 7月 | J5: 8月 | K5: 9月 | L5: 10月 | M5: 11月 | N5: 12月 | O5: 1月 | P5: 2月 | Q5: 3月 | R5: b | S5: a + b + c
A6: 連結分 | B6: 9120 ポテトかいつか | C6: =C7 -> 10541413844 | E6: 15年 | F6: -62746486 | G6: -62746561 | H6: =-62746486+90013*3 -> -62476447 | I6: =-62746486+90013 -> -62656473 | J6: =-62746561+90013 -> -62656548 | K6: =-62746486+90013 -> -62656473 | L6: =-62746486+90013 -> -62656473 | M6: =-62746561+90013 -> -62656548 | N6: =-62746486+90013 -> -62656473 | R6: =SUM(F6:Q6) -> -563908482 | S6: =+C6+R6 -> 9977505362
B7: 2020.4取得 | C7: =[8]のれん202103!S6 -> 10541413844
A8: 単体分 | B8: 9120 ポテトかいつか | C8: =[8]のれん202103!S8 -> 3024181529 | E8: 15年 | F8: -18091093 | G8: -18091093 | H8: -18091093 | I8: -18091093 | J8: -18091093 | K8: -18091093 | L8: -18091093 | M8: -18091093 | N8: -18091093 | R8: =SUM(F8:Q8) -> -162819837 | S8: =+C8+R8 -> 2861361692
B9: 2020.4取得 | C9: =C8 -> 3024181529
B11: 9913 かいつかファーム | C11: =[8]のれん202103!S11 -> 51731578.27 | E11: 15年 | F11: -307926 | G11: -307926 | H11: -307926 | I11: -307926 | J11: -307926 | K11: -307926 | L11: -307926 | M11: -307926 | N11: -307926 | R11: =SUM(F11:Q11) -> -2771334 | S11: =+C11+R11 -> 48960244.27
B12: 2020.4取得
T13: 為替による増減
B14: 992800 Seabrook | C14: =[8]のれん202103!S14 -> 4990562991 | E14: 15年 | F14: =F15*F16 -> -33460548.5 | G14: =G15*G16 -> -33460588.31 | H14: -33460548.5 | I14: -33460548.5 | J14: -33460588.31 | K14: -33460548.5 | L14: -33460548.5 | M14: -33460588.31 | N14: -33460548.5 | O14: 0 | P14: 0 | Q14: =Q15*Q16 -> 0 | R14: =SUM(F14:Q14) -> -301145056 | S14: =S15*W21 -> 4783885558 | T14: =S14-(C14+R14) -> 94467623.4 | V14: USD
B15: 外貨ﾍﾞｰｽ(GBP) | C15: =[8]のれん202103!S15 -> 32783045.33 | F15: -218553.55 | G15: -218553.81 | H15: -218553.55 | I15: -218553.55 | J15: -218553.81 | K15: -218553.55 | L15: -218553.55 | M15: -218553.81 | N15: -218553.55 | R15: =SUM(F15:Q15) -> -1966982.73 | S15: =SUM(C15:Q15) -> 30816062.6 | V15: CR | W15: 115.02
B16: 2018.10取得 | C16: =C14/C15 -> 152.23 | E16: Rate | F16: =$W$22 -> 153.1 | G16: 153.1 | H16: 153.1 | I16: 153.1 | J16: 153.1 | K16: 153.1 | L16: 153.1 | M16: 153.1 | N16: 153.1 | O16: 153.1 | P16: 153.1 | Q16: 153.1 | T16: 為替による増減 | V16: AR | W16: 111.37
B17: 992900 Warnock | C17: =[8]のれん202103!S17 -> 5910819064 | E17: 15年 | F17: =F18*F19 -> -36478860.39 | G17: =G18*G19 -> -36478903.82 | H17: =H18*H19 -> -36478860.39 | I17: -36478860.39 | J17: -36478903.82 | K17: -36478860.39 | L17: -36478860.39 | M17: -36478903.82 | N17: -36478860.39 | O17: 0 | P17: 0 | Q17: 0 | R17: =SUM(F17:Q17) -> -328309873.8 | S17: =S18*W15 -> 5801860655 | T17: =S17-(C17+R17) -> 219351464.8
B18: 外貨ﾍﾞｰｽ(USD) | C18: =[8]のれん202103!S18 -> 53390109.87 | F18: -327546.56 | G18: -327546.95 | H18: -327546.56 | I18: -327546.56 | J18: -327546.95 | K18: -327546.56 | L18: -327546.56 | M18: -327546.95 | N18: -327546.56 | R18: =SUM(F18:Q18) -> -2947920.21 | S18: =SUM(C18:Q18) -> 50442189.66
B19: 2019.11取得 | C19: 108.88 | E19: Rate | F19: =$W$16 -> 111.37 | G19: 111.37 | H19: 111.37 | I19: 111.37 | J19: 111.37 | K19: 111.37 | L19: 111.37 | M19: 111.37 | N19: 111.37 | O19: 111.37 | P19: 111.37 | Q19: 111.37
B20: 合計 | C20: =C6+C14+C11 -> 1.558370841e+10 | F20: =F6+F8+F11+F14+F17 -> -151084913.9 | G20: -151085072.1 | H20: -150814874.9 | I20: -150994900.9 | J20: -150995059.1 | K20: -150994900.9 | L20: -150994900.9 | M20: -150995059.1 | N20: -150994900.9 | O20: 0 | P20: 0 | Q20: 0 | R20: -1358954583 | S20: 2.347357351e+10 | V20: GBP
Q21: T/B | R21: 1358954583 | S21: 23473573516 | V21: CR | W21: 155.24
R22: =R20+R21 -> 0.2493000031 | S22: =S20-S21 -> -5.016136169 | V22: AR | W22: 153.1
B23: 連結ベース | C23: 発生額
B24: =B6 -> 9120 ポテトかいつか | C24: =C6+C8 -> 13565595373 | F24: =F6+F8 -> -80837579 | G24: -80837654 | H24: -80567540 | I24: -80747566 | J24: -80747641 | K24: -80747566 | L24: -80747566 | M24: -80747641 | N24: -80747566 | O24: 0 | P24: 0 | Q24: 0 | R24: -726728319 | S24: 12838867054
